Workbook

Sheet AER only (hidden)
B1: Data in these columns used for data validation and database purposes.
B2: Date last modified: | C2: 2016-09-06 | D2: added new business names, improved column heading formatting
C3: 2016-10-17 | D3: updated TransGrid's correct legal name, corrected TasNetworks (T) to June financial year
C4: 2017-02-01 | D4: inserted Power and Water | AC4: FOR ELECTRICITY BUSINESSES ONLY
AC5: Feeder Types | AG5: TasNetworks (D) | AH5: MAIFI flag | AI5: Feeder Names
AC6: CBD | AD6: Urban | AE6: Short rural | AF6: long rural | AG6: EXTRA
B7: dms_TradingName_List | C7: dms_TradingNameFull_List | D7: dms_ABN_List | E7: dms_JurisdictionList | F7: dms_Sector_List | G7: dms_Segment_List | H7: dms_FormControl_List | I7: dms_RPT_List | J7: dms_RPTMonth_List | K7: dms_CRCPlength_List | L7: dms_FRCPlength_List | M7: dms_663_List | N7: dms_DeterminationRef_List | O7: dms_Addr1_List | P7: dms_Addr2_List | Q7: dms_Suburb_List | R7: dms_State_List | S7: dms_PostCode_List | T7: dms_PAddr1_List | U7: dms_PAddr2_List | V7: dms_PSuburb_List | W7: dms_PState_List | X7: dms_PPostCode_List | Y7: dms_ContactName1_List | Z7: dms_ContactPh1_List | AA7: dms_ContactEmail_List | AC7: dms_CBD_flag | AD7: dms_Urban_flag | AE7: dms_ShortRural_flag | AF7: dms_LongRural_flag | AG7: dms_FeederType_5_flag | AH7: dms_MAIFI_flag_List | AI7: dms_FeederName_1 | AJ7: dms_FeederName_2 | AK7: dms_FeederName_3 | AL7: dms_FeederName_4 | AM7: dms_FeederName_5
B8: ActewAGL Distribution | C8: ActewAGL Distribution | D8: 76670568688 | E8: ACT | F8: Electricity | G8: Distribution | H8: Revenue cap | I8: Financial | J8: June | K8: 5 | L8: 5 | M8: 5 | N8: 2014-19 Distribution Determination | O8: 40 Bunda Street | Q8: CANBERRA | R8: ACT | S8: 2600 | T8: GPO BOX 366 | V8: CANBERRA | W8: ACT | X8: 2601 | Y8: Robert Walker | Z8: 02 6248 3847 | AA8: robert.walker@actewagle.com.au | AC8: NO | AD8: YES | AE8: YES | AF8: NO | AG8: NO | AI8: CBD | AJ8: Urban | AK8: Short rural | AL8: Long rural | AN8: ActewAGL Distribution
B9: ActewAGL Distribution (Tx Assets) | C9: ActewAGL Distribution (Tx Assets) | D9: 76670568688 | E9: ACT | F9: Electricity | G9: Distribution | H9: Revenue cap | I9: Financial | J9: June | K9: 5 | L9: 5 | M9: 5 | N9: distribution determination | O9: 40 Bunda Street | Q9: CANBERRA | R9: ACT | S9: 2600 | T9: GPO BOX 366 | V9: CANBERRA | W9: ACT | X9: 2601 | Y9: Robert Walker | Z9: 02 6248 3847 | AA9: robert.walker@actewagle.com.au | AI9: CBD | AJ9: Urban | AK9: Short rural | AL9: Long rural | AN9: ActewAGL Distribution (Tx Assets)
B10: ActewAGL Gas | C10: ActewAGL Gas | D10: 76670568688 | E10: ACT | F10: Gas | G10: Distribution | H10: Weighted average price cap | I10: Financial | J10: June | K10: 5 | L10: 5 | M10: x | O10: 40 Bunda Street | Q10: CANBERRA | R10: ACT | S10: 2600 | T10: GPO BOX 366 | V10: CANBERRA | W10: ACT | X10: 2601 | Y10: Philip Deamer | Z10: 02 6248 3438 | AA10: GasAAReview@actewagl.com.au | AN10: ActewAGL Gas
B11: AGN (Albury) | C11: Australian Gas Networks Limited (reporting data for Albury) | D11: 19078551685 | E11: Vic | F11: Gas | G11: Distribution | H11: Weighted average price cap | I11: Calendar | J11: December | K11: 5 | L11: 5 | M11: x | O11: Level 10 | P11: 81 Flinders Street | Q11: ADELAIDE | R11: SA | S11: 5000 | Z11: 08 8227 1500 | AI11: CBD | AJ11: Urban | AK11: Short rural | AL11: Long rural | AN11: AGN (SA)
B12: AGN (Albury and Victoria) | C12: Australian Gas Networks Limited (reporting data for Albury and Victoria) | D12: 19078551685 | E12: Vic | F12: Gas | G12: Distribution | H12: Weighted average price cap | I12: Calendar | J12: December | K12: 5 | L12: 5 | M12: x | O12: Level 6 | P12: 400 King William Street | Q12: ADELAIDE | R12: SA | S12: 5000 | T12: PO Box 6468 | U12: Halifax Street | V12: ADELAIDE | W12: SA | X12: 5000 | Y12: Craig de Laine | Z12: 08 8418 1129 | AA12: craig.delaine@agn.com.au | AI12: CBD | AJ12: Urban | AK12: Short rural | AL12: Long rural
B13: AGN (SA) | C13: AGN (SA) | D13: 78551685 | E13: SA | F13: Gas | G13: Distribution | H13: Revenue cap | I13: Financial | J13: June | K13: 5 | L13: 5 | M13: 5 | N13: distribution determination | R13: SA | AN13: AGN (Victoria)
B14: AGN (Victoria) | C14: Australian Gas Networks Limited (reporting data for Victoria) | D14: 19078551685 | E14: Vic | F14: Gas | G14: Distribution | H14: Weighted average price cap | I14: Calendar | J14: December | K14: 5 | L14: 5 | M14: x | O14: Level 10 | P14: 81 Flinders Street | Q14: ADELAIDE | R14: SA | S14: 5000 | Z14: 08 8227 1500 | AN14: AGN (Albury)
B15: Amadeus | C15: APT Pipelines (NT) Pty Ltd | D15: 39009737393 | E15: NT | F15: Gas | G15: Transmission | H15: Weighted average price cap | I15: Financial | J15: June | K15: 5 | L15: 5 | M15: x | N15: n/a | O15: Level 19, HSBC Building | P15: 580 George Street | Q15: SYDNEY | R15: NSW | S15: 2000 | T15: Level 19, HSBC Building | U15: 580 George Street | V15: SYDNEY | W15: NSW | X15: 2000 | Y15: Alexandra Curran | Z15: 02 9275 0020 | AA15: alexandra.curran@apa.com.au | AN15: Amadeus
B16: APA GasNet | C16: APA GasNet Australia (Operations) Pty Ltd | D16: 65083009 | E16: Vic | F16: Gas | G16: Transmission | H16: Weighted average price cap | I16: Calendar | J16: December | K16: 5 | L16: 5 | M16: x | O16: Level 19, HSBC Building | P16: 580 George Street | Q16: SYDNEY | R16: NSW | S16: 2000 | T16: PO Box R41 | V16: ROYAL EXCHANGE | W16: NSW | X16: 1225 | Z16: 02 9693 0000 | AN16: APA GasNet
B17: Ausgrid | C17: Ausgrid | D17: 67505337385 | E17: NSW | F17: Electricity | G17: Distribution | H17: Revenue cap | I17: Financial | J17: June | K17: 5 | L17: 5 | M17: 5 | N17: 2014-19 Distribution Determination | O17: 570 George St | Q17: SYDNEY | R17: NSW | S17: 2000 | Y17: John Thomson | Z17: (02) 9269 2312 | AA17: john.thomson@ausgrid.com.au | AC17: YES | AD17: YES | AE17: YES | AF17: YES | AG17: NO | AI17: CBD | AJ17: Urban | AK17: Short rural | AL17: Long rural | AN17: Ausgrid
B18: Ausgrid (Tx Assets) | C18: Ausgrid (Tx Assets) | D18: 67505337385 | E18: NSW | F18: Electricity | G18: Distribution | H18: Revenue cap | I18: Financial | J18: June | K18: 5 | L18: 5 | M18: 5 | N18: distribution determination | R18: NSW | AI18: CBD | AJ18: Urban | AK18: Short rural | AL18: Long rural | AN18: Ausgrid (Tx Assets)
B19: AusNet (D) | C19: AusNet Services (D) | D19: 91064651118 | E19: Vic | F19: Electricity | G19: Distribution | H19: Revenue cap | I19: Calendar | J19: December | K19: 5 | L19: 5 | M19: 2 | N19: 2016-20 Distribution Determination | O19: Level 32 | P19: 2 Southbank Boulevard | Q19: SOUTHBANK | R19: Vic | S19: 3006 | T19: Locked Bag 14051 | V19: MELBOURNE CITY MAIL CENTRE | W19: VIC | X19: 8001 | Y19: Hannah Williams | Z19: 03 9683 4088 | AA19: hwilliams@powercor.com.au | AD19: YES | AE19: YES | AF19: YES | AG19: NO | AI19: CBD | AJ19: Urban | AK19: Short rural | AL19: Long rural | AN19: AusNet (D)
B20: AusNet (Gas) | C20: AusNet Gas Services | D20: 86015036 | E20: Vic | F20: Gas | G20: Distribution | H20: Weighted average price cap | I20: Calendar | J20: December | K20: 5 | L20: 5 | M20: X | AN20: AusNet (Gas)
B21: AusNet (T) | C21: AusNet (T) | D21: 78079798173 | E21: Vic | F21: Electricity | G21: Transmission | H21: Revenue cap | I21: Financial | J21: March | K21: 5 | L21: 5 | M21: 2 | N21: transmission determination | O21: Level 32 | P21: 2 Southbank Boulevard | Q21: SOUTHBANK | R21: Vic | S21: 3006 | T21: Locked Bag 14051 | V21: MELBOURNE CITY MAIL CENTRE | W21: Vic | X21: 8001 | Y21: Clare Thompson | Z21: 03 9695 6670 | AA21: clare.e.thompson@ausnetservices.com.au | AI21: CBD | AJ21: Urban | AK21: Short rural | AL21: Long rural | AN21: AusNet (T)
B22: Australian Distribution Co. | C22: Australian Distribution Co. | D22: 11222333444 | E22: - | F22: Electricity | G22: Distribution | H22: Revenue cap | I22: Financial | J22: June | K22: 5 | L22: 5 | M22: 2 | N22: distribution determination | O22: 123 Straight Street | Q22: SYDNEY | R22: NSW | S22: 2000 | T22: PO Box 123 | V22: SYDNEY | W22: NSW | X22: 2000 | Y22: Bob Smith | Z22: 02 1234 5678 | AA22: bob@auselec.net.au | AI22: CBD | AJ22: Urban | AK22: Short rural | AL22: Long rural | AN22: Australian Distribution Co.
B23: Australian Distribution Co. (Vic) | C23: Australian Distribution Co. (Victoria) | D23: 11222333444 | E23: Vic | F23: Electricity | G23: Distribution | H23: Revenue cap | I23: Calendar | J23: December | K23: 5 | L23: 5 | M23: 2 | N23: distribution determination | O23: 123 Straight Street | Q23: MELBOURNE | R23: Vic | S23: 3000 | T23: PO Box 123 | V23: MELBOURNE | W23: VIC | X23: 3000 | Y23: Bob Smith | Z23: 02 1234 5678 | AA23: bob@auselec.net.au | AI23: CBD | AJ23: Urban | AK23: Short rural | AL23: Long rural | AN23: Australian Distribution Co. (Vic)
B24: Australian Transmission Co. | C24: Australian Transmission Co. | D24: 11222333444 | E24: - | F24: Electricity | G24: Transmission | H24: Revenue cap | I24: Financial | J24: June | K24: 5 | L24: 5 | M24: 5 | N24: transmission determination | O24: 123 Straight Street | Q24: SYDNEY | R24: NSW | S24: 2000 | T24: PO Box 123 | V24: SYDNEY | W24: NSW | X24: 2000 | Y24: Bob Smith | Z24: 02 1234 5678 | AA24: bob@auselec.net.au | AI24: CBD | AJ24: Urban | AK24: Short rural | AL24: Long rural | AN24: Australian Transmission Co.
B25: CitiPower | C25: CitiPower | D25: 76064651056 | E25: Vic | F25: Electricity | G25: Distribution | H25: Revenue cap | I25: Calendar | J25: December | K25: 5 | L25: 5 | M25: 2 | N25: 2016-20 Distribution Determination | O25: 40 Market Street | Q25: MELBOURNE | R25: Vic | S25: 3000 | T25: Locked Bag 14090 | V25: MELBOURNE | W25: VIC | X25: 8001 | Y25: Hannah Williams | Z25: 03 9683 4088 | AA25: hwilliams@powercor.com.au | AC25: YES | AD25: YES | AE25: NO | AF25: NO | AG25: NO | AI25: CBD | AJ25: Urban | AK25: Short rural | AL25: Long rural | AN25: CitiPower
B26: Directlink | C26: Directlink | D26: 16779340889 | E26: Qld | F26: Electricity | G26: Transmission | H26: Revenue cap | I26: Financial | J26: June | K26: 9 | L26: 5 | M26: 5 | N26: transmission determination | R26: NSW | AI26: CBD | AJ26: Urban | AK26: Short rural | AL26: Long rural | AN26: Directlink
B27: ElectraNet | C27: ElectraNet | D27: 41094482416 | E27: SA | F27: Electricity | G27: Transmission | H27: Revenue cap | I27: Financial | J27: June | K27: 5 | L27: 5 | M27: 5 | N27: transmission determination | O27: 52-55 East Terrace | P27: Rymill Park | Q27: ADELAIDE | R27: SA | S27: 5000 | T27: PO Box 7096 | U27: Hutt Street Post Office | V27: ADELAIDE | W27: SA | X27: 5000 | Y27: Bill Jackson | Z27: 08 8404 7969 | AA27: jackson.bill@electranet.com.au | AI27: CBD | AJ27: Urban | AK27: Short rural | AL27: Long rural | AN27: ElectraNet
B28: Endeavour Energy | C28: Endeavour Energy | D28: 11247365823 | E28: NSW | F28: Electricity | G28: Distribution | H28: Revenue cap | I28: Financial | J28: June | K28: 5 | L28: 5 | M28: 5 | N28: 2014-19 Distribution Determination | O28: 51 Huntingwood Drive | Q28: HUNTINGWOOD | R28: NSW | S28: 2148 | T28: PO Box 811 | V28: SEVEN HILLS | W28: NSW | X28: 1730 | Y28: Jon Hocking | Z28: 02 9853 4386 / 0407 348 156 | AA28: Jon.Hocking@Endeavourenergy.com.au | AC28: NO | AD28: YES | AE28: YES | AF28: YES | AG28: NO | AI28: CBD | AJ28: Urban | AK28: Short rural | AL28: Long rural | AN28: Endeavour Energy
B29: Energex | C29: Energex | D29: 40078849055 | E29: Qld | F29: Electricity | G29: Distribution | H29: Revenue cap | I29: Financial | J29: June | K29: 5 | L29: 5 | M29: 5 | N29: 2015-20 Distribution Determination | O29: 26 Reddacliff Street | Q29: NEWSTEAD | R29: Qld | S29: 4006 | T29: 26 Reddacliff Street | V29: NEWSTEAD | W29: QLD | X29: 4006 | Y29: Nicola Roscoe | Z29: 07 3664 5891 | AA29: nicolaroscoe@energex.com.au | AC29: YES | AD29: YES | AE29: YES | AF29: NO | AG29: NO | AI29: CBD | AJ29: Urban | AK29: Short rural | AL29: Long rural | AN29: Energex
B30: Ergon Energy | C30: Ergon Energy | D30: 50087646062 | E30: Qld | F30: Electricity | G30: Distribution | H30: Revenue cap | I30: Financial | J30: June | K30: 5 | L30: 5 | M30: 5 | N30: 2015-20 Distribution Determination | O30: 22 Walker Street | Q30: TOWNSVILLE | R30: Qld | S30: 4810 | T30: Po Box 264 | V30: FORTITUDE VALLEY | W30: QLD | X30: 4006 | Y30: Jenny Doyle, Group Manager Regulatory Affairs | Z30: (07) 3851 6416 | AA30: jenny.doyle@ergon.com.au | AC30: NO | AD30: YES | AE30: YES | AF30: YES | AG30: NO | AI30: CBD | AJ30: Urban | AK30: Short rural | AL30: Long rural | AN30: Ergon Energy
B31: Essential Energy | C31: Essential Energy | D31: 37428185226 | E31: NSW | F31: Electricity | G31: Distribution | H31: Revenue cap | I31: Financial | J31: June | K31: 5 | L31: 5 | M31: 5 | N31: 2014-19 Distribution Determination | O31: 8 Buller Street | Q31: PORT MACQUARIE | R31: NSW | S31: 2444 | T31: PO Box 5730 | V31: PORT MACQUARIE | W31: NSW | X31: 2444 | Y31: Catherine Waddell | Z31: 02 6338 3553 | AA31: catherine.waddell@essentialenergy.com.au | AE31: YES | AF31: YES | AG31: NO | AI31: CBD | AJ31: Urban | AK31: Short rural | AL31: Long rural | AN31: Essential Energy
B32: Jemena Electricity | C32: Jemena Electricity | D32: 82064651083 | E32: Vic | F32: Electricity | G32: Distribution | H32: Revenue cap | I32: Calendar | J32: December | K32: 5 | L32: 5 | M32: 2 | N32: 2016-20 Distribution Determination | O32: Level 16 | P32: 567 Collins Street | Q32: MELBOURNE | R32: VIC | S32: 3000 | T32: PO Box 16182 | V32: MELBOURNE | W32: VIC | X32: 8001 | Y32: Robert McMillan | Z32: 03 9173 7000 | AA32: robert.mcmillan@jemena.com.au | AE32: YES | AF32: NO | AG32: NO | AI32: CBD | AJ32: Urban | AK32: Short rural | AL32: Long rural | AN32: Jemena Electricity
B33: JGN | C33: Jemena Gas Networks | E33: NSW | F33: Gas | G33: Distribution | H33: Weighted average price cap | I33: Financial | J33: June | K33: 5 | L33: 5 | AN33: JGN
B34: Multinet Gas | C34: Multinet Gas (DB No.1) Pty Ltd (ACN 086 026 986), Multinet Gas (DB No.2) Pty Ltd (ACN 086 230 122) | D34: 86026986 | E34: Vic | F34: Gas | G34: Distribution | H34: Weighted average price cap | I34: Calendar | J34: December | K34: 5 | L34: 5 | M34: x | AN34: Multinet Gas
B35: Murraylink | C35: Murraylink | D35: 79181207909 | E35: SA | F35: Electricity | G35: Transmission | H35: Revenue cap | I35: Financial | J35: June | K35: 5 | L35: 5 | M35: 5 | N35: transmission determination | AI35: CBD | AJ35: Urban | AK35: Short rural | AL35: Long rural | AN35: Murraylink
B36: Power and Water | C36: Power and Water Corporation | D36: 15947352360 | E36: NT | F36: Electricity | G36: Distribution | H36: Revenue cap | I36: Financial | J36: June | K36: 5 | L36: 5 | M36: x | N36: distribution determination | O36: GPO Box 1921 | Q36: DARWIN | R36: NT | S36: 0801 | T36: GPO Box 1921 | V36: DARWIN | W36: NT | X36: 0801 | AC36: YES | AD36: YES | AE36: YES | AF36: YES | AG36: NO
B37: Powercor Australia | C37: Powercor Australia | D37: 89064651109 | E37: Vic | F37: Electricity | G37: Distribution | H37: Revenue cap | I37: Calendar | J37: December | K37: 5 | L37: 5 | M37: 2 | N37: 2016-20 Distribution Determination | O37: 40 Market Street | Q37: MELBOURNE | R37: Vic | S37: 3000 | T37: Locked bag 14090 | V37: MELBOURNE | W37: VIC | X37: 8001 | Y37: Hannah Williams | Z37: 03 9683 4088 | AA37: hwilliams@powercor.com.au | AE37: YES | AF37: YES | AG37: NO | AI37: CBD | AJ37: Urban | AK37: Short rural | AL37: Long rural | AN37: Powercor Australia
B38: Powerlink | C38: Queensland Electricity Transmission Corporation Limited trading as Powerlink Queensland | D38: 82078849233 | E38: Qld | F38: Electricity | G38: Transmission | H38: Revenue cap | I38: Financial | J38: June | K38: 5 | L38: 5 | M38: 5 | N38: transmission determination | O38: 33 Harold St | Q38: VIRGINIA | R38: Qld | S38: 4014 | T38: PO Box 1193 | V38: VIRGINIA | W38: QLD | X38: 4014 | Y38: Jennifer Harris | Z38: 07 3860 2667 | AA38: jharris@powerlink.com.au | AI38: CBD | AJ38: Urban | AK38: Short rural | AL38: Long rural | AN38: Powerlink
B39: Roma to Brisbane Pipeline | C39: APT Petroleum Pipelines Limited t/a Roma to Brisbane Pipeline | D39: 009 737 393 | E39: Qld | F39: Gas | G39: Transmission | H39: Revenue cap | I39: Financial | J39: June | K39: 5 | L39: 5 | M39: x | N39: n/a | AI39: CBD | AJ39: Urban | AK39: Short rural | AL39: Long rural | AN39: Roma to Brisbane Pipeline
B40: SA Power Networks | C40: SA Power Networks | D40: 13332330749 | E40: SA | F40: Electricity | G40: Distribution | H40: Revenue cap | I40: Financial | J40: June | K40: 5 | L40: 5 | M40: 5 | N40: 2015-20 Distribution Determination | O40: 1 Anzac Highway | Q40: KESWICK | R40: SA | S40: 5035 | T40: GPO Box 77 | V40: ADELAIDE | W40: SA | X40: 5000 | Y40: Damien O'Connor | Z40: 08 8404 5066 | AA40: damien.oconnor@sapowernetworks.com.au | AE40: YES | AF40: YES | AG40: NO | AI40: CBD | AJ40: Urban | AK40: Short rural | AL40: Long rural | AN40: SA Power Networks
B41: TasNetworks (D) | C41: TasNetworks (D) | D41: 24167357299 | E41: Tas | F41: Electricity | G41: Distribution | H41: Revenue cap | I41: Financial | J41: June | K41: 5 | L41: 5 | M41: 5 | N41: distribution determination | O41: 21 Kirksway Place | Q41: HOBART | R41: Tas | S41: 7000 | T41: GPO Box 191 | V41: HOBART | W41: Tas | X41: 7000 | Y41: Leigh Mayne | Z41: 03 6270 3691 | AA41: rrp2012@auroraenergy.com.au | AE41: YES | AF41: YES | AG41: YES | AI41: Critical Infrastructure | AJ41: High density commercial | AK41: Urban | AL41: High density rural | AM41: Low density rural | AN41: TasNetworks (D)
B42: TasNetworks (T) | C42: TasNetworks (T) | D42: 24167357299 | E42: Tas | F42: Electricity | G42: Transmission | H42: Revenue cap | I42: Financial | J42: June | K42: 5 | L42: 5 | M42: 5 | N42: transmission determination | O42: 1-7 Maria Street | Q42: LENAH VALLEY | R42: Tas | S42: 7008 | T42: PO Box 606 | V42: MOONAH | W42: Tas | X42: 7009 | Y42: Heath Dillon | Z42: 03 6274 3664 | AA42: heath.dillon@transend.com.au | AI42: CBD | AJ42: Urban | AK42: Short rural | AL42: Long rural | AN42: TasNetworks (T)
B43: TransGrid | C43: NSW Electricity Networks Operations Pty Ltd trading as TransGrid | D43: 609169959 | E43: NSW | F43: Electricity | G43: Transmission | H43: Revenue cap | I43: Financial | J43: June | K43: 5 | L43: 4 | M43: 5 | N43: transmission determination | O43: 180 Thomas Street | Q43: SYDNEY | R43: NSW | S43: 2000 | T43: PO Box A1000 | V43: SYDNEY SOUTH | W43: NSW | X43: 1235 | Y43: Garrie Chubb | Z43: 0408 210 221 | AA43: garrie.chubb@transgrid.com.au | AI43: CBD | AJ43: Urban | AK43: Short rural | AL43: Long rural | AN43: TransGrid
B44: United Energy | C44: United Energy | D44: 70064651029 | E44: Vic | F44: Electricity | G44: Distribution | H44: Revenue cap | I44: Calendar | J44: December | K44: 5 | L44: 5 | M44: 2 | N44: 2016-20 Distribution Determination | O44: Level 3 | P44: 6 Nexus Court | Q44: MULGRAVE | R44: Vic | S44: 3149 | T44: PO Box 449 | V44: MOUNT WAVERLEY | W44: VIC | X44: 3170 | Y44: Mathew Abraham | Z44: 03 8846 9758 | AA44: mathew.abraham@ue.com.au | AE44: YES | AF44: NO | AG44: NO | AI44: CBD | AJ44: Urban | AK44: Short rural | AL44: Long rural | AN44: United Energy
B45: Western Power (D) | C45: Western Power (D) | D45: 18540492861 | E45: WA | F45: Electricity | G45: Distribution | H45: Revenue cap | I45: Financial | J45: June | K45: 12 | L45: 4 | M45: x | N45: distribution determination | O45: 363 Wellington Street | Q45: PERTH | R45: WA | S45: 6000 | T45: GPO Box L921 | V45: PERTH | W45: WA | X45: 6842 | Y45: Judy Hunter | Z45: 08 9326 6239 | AA45: judy.hunter@westernpower.com.au | AE45: YES | AF45: YES | AG45: NO | AH45: NO | AI45: CBD | AJ45: Urban | AK45: Short rural | AL45: Long rural | AN45: Western Power (D)
B46: Western Power (T) | C46: Western Power (T) | D46: 18540492861 | E46: WA | F46: Electricity | G46: Transmission | H46: Revenue cap | I46: Financial | J46: June | K46: 12 | L46: 4 | M46: x | N46: transmission determination | O46: 363 Wellington Street | Q46: PERTH | R46: WA | S46: 6000 | T46: GPO Box L921 | V46: PERTH | W46: WA | X46: 6842 | Y46: Judy Hunter | Z46: 08 9326 6239 | AA46: judy.hunter@westernpower.com.au | AE46: YES | AF46: YES | AG46: NO | AI46: CBD | AJ46: Urban | AK46: Short rural | AL46: Long rural | AN46: Western Power (T)
W49: For EB & Reset RINs only
B50: The Reg Year Ending (dms_RYE) must be set to the last year of the regulatory period. For forecast data is is usually (FRCP_y5) for actual it is a single year (CRY). For historical actual data the RYE will need to be set manually in the business details sheet by setting the dms_Multiyear_flag to 1 and putting the correct value in 'dms_Specified_FinalYear. See cells C67:C68 | G50: =IF(dms_RPT="financial",VALUE(LEFT(CRCP_y1,4)-1)&"-"&TEXT(VALUE(RIGHT(CRCP_y1,2)-1),"00"),VALUE(LEFT(CRCP_y1,4)-1)) -> 2013-14 | N50: Drop down selector box for CA & Reset RINs. | O50: For CA & Reset RINs only | W50: for DNSP only | AI50: Reason for interruption | AJ50: dms_Reason_Interruption_Detailed | AK50: dms_Reason_Interruption
B51: dms_Model_List | C51: DELETE NR 'CRY' IF NOT AN ANNUAL RIN (EB, CA , ARR) | E51: dms_RYE_Formula_Result | N51: dms_0203_ProjectType | O51: dms_020303_01_UOM | P51: dms_020501_01_UOM | Q51: dms_020501_02_UOM | R51: dms_020501_03_UOM | S51: dms_020501_04_UOM | T51: dms_020603_01_UOM | U51: dms_040102_01_UOM | V51: dms_040102_04_UOM | W51: dms_030601_01_UOM | X51: dms_030601_02_UOM | Y51: dms_030701_01_UOM | Z51: dms_030702_01_UOM | AA51: dms_030703_01_UOM | AI51: Animal | AJ51: Animal impact | AK51: Animal
B52: ARR | C52: ANNUAL REPORTING STATEMENT | E52: =LEFT(dms_SingleYear_FinalYear_Result,2)&RIGHT(dms_SingleYear_FinalYear_Result,2) ->  | F52: =LEFT(dms_SingleYear_FinalYear_Result,2)&RIGHT(dms_SingleYear_FinalYear_Result,2) | H52: Formula errors are OK | N52: New line on new route - single circuit | O52: Circuit line length in km | P52: 0's | Q52: 0's | R52: 0's | S52: 0's | T52: 0's | U52: 0's | V52: days | W52: minutes/customer | X52: minutes/customer | Y52: Customer / km | Z52: % | AA52: km | AJ52: Animal nesting/burrowing, etc and other | AK52: Asset failure
B53: CA | C53: CATEGORY ANALYSIS | E53: =LEFT(dms_SingleYear_FinalYear_Result,2)&RIGHT(dms_SingleYear_FinalYear_Result,2) ->  | F53: =LEFT(dms_SingleYear_FinalYear_Result,2)&RIGHT(dms_SingleYear_FinalYear_Result,2) | H53: Formula errors are OK | N53: New line on new route - dual circuit | O53: Circuit line length in km | P53: 0's | Q53: 0's | R53: 0's | S53: 0's | T53: 0's | U53: 0's | V53: 0's | W53: minutes/customer | X53: minutes/customer | Y53: MWh/customer | Z53: Number of spans | AJ53: Other | AK53: Other
B54: CPI | C54: CPI | N54: New line on new route - other | O54: Circuit line length in km | P54: MVA added | Q54: MVA added | R54: MVA added | S54: MVA added | T54: 0's | U54: 0's | V54: $0s | W54: interruptions/customer | X54: interruptions/customer | Y54: kVA / customer | Z54: Number of spans | AI54: Asset failure | AJ54: LV | AK54: Overloads
B55: EB | C55: ECONOMIC BENCHMARKING | E55: =LEFT(dms_SingleYear_FinalYear_Result,2)&RIGHT(dms_SingleYear_FinalYear_Result,2) ->  | F55: =LEFT(dms_SingleYear_FinalYear_Result,2)&RIGHT(dms_SingleYear_FinalYear_Result,2) | H55: Formula errors are OK | N55: Line rebuild over existing route - single circuit | O55: Circuit line length in km | P55: 0's | Q55: 0's | R55: 0's | S55: 0's | T55: 0's | U55: $0s | V55: 0's | W55: interruptions/customer | X55: interruptions/customer | Z55: Number of spans | AJ55: Distribution substation | AK55: Planned
B56: PTRM | C56: POST TAX REVENUE MODEL | E56: =LEFT(dms_MultiYear_FinalYear_Result,2)&RIGHT(dms_MultiYear_FinalYear_Result,2) -> 2024 | F56: =LEFT(dms_MultiYear_FinalYear_Result,2)&RIGHT(dms_MultiYear_FinalYear_Result,2) | N56: Line rebuild over existing route - dual circuit | O56: Number | P56: total spend $0s | Q56: total spend $0s | R56: total spend $0s | S56: total spend $0s | T56: (per cent) | Z56: Number of spans | AJ56: HV | AK56: Network business
B57: Reset | C57: REGULATORY REPORTING STATEMENT | E57: =LEFT(dms_MultiYear_FinalYear_Result,2)&RIGHT(dms_MultiYear_FinalYear_Result,2) -> 2024 | F57: =LEFT(dms_MultiYear_FinalYear_Result,2)&RIGHT(dms_MultiYear_FinalYear_Result,2) | H57: Formula errors are OK | N57: Reconductor - Single circuit | O57: Number | P57: net circuit km added | Q57: net circuit km added | R57: net circuit km added | S57: net circuit km added | Z57: Years | AJ57: Zone substation | AK57: Third party
B58: RFM | C58: ROLL FORWARD MODEL | E58: =LEFT(dms_CRCP_FinalYear_Result,2)&RIGHT(dms_CRCP_FinalYear_Result,2) -> 2019 | F58: =LEFT(dms_CRCP_FinalYear_Result,2)&RIGHT(dms_CRCP_FinalYear_Result,2) | N58: Reconductor - Dual circuit | O58: Number | P58: total spend $0s | Q58: total spend $0s | R58: total spend $0s | S58: total spend $0s | Z58: Years | AJ58: Subtransmission | AK58: Unknown
B59: WACC | C59: WEIGHTED AVERAGE COST OF CAPITAL | E59: =LEFT(dms_MultiYear_FinalYear_Result,2)&RIGHT(dms_MultiYear_FinalYear_Result,2) -> 2024 | F59: =LEFT(dms_MultiYear_FinalYear_Result,2)&RIGHT(dms_MultiYear_FinalYear_Result,2) | N59: Other | P59: net circuit km added | Q59: net circuit km added | R59: net circuit km added | S59: net circuit km added | Z59: Trees | AI59: Other | AJ59: insert description of 'other' | AK59: Vegetation
P60: total spend $0s | Q60: total spend $0s | R60: total spend $0s | S60: total spend $0s | Z60: Trees | AI60: Overloads | AJ60: - | AK60: Weather
B61: dms_DataQuality_List | P61: 0's | R61: $0s | Z61: Defects | AI61: Planned | AJ61: - | AK61: 2 - STPIS Exclusion (3.3)(a)
B62: Actual | P62: 0's | Z62: Defects | AI62: Network business | AJ62: Network error | AK62: 3 - STPIS Exclusion (3.3)(a)
B63: Estimate | P63: 0's | Z63: Spans | AJ63: Switching and protection error | AK63: 4 - STPIS Exclusion (3.3)(a)
B64: Consolidated | P64: $0s | Z64: km | AI64: Third party | AJ64: Fire | AK64: 5 - STPIS Exclusion (3.3)(a)
B65: Recast | Z65: Spans | AJ65: Other | AK65: 6 - STPIS Exclusion (3.3)(a)
B66: Public | AJ66: Dig-in | AK66: 7 - STPIS Exclusion (3.3)(a)
AJ67: Unauthorised access
B68: For all files either AER or business needs to be able to specify the type of submission | C68: For PTRM & RFM templates we must provide a choice in case they change their form of control - otherwise it is drawn from the business specific lookup table above. | O68: For PTRM files - this field set the text for the named range "DMS_Xfactor" which in all cases is simply the text "x factors" - this saves putting in each old gas PTRM file | W68: for TNSP only | AJ68: Vehicle impact
B69: dms_SourceList | C69: dms_FormControl_Choices | O69: DMS_Xfactor | W69: dms_030601_01_UOM | Y69: dms_030701_01_UOM | Z69: dms_030702_01_UOM | AI69: Unknown | AJ69: Unknown
B70: After appeal | C70: Revenue cap | O70: x factors | W70: % | Y70: Number of spans | Z70: km | AI70: Vegetation | AJ70: Blow-in/Fall-in - NSP responsibility
B71: Draft decision | C71: Revenue yield | W71: number | Y71: Years | Z71: % | AJ71: Grow-in - NSP responsibility
B72: Final decision | C72: Weighted average price cap | W72: number | Y72: Trees | Z72: km | AJ72: Blow-in/Fall-in - Other responsible party
B73: PTRM update 1 | W73: % | Y73: Defects | Z73: number | AJ73: Grow-in - Other responsible party
B74: PTRM update 2 | W74: number | Y74: Number of spans | AI74: Weather
B75: PTRM update 3 | W75: number | Y75: km | AI75: 2 - STPIS Exclusion (3.3)(a)
B76: PTRM update 4 | W76: % | Y76: km | AI76: 3 - STPIS Exclusion (3.3)(a)
B77: PTRM update 5 | W77: number | Y77: Number of spans | AI77: 4 - STPIS Exclusion (3.3)(a)
B78: PTRM update 6 | W78: number | AI78: 5 - STPIS Exclusion (3.3)(a)
B79: PTRM update 7 | W79: % | AI79: 6 - STPIS Exclusion (3.3)(a)
B80: Regulatory proposal | W80: number | AI80: 7 - STPIS Exclusion (3.3)(a)
B81: Reporting | W81: %
B82: Revised regulatory proposal | W82: number
W83: %
W84: number
B88: These are indeces and lookup values for various dates. All step from the value placed in FRCP_y1 on the business and other details worksheet | L88: These date tables are currently used in the Recast templates to provide column headings and conditional formatting
B89: dms_FRCPlength_Num_List | C89: dms_FinalYear_List | D89: dms_CRCPlength_Num_List | E89: dms_CFinalYear_List | F89: dms_FRCP_years | H89: dms_CRCP_years | J89: dms_CRCP_index | L89: CRY from input cell on business sheet | M89: CRY - financial | N89: dms_FinYears | O89: CRY calendar | P89: dms_CalYears
B90: 1 | C90: dms_FRCP_y1 | D90: 1 | E90: CRCP_y1 | F90: =FRCP_y1 -> 2019-20 | G90: dms_FRCP_y1 | H90: =IF(dms_RPT="financial",VALUE(LEFT(dms_FRCP_y1,4)-1)&"-"&TEXT(VALUE(MID(dms_FRCP_y1,3,2)),"00"),VALUE(LEFT(dms_FRCP_y1,4)-1)) -> 2018-19 | I90: dms_CRCP_yZ | J90: 1 | L90: =CRY ->  | M90: =VALUE(LEFT(CRY,4))&"-"&TEXT(MID(CRY,3,2)+1,"00") ->  | N90: dms_CRYf_y1 | O90: =VALUE(LEFT(CRY,4)+1) ->  | P90: dms_CRYc_y1
B91: 2 | C91: dms_FRCP_y2 | D91: 2 | E91: CRCP_y2 | F91: =IF(dms_RPT="financial",VALUE(LEFT(dms_FRCP_y1,4)+1)&"-"&TEXT(VALUE(RIGHT(dms_FRCP_y1,2)+1),"00"),VALUE(LEFT(dms_FRCP_y1,4)+1)) -> 2020-21 | G91: dms_FRCP_y2 | H91: =IF(dms_RPT="financial",VALUE(LEFT(dms_CRCP_yZ,4)-1)&"-"&TEXT(VALUE(MID(dms_CRCP_yZ,3,2)),"00"),VALUE(LEFT(dms_CRCP_yZ,4)-1)) -> 2017-18 | I91: dms_CRCP_yY | J91: 2 | M91: =VALUE(LEFT(dms_CRYf_y1,4)+1)&"-"&TEXT(MID(dms_CRYf_y1,3,2)+2,"00") ->  | N91: dms_CRYf_y2 | O91: =VALUE(LEFT(dms_CRYc_y1,4)+1) ->  | P91: dms_CRYc_y2
B92: 3 | C92: dms_FRCP_y3 | D92: 3 | E92: CRCP_y3 | F92: =IF(dms_RPT="financial",VALUE(LEFT(dms_FRCP_y2,4)+1)&"-"&TEXT(VALUE(RIGHT(dms_FRCP_y2,2)+1),"00"),VALUE(LEFT(dms_FRCP_y2,4)+1)) -> 2021-22 | G92: dms_FRCP_y3 | H92: =IF(dms_RPT="financial",VALUE(LEFT(dms_CRCP_yY,4)-1)&"-"&TEXT(VALUE(MID(dms_CRCP_yY,3,2)),"00"),VALUE(LEFT(dms_CRCP_yY,4)-1)) -> 2016-17 | I92: dms_CRCP_yX | J92: 3 | M92: =VALUE(LEFT(dms_CRYf_y2,4)+1)&"-"&TEXT(MID(dms_CRYf_y2,3,2)+2,"00") ->  | N92: dms_CRYf_y3 | O92: =VALUE(LEFT(dms_CRYc_y2,4)+1) ->  | P92: dms_CRYc_y3
B93: 4 | C93: dms_FRCP_y4 | D93: 4 | E93: CRCP_y4 | F93: =IF(dms_RPT="financial",VALUE(LEFT(dms_FRCP_y3,4)+1)&"-"&TEXT(VALUE(RIGHT(dms_FRCP_y3,2)+1),"00"),VALUE(LEFT(dms_FRCP_y3,4)+1)) -> 2022-23 | G93: dms_FRCP_y4 | H93: =IF(dms_RPT="financial",VALUE(LEFT(dms_CRCP_yX,4)-1)&"-"&TEXT(VALUE(MID(dms_CRCP_yX,3,2)),"00"),VALUE(LEFT(dms_CRCP_yX,4)-1)) -> 2015-16 | I93: dms_CRCP_yW | J93: 4 | M93: =VALUE(LEFT(dms_CRYf_y3,4)+1)&"-"&TEXT(MID(dms_CRYf_y3,3,2)+2,"00") ->  | N93: dms_CRYf_y4 | O93: =VALUE(LEFT(dms_CRYc_y3,4)+1) ->  | P93: dms_CRYc_y4
B94: 5 | C94: dms_FRCP_y5 | D94: 5 | E94: CRCP_y5 | F94: =IF(dms_RPT="financial",VALUE(LEFT(dms_FRCP_y4,4)+1)&"-"&TEXT(VALUE(RIGHT(dms_FRCP_y4,2)+1),"00"),VALUE(LEFT(dms_FRCP_y4,4)+1)) -> 2023-24 | G94: dms_FRCP_y5 | H94: =IF(dms_RPT="financial",VALUE(LEFT(dms_CRCP_yW,4)-1)&"-"&TEXT(VALUE(MID(dms_CRCP_yW,3,2)),"00"),VALUE(LEFT(dms_CRCP_yW,4)-1)) -> 2014-15 | I94: dms_CRCP_yV | J94: 5 | M94: =VALUE(LEFT(dms_CRYf_y4,4)+1)&"-"&TEXT(MID(dms_CRYf_y4,3,2)+2,"00") ->  | N94: dms_CRYf_y5 | O94: =VALUE(LEFT(dms_CRYc_y4,4)+1) ->  | P94: dms_CRYc_y5
B95: 6 | C95: dms_FRCP_y6 | D95: 6 | E95: CRCP_y6 | F95: =IF(dms_RPT="financial",VALUE(LEFT(dms_FRCP_y5,4)+1)&"-"&TEXT(VALUE(RIGHT(dms_FRCP_y5,2)+1),"00"),VALUE(LEFT(dms_FRCP_y5,4)+1)) -> 2024-25 | G95: dms_FRCP_y6 | H95: =IF(dms_RPT="financial",VALUE(LEFT(dms_CRCP_yV,4)-1)&"-"&TEXT(VALUE(MID(dms_CRCP_yV,3,2)),"00"),VALUE(LEFT(dms_CRCP_yV,4)-1)) -> 2013-14 | I95: dms_CRCP_yU | J95: 6 | M95: =VALUE(LEFT(dms_CRYf_y5,4)+1)&"-"&TEXT(MID(dms_CRYf_y5,3,2)+2,"00") ->  | N95: dms_CRYf_y6 | O95: =VALUE(LEFT(dms_CRYc_y5,4)+1) ->  | P95: dms_CRYc_y6
B96: 7 | C96: dms_FRCP_y7 | D96: 7 | E96: CRCP_y7 | F96: =IF(dms_RPT="financial",VALUE(LEFT(dms_FRCP_y6,4)+1)&"-"&TEXT(VALUE(RIGHT(dms_FRCP_y6,2)+1),"00"),VALUE(LEFT(dms_FRCP_y6,4)+1)) -> 2025-26 | G96: dms_FRCP_y7 | H96: =IF(dms_RPT="financial",VALUE(LEFT(dms_CRCP_yU,4)-1)&"-"&TEXT(VALUE(MID(dms_CRCP_yU,3,2)),"00"),VALUE(LEFT(dms_CRCP_yU,4)-1)) -> 2012-13 | I96: dms_CRCP_yT | J96: 7 | M96: =VALUE(LEFT(dms_CRYf_y6,4)+1)&"-"&TEXT(MID(dms_CRYf_y6,3,2)+2,"00") ->  | N96: dms_CRYf_y7 | O96: =VALUE(LEFT(dms_CRYc_y6,4)+1) ->  | P96: dms_CRYc_y7
B97: 8 | C97: dms_FRCP_y8 | D97: 8 | E97: CRCP_y8 | F97: =IF(dms_RPT="financial",VALUE(LEFT(dms_FRCP_y7,4)+1)&"-"&TEXT(VALUE(RIGHT(dms_FRCP_y7,2)+1),"00"),VALUE(LEFT(dms_FRCP_y7,4)+1)) -> 2026-27 | G97: dms_FRCP_y8 | H97: =IF(dms_RPT="financial",VALUE(LEFT(dms_CRCP_yT,4)-1)&"-"&TEXT(VALUE(MID(dms_CRCP_yT,3,2)),"00"),VALUE(LEFT(dms_CRCP_yT,4)-1)) -> 2011-12 | I97: dms_CRCP_yS | J97: 8 | M97: =VALUE(LEFT(dms_CRYf_y7,4)+1)&"-"&TEXT(MID(dms_CRYf_y7,3,2)+2,"00") ->  | N97: dms_CRYf_y8 | O97: =VALUE(LEFT(dms_CRYc_y7,4)+1) ->  | P97: dms_CRYc_y8
B98: 9 | C98: dms_FRCP_y9 | D98: 9 | E98: CRCP_y9 | F98: =IF(dms_RPT="financial",VALUE(LEFT(dms_FRCP_y8,4)+1)&"-"&TEXT(VALUE(RIGHT(dms_FRCP_y8,2)+1),"00"),VALUE(LEFT(dms_FRCP_y8,4)+1)) -> 2027-28 | G98: dms_FRCP_y9 | H98: =IF(dms_RPT="financial",VALUE(LEFT(dms_CRCP_yS,4)-1)&"-"&TEXT(VALUE(MID(dms_CRCP_yS,3,2)),"00"),VALUE(LEFT(dms_CRCP_yS,4)-1)) -> 2010-11 | I98: dms_CRCP_yR | J98: 9 | M98: =VALUE(LEFT(dms_CRYf_y8,4)+1)&"-"&TEXT(MID(dms_CRYf_y8,3,2)+2,"00") ->  | N98: dms_CRYf_y9 | O98: =VALUE(LEFT(dms_CRYc_y8,4)+1) ->  | P98: dms_CRYc_y9
B99: 10 | C99: dms_FRCP_y10 | D99: 10 | E99: CRCP_y10 | F99: =IF(dms_RPT="financial",VALUE(LEFT(dms_FRCP_y9,4)+1)&"-"&TEXT(VALUE(RIGHT(dms_FRCP_y9,2)+1),"00"),VALUE(LEFT(dms_FRCP_y9,4)+1)) -> 2028-29 | G99: dms_FRCP_y10 | H99: =IF(dms_RPT="financial",VALUE(LEFT(dms_CRCP_yR,4)-1)&"-"&TEXT(VALUE(MID(dms_CRCP_yR,3,2)),"00"),VALUE(LEFT(dms_CRCP_yR,4)-1)) -> 2009-10 | I99: dms_CRCP_yQ | J99: 10 | M99: =VALUE(LEFT(dms_CRYf_y9,4)+1)&"-"&TEXT(MID(dms_CRYf_y9,3,2)+2,"00") ->  | N99: dms_CRYf_y10 | O99: =VALUE(LEFT(dms_CRYc_y9,4)+1) ->  | P99: dms_CRYc_y10
B100: 11 | C100: dms_FRCP_y11 | D100: 11 | E100: CRCP_y11 | F100: =IF(dms_RPT="financial",VALUE(LEFT(dms_FRCP_y10,4)+1)&"-"&TEXT(VALUE(RIGHT(dms_FRCP_y10,2)+1),"00"),VALUE(LEFT(dms_FRCP_y10,4)+1)) -> 2029-30 | G100: dms_FRCP_y11 | H100: =IF(dms_RPT="financial",VALUE(LEFT(dms_CRCP_yQ,4)-1)&"-"&TEXT(VALUE(MID(dms_CRCP_yQ,3,2)),"00"),VALUE(LEFT(dms_CRCP_yQ,4)-1)) -> 2008-09 | I100: dms_CRCP_yP | J100: 11 | M100: =VALUE(LEFT(dms_CRYf_y10,4)+1)&"-"&TEXT(MID(dms_CRYf_y10,3,2)+2,"00") ->  | N100: dms_CRYf_y11 | O100: =VALUE(LEFT(dms_CRYc_y10,4)+1) ->  | P100: dms_CRYc_y11
B101: 12 | C101: dms_FRCP_y12 | D101: 12 | E101: CRCP_y12 | F101: =IF(dms_RPT="financial",VALUE(LEFT(dms_FRCP_y11,4)+1)&"-"&TEXT(VALUE(RIGHT(dms_FRCP_y11,2)+1),"00"),VALUE(LEFT(dms_FRCP_y11,4)+1)) -> 2030-31 | G101: dms_FRCP_y12 | H101: =IF(dms_RPT="financial",VALUE(LEFT(dms_CRCP_yP,4)-1)&"-"&TEXT(VALUE(MID(dms_CRCP_yP,3,2)),"00"),VALUE(LEFT(dms_CRCP_yP,4)-1)) -> 2007-08 | I101: dms_CRCP_yO | J101: 12 | M101: =VALUE(LEFT(dms_CRYf_y11,4)+1)&"-"&TEXT(MID(dms_CRYf_y11,3,2)+2,"00") ->  | N101: dms_CRYf_y12 | O101: =VALUE(LEFT(dms_CRYc_y11,4)+1) ->  | P101: dms_CRYc_y12
B102: 13 | C102: dms_FRCP_y13 | D102: 13 | E102: CRCP_y13 | F102: =IF(dms_RPT="financial",VALUE(LEFT(dms_FRCP_y12,4)+1)&"-"&TEXT(VALUE(RIGHT(dms_FRCP_y12,2)+1),"00"),VALUE(LEFT(dms_FRCP_y12,4)+1)) -> 2031-32 | G102: dms_FRCP_y13 | H102: =IF(dms_RPT="financial",VALUE(LEFT(dms_CRCP_yO,4)-1)&"-"&TEXT(VALUE(MID(dms_CRCP_yO,3,2)),"00"),VALUE(LEFT(dms_CRCP_yO,4)-1)) -> 2006-07 | I102: dms_CRCP_yN | J102: 13 | M102: =VALUE(LEFT(dms_CRYf_y12,4)+1)&"-"&TEXT(MID(dms_CRYf_y12,3,2)+2,"00") ->  | N102: dms_CRYf_y13 | O102: =VALUE(LEFT(dms_CRYc_y12,4)+1) ->  | P102: dms_CRYc_y13
B103: 14 | C103: dms_FRCP_y14 | D103: 14 | E103: CRCP_y14 | F103: =IF(dms_RPT="financial",VALUE(LEFT(dms_FRCP_y13,4)+1)&"-"&TEXT(VALUE(RIGHT(dms_FRCP_y13,2)+1),"00"),VALUE(LEFT(dms_FRCP_y13,4)+1)) -> 2032-33 | G103: dms_FRCP_y14 | H103: =IF(dms_RPT="financial",VALUE(LEFT(dms_CRCP_yN,4)-1)&"-"&TEXT(VALUE(MID(dms_CRCP_yN,3,2)),"00"),VALUE(LEFT(dms_CRCP_yN,4)-1)) -> 2005-06 | I103: dms_CRCP_yM | J103: 14 | M103: =VALUE(LEFT(dms_CRYf_y13,4)+1)&"-"&TEXT(MID(dms_CRYf_y13,3,2)+2,"00") ->  | N103: dms_CRYf_y14 | O103: =VALUE(LEFT(dms_CRYc_y13,4)+1) ->  | P103: dms_CRYc_y14
B104: 15 | C104: dms_FRCP_y15 | D104: 15 | E104: CRCP_y15 | F104: =IF(dms_RPT="financial",VALUE(LEFT(dms_FRCP_y14,4)+1)&"-"&TEXT(VALUE(RIGHT(dms_FRCP_y14,2)+1),"00"),VALUE(LEFT(dms_FRCP_y14,4)+1)) -> 2033-34 | G104: dms_FRCP_y15 | H104: =IF(dms_RPT="financial",VALUE(LEFT(dms_CRCP_yM,4)-1)&"-"&TEXT(VALUE(MID(dms_CRCP_yM,3,2)),"00"),VALUE(LEFT(dms_CRCP_yM,4)-1)) -> 2004-05 | I104: dms_CRCP_yL | J104: 15 | M104: =VALUE(LEFT(dms_CRYf_y14,4)+1)&"-"&TEXT(MID(dms_CRYf_y14,3,2)+2,"00") ->  | N104: dms_CRYf_y15 | O104: =VALUE(LEFT(dms_CRYc_y14,4)+1) ->  | P104: dms_CRYc_y15
M105: =VALUE(LEFT(dms_CRYf_y15,4)+1)&"-"&TEXT(MID(dms_CRYf_y15,3,2)+2,"00") ->  | N105: dms_CRYf_y16 | O105: =VALUE(LEFT(dms_CRYc_y15,4)+1) ->  | P105: dms_CRYc_y16
B106: These are drop down lists for businesses to select the correct FRCP_y1 on the business and other details worksheet. This also populates the column headings in the worksheets | M106: =VALUE(LEFT(dms_CRYf_y16,4)+1)&"-"&TEXT(MID(dms_CRYf_y16,3,2)+2,"00") ->  | N106: dms_CRYf_y17 | O106: =VALUE(LEFT(dms_CRYc_y16,4)+1) ->  | P106: dms_CRYc_y17
B107: dms_RCP_fyear_list | C107: dms_CRY_ListF | D107: dms_CRY_ListC | E107: dms_RCP_cyear_list | F107: dms_FRCP_fyear_list | G107: dms_FRCP_ListF | H107: dms_FRCP_ListC | I107: dms_FRCP_cyear_list | M107: =VALUE(LEFT(dms_CRYf_y17,4)+1)&"-"&TEXT(MID(dms_CRYf_y17,3,2)+2,"00") ->  | N107: dms_CRYf_y18 | O107: =VALUE(LEFT(dms_CRYc_y17,4)+1) ->  | P107: dms_CRYc_y18
B108: dms_fy1 | C108: 2006-07 | D108: 2007 | E108: dms_cy1 | F108: dms_frcp_fy1 | G108: 2016-17 | H108: 2017 | I108: dms_crcp_cy1 | M108: =VALUE(LEFT(dms_CRYf_y18,4)+1)&"-"&TEXT(MID(dms_CRYf_y18,3,2)+2,"00") ->  | N108: dms_CRYf_y19 | O108: =VALUE(LEFT(dms_CRYc_y18,4)+1) ->  | P108: dms_CRYc_y19
B109: dms_fy2 | C109: 2007-08 | D109: 2008 | E109: dms_cy2 | F109: dms_frcp_fy2 | G109: 2017-18 | H109: 2018 | I109: dms_crcp_cy2 | M109: =VALUE(LEFT(dms_CRYf_y19,4)+1)&"-"&TEXT(MID(dms_CRYf_y19,3,2)+2,"00") ->  | N109: dms_CRYf_y20 | O109: =VALUE(LEFT(dms_CRYc_y19,4)+1) ->  | P109: dms_CRYc_y20
B110: dms_fy3 | C110: 2008-09 | D110: 2009 | E110: dms_cy3 | F110: dms_frcp_fy3 | G110: 2018-19 | H110: 2019 | I110: dms_crcp_cy3
B111: dms_fy4 | C111: 2009-10 | D111: 2010 | E111: dms_cy4 | F111: dms_frcp_fy4 | G111: 2019-20 | H111: 2020 | I111: dms_crcp_cy4
B112: dms_fy5 | C112: 2010-11 | D112: 2011 | E112: dms_cy5 | F112: dms_frcp_fy5 | G112: 2020-21 | H112: 2021 | I112: dms_crcp_cy5
B113: dms_fy6 | C113: 2011-12 | D113: 2012 | E113: dms_cy6 | F113: dms_frcp_fy6 | G113: 2021-22 | H113: 2022 | I113: dms_crcp_cy6
B114: dms_fy7 | C114: 2012-13 | D114: 2013 | E114: dms_cy7 | F114: dms_frcp_fy7 | G114: 2022-23 | H114: 2023 | I114: dms_crcp_cy7
B115: dms_fy8 | C115: 2013-14 | D115: 2014 | E115: dms_cy8 | F115: dms_frcp_fy8 | G115: 2023-24 | H115: 2024 | I115: dms_crcp_cy8 | L115: 2005-06 | M115: 2006
B116: dms_fy9 | C116: 2014-15 | D116: 2015 | E116: dms_cy9 | F116: dms_frcp_fy9 | G116: 2024-25 | H116: 2025 | I116: dms_crcp_cy9 | L116: 2006-07 | M116: 2007
B117: dms_fy10 | C117: 2015-16 | D117: 2016 | E117: dms_cy10 | F117: dms_frcp_fy10 | G117: 2025-26 | H117: 2026 | I117: dms_crcp_cy10 | L117: 2007-08 | M117: 2008
B118: dms_fy11 | C118: 2016-17 | D118: 2017 | E118: dms_cy11 | F118: dms_frcp_fy11 | G118: 2026-27 | H118: 2027 | I118: dms_crcp_cy11 | L118: 2008-09 | M118: 2009
B119: dms_fy12 | C119: 2017-18 | D119: 2018 | E119: dms_cy12 | F119: dms_frcp_fy12 | G119: 2027-28 | H119: 2028 | I119: dms_crcp_cy12 | L119: 2009-10 | M119: 2010
B120: dms_fy13 | C120: 2018-19 | D120: 2019 | E120: dms_cy13 | F120: dms_frcp_fy13 | G120: 2028-29 | H120: 2029 | I120: dms_crcp_cy13 | L120: 2010-11 | M120: 2011
B121: dms_fy14 | C121: 2019-20 | D121: 2020 | E121: dms_cy14 | F121: dms_frcp_fy14 | G121: 2029-30 | H121: 2030 | I121: dms_crcp_cy14 | L121: 2011-12 | M121: 2012
B122: dms_fy15 | C122: 2019-20 | D122: 2020 | E122: dms_cy15 | F122: dms_frcp_fy15 | G122: 2030-31 | H122: 2031 | I122: dms_crcp_cy15 | L122: 2012-13 | M122: 2013
B123: dms_fy16 | C123: 2020-21 | D123: 2021 | E123: dms_cy16 | L123: 2013-14 | M123: 2014
B124: dms_fy17 | C124: 2021-22 | D124: 2022 | E124: dms_cy17 | L124: 2014-15 | M124: 2015
B125: dms_fy18 | C125: 2022-23 | D125: 2023 | E125: dms_cy18 | L125: 2015-16 | M125: 2016
B126: dms_fy19 | C126: 2023-24 | D126: 2024 | E126: dms_cy19 | L126: 2016-17 | M126: 2017
B127: dms_fy20 | C127: 2024-25 | D127: 2025 | E127: dms_cy20 | L127: 2017-18 | M127: 2018
L128: 2018-19 | M128: 2019
L129: 2019-20 | M129: 2020
L130: 2020-21 | M130: 2021
L131: 2021-22 | M131: 2022
L132: 2022-23 | M132: 2023
L133: 2023-24 | M133: 2024
L134: 2024-25 | M134: 2025
L135: 2025-26 | M135: 2026
L136: 2026-27 | M136: 2027
L137: 2027-28 | M137: 2028
L138: 2028-29 | M138: 2029
L139: 2029-30 | M139: 2030
L140: 2030-31 | M140: 2031
L141: 2031-32 | M141: 2032
L142: 2032-33 | M142: 2033
L143: 2033-34 | M143: 2034
L144: 2034-35 | M144: 2035
L145: 2035-36 | M145: 2036

Sheet Contents
C1: REGULATORY REPORTING STATEMENT
C2: =dms_TradingName -> TasNetworks (T)
C3: =CONCATENATE(FRCP_y1," to ",FRCP_y5) -> 2019-20 to 2023-24
C4: Contents
F7: 1. Business details | M7: 2. Expenditure | T7: 3. Economic benchmarking
F26: 5. Network information | T26: 7. Other templates

Sheet Instructions
B2: =CONCATENATE(dms_Segment," Network Service Provider") -> Transmission Network Service Provider
B3: =IF(dms_Model="Reset","Regulatory Proposal RIN Template","Annual Reporting RIN") -> Regulatory Proposal RIN Template
C4: =CONCATENATE("This template is to be used by ",dms_TradingName," to fulfil its reporting obligations to the AER.") -> This template is to be used by TasNetworks (T) to fulfil its reporting obligations to the AER.
C5: INSTRUCTIONS
C6: Complete the Business & other details worksheet before entering data or values in any other worksheets. The Business & other details worksheet is linked to other worksheets within the workbook and automatically generates certain column headings and conditional formatting.
C8: Identifying CONFIDENTIAL INFORMATION: Please use the macro at the top of each worksheet to identify confidential information.
C9: -Do this by selecting the cell or cells that contain confidential information and then run the Mark selection CONFIDENTIAL macro. This will format the cells a specific colour that is identified by the AER's database which in turn marks that information as confidential. -To reverse this, select the cell or cells and run the Return selection to NON-CONFIDENTIAL macro.
C11: UNITS OF MEASURE All amounts are to be unrounded and reported on a one for one basis: that is 1000 is to be entered as '1000'. Applicable units of measure may be identified in the table column headings or row descriptors.
C13: COLOUR CODING OF INPUT / NON-INPUT CELLS:
D14: Yellow = Input cell (mandatory)
D15: Darker yellow = input cell (mandatory)
D16: Orange = input cell (if data available)
D17: Grey = Not applicable/No inputs required
D18: PLEASE DO NOT ENTER TEXT into cells that are to contain numeric data.
C21: WORKSHEET NAVIGATION Many tables in the worksheets have been "grouped" to allow for easy navigation. To ungroup or group data use the outline symbols in the left margin (for Row groupings) or above the columns (for column groupings).
C23: RETURNING COMPLETED RESPONSES Please return two (2) files to the AER: 1. A confidential version which must contain a complete set of all responses with confidential information marked using the Mark selection CONFIDENTIAL macro and which has been completed using the locked template file provided by the AER. 2. A public version with confidential information either removed completely or aggregated in some form together with writtten consent to disclose the public version of the response. Use the drop down box on the Business and other details worksheet to identify the file as either confidential ('consolidated') or public.
C25: SUBMITTING AMENDED DATA TO THE AER If an NSP wishes to correct data previously submitted to the AER it should resubmit that data using the original completed submission as the starting point. Please make any necessary changes to the data. Data that is not being amended should be left unchanged. NSPs must identify the reason for the amendments in the Amendment Reason box on the Business and other details worksheet. NSPs may provide further details regarding any amendments in the Amendments worksheet. .
C26: NSP may use Amended Data macro to highlight cells that contain amended data. NB: if data is also CONFIDENTIAL, re-apply the Confidentiality macro after applying the Amended macro
C27: Please resubmit two (2) files - a confidential version and a public version of the amended submission to the AER

Sheet Business & other details
B1: =IF(dms_DataQuality="backcast",INDEX(dms_Worksheet_List,MATCH(dms_Model,dms_Model_List))&" BACKCAST",INDEX(dms_Worksheet_List,MATCH(dms_Model,dms_Model_List))) -> REGULATORY REPORTING STATEMENT
B2: =INDEX(dms_TradingNameFull_List,MATCH(dms_TradingName,dms_TradingName_List)) -> TasNetworks (T)
B3: =IF(SUM(dms_SingleYear_Model)>0,CRY,CONCATENATE(FRCP_y1," to ",dms_MultiYear_FinalYear_Result)) -> 2019-20 to 2023-24
B4: BUSINESS & OTHER DETAILS
B7: Instructions
B8: Complete the following business details regulatory template before entering data or values in any other regulatory template. This regulatory template is linked to other cells within the spreadsheet and automatically generates column headings and conditional formatting to distinguish business specific input and non-input cells.
B10: SUBMISSION PARTICULARS INPUT SHEETS
B12: ENTITY DETAILS
B14: Short name | C14: TasNetworks (T)
B15: ACN / ABN | C15: =INDEX(dms_ABN_List,MATCH(dms_TradingName,dms_TradingName_List)) -> 24167357299
B18: Business address | C18: Address 1 | E18: =INDEX(dms_Addr1_List,MATCH(dms_TradingName,dms_TradingName_List)) -> 1-7 Maria Street
D19: Address 2 | E19: =IF(ISBLANK(INDEX(dms_Addr2_List,MATCH(dms_TradingName,dms_TradingName_List))),"",INDEX(dms_Addr2_List,MATCH(dms_TradingName,dms_TradingName_List))) -> 
C20: Suburb | E20: =INDEX(dms_Suburb_List,MATCH(dms_TradingName,dms_TradingName_List)) -> LENAH VALLEY
D21: State | E21: =INDEX(dms_State_List,MATCH(dms_TradingName,dms_TradingName_List)) -> Tas | F21: p/code | G21: =INDEX(dms_PostCode_List,MATCH(dms_TradingName,dms_TradingName_List)) -> 7008
B23: Postal address | C23: Address 1 | E23: =INDEX(dms_PAddr1_List,MATCH(dms_TradingName,dms_TradingName_List)) -> PO Box 606
D24: Address 2 | E24: =IF(ISBLANK(INDEX(dms_PAddr2_List,MATCH(dms_TradingName,dms_TradingName_List))),"",INDEX(dms_PAddr2_List,MATCH(dms_TradingName,dms_TradingName_List))) -> 
C25: Suburb | E25: =INDEX(dms_PSuburb_List,MATCH(dms_TradingName,dms_TradingName_List)) -> MOONAH
D26: State | E26: =INDEX(dms_PState_List,MATCH(dms_TradingName,dms_TradingName_List)) -> Tas | F26: p/code | G26: =INDEX(dms_PPostCode_List,MATCH(dms_TradingName,dms_TradingName_List)) -> 7009
B29: Contact name/s | C29: John Sayers
B30: Contact phone/s
B31: Contact email address/s | C31: john.sayers@tasnetworks.com.au
B33: REGULATORY CONTROL PERIODS
B35: Forthcoming regulatory control period | C35: 2019-20 | D35: =dms_FRCP_y2 -> 2020-21 | E35: =dms_FRCP_y3 -> 2021-22 | F35: =dms_FRCP_y4 -> 2022-23 | G35: =dms_FRCP_y5 -> 2023-24 | H35: =dms_FRCP_y6 -> 2024-25 | I35: =dms_FRCP_y7 -> 2025-26 | J35: =dms_FRCP_y8 -> 2026-27 | K35: =dms_FRCP_y9 -> 2027-28 | L35: =dms_FRCP_y10 -> 2028-29
B38: Current regulatory control period | C38: =dms_CRCP_FirstYear_Result -> 2014-15 | D38: =IF(dms_RPT="financial",VALUE(LEFT(CRCP_y1,4)+1)&"-"&TEXT(MID(CRCP_y1,3,2)+2,"00"),VALUE(LEFT(CRCP_y1,4)+1)) -> 2015-16 | E38: =IF(dms_RPT="financial",VALUE(LEFT(CRCP_y2,4)+1)&"-"&TEXT(VALUE(MID(CRCP_y2,3,2)+2),"00"),VALUE(LEFT(CRCP_y2,4)+1)) -> 2016-17 | F38: =IF(dms_RPT="financial",VALUE(LEFT(CRCP_y3,4)+1)&"-"&TEXT(VALUE(MID(CRCP_y3,3,2)+2),"00"),VALUE(LEFT(CRCP_y3,4)+1)) -> 2017-18 | G38: =IF(dms_RPT="financial",VALUE(LEFT(CRCP_y4,4)+1)&"-"&TEXT(VALUE(MID(CRCP_y4,3,2)+2),"00"),VALUE(LEFT(CRCP_y4,4)+1)) -> 2018-19 | H38: =IF(dms_RPT="financial",VALUE(LEFT(CRCP_y5,4)+1)&"-"&TEXT(VALUE(MID(CRCP_y5,3,2)+2),"00"),VALUE(LEFT(CRCP_y5,4)+1)) -> 2019-20 | I38: =IF(dms_RPT="financial",VALUE(LEFT(CRCP_y6,4)+1)&"-"&TEXT(VALUE(MID(CRCP_y6,3,2)+2),"00"),VALUE(LEFT(CRCP_y6,4)+1)) -> 2020-21 | J38: =IF(dms_RPT="financial",VALUE(LEFT(CRCP_y7,4)+1)&"-"&TEXT(VALUE(MID(CRCP_y7,3,2)+2),"00"),VALUE(LEFT(CRCP_y7,4)+1)) -> 2021-22 | K38: =IF(dms_RPT="financial",VALUE(LEFT(CRCP_y8,4)+1)&"-"&TEXT(VALUE(MID(CRCP_y8,3,2)+2),"00"),VALUE(LEFT(CRCP_y8,4)+1)) -> 2022-23 | L38: =IF(dms_RPT="financial",VALUE(LEFT(CRCP_y9,4)+1)&"-"&TEXT(VALUE(MID(CRCP_y9,3,2)+2),"00"),VALUE(LEFT(CRCP_y9,4)+1)) -> 2023-24
B41: Previous regulatory control period | C41: =IF(dms_RPT="financial",VALUE(LEFT(PRCP_y2,4)-1)&"-"&TEXT(VALUE(MID(PRCP_y2,3,2)),"00"),VALUE(LEFT(PRCP_y2,4)-1)) -> 2009-10 | D41: =IF(dms_RPT="financial",VALUE(LEFT(PRCP_y3,4)-1)&"-"&TEXT(VALUE(MID(PRCP_y3,3,2)),"00"),VALUE(LEFT(PRCP_y3,4)-1)) -> 2010-11 | E41: =IF(dms_RPT="financial",VALUE(LEFT(PRCP_y4,4)-1)&"-"&TEXT(VALUE(MID(PRCP_y4,3,2)),"00"),VALUE(LEFT(PRCP_y4,4)-1)) -> 2011-12 | F41: =IF(dms_RPT="financial",VALUE(LEFT(PRCP_y5,4)-1)&"-"&TEXT(VALUE(RIGHT(PRCP_y5,2)-1),"00"),VALUE(LEFT(PRCP_y5,4)-1)) -> 2012-13 | G41: =IF(dms_RPT="financial",VALUE(LEFT(CRCP_y1,4)-1)&"-"&TEXT(VALUE(RIGHT(CRCP_y1,2)-1),"00"),VALUE(LEFT(CRCP_y1,4)-1)) -> 2013-14
B44: Current regulatory year | C44: 2013-14 | D44: CRY
B50: Source | C50: Regulatory proposal | E50: Please select the correct submission type from the dropdown list.
B51: Data quality (actual, estimate, public, consolidated) | C51: Consolidated
B52: Amended RIN submission - amendment reason
B53: Submission Date | C53: dd/mm/yyyy | D53: dms_SubmissionDate | E53: Please enter date this file submitted to AER (dd/mm/yyyy)
B54: EBSS - First application of scheme in forthcoming period? | C54: Yes
B55: Sector | C55: =INDEX(dms_Sector_List,MATCH(dms_TradingName,dms_TradingName_List)) -> Electricity | D55: dms_Sector | E55: =INDEX(dms_Sector_List,MATCH(dms_TradingName,dms_TradingName_List))
B56: Segment | C56: =INDEX(dms_Segment_List,MATCH(dms_TradingName,dms_TradingName_List)) -> Transmission | D56: dms_Segment | E56: =INDEX(dms_Segment_List,MATCH(dms_TradingName,dms_TradingName_List))
B57: Regulatory Year Ending | C57: =IF(dms_MultiYear_Flag=1,LEFT(dms_Specified_FinalYear,2)&RIGHT(dms_Specified_FinalYear,2),INDEX(dms_RYE_Formula_Result,MATCH(dms_Model,dms_Model_List))) -> 2024 | D57: dms_RYE | E57: =IF(dms_MultiYear_Flag=1,LEFT(dms_Specified_FinalYear,2)&RIGHT(dms_Specified_FinalYear,2),INDEX(dms_RYE_Formula_Result,MATCH(dms_Model,dms_Model_List)))
B58: Reporting Period Type | C58: =INDEX(dms_RPT_List,MATCH(dms_TradingName,dms_TradingName_List)) -> Financial | D58: dms_RPT | E58: =INDEX(dms_RPT_List,MATCH(dms_TradingName,dms_TradingName_List))
B59: Model or RIN Type | C59: Reset | D59: dms_Model | E59: Drop down selection
B60: Security Classification | C60: Public | D60: dms_Classification | E60: Always Public
B61: Template - version no. | C61: 5 | D61: dms_TemplateNumber
B62: Dollar $ real month | C62: =INDEX(dms_RPTMonth_List,MATCH(dms_TradingName,dms_TradingName_List)) -> June | D62: dms_RPTMonth | E62: =INDEX(dms_RPTMonth_List,MATCH(dms_TradingName,dms_TradingName_List))
B63: Dollar $ real (the last month before the FRCP_y1) | C63: =CONCATENATE(dms_RPTMonth)&" "&VALUE((LEFT(dms_CRCP_FinalYear_Result,2)&RIGHT(dms_CRCP_FinalYear_Result,2))) -> June 2019 | D63: dms_DollarReal | E63: =IF(SUM(dms_SingleYear_Model)>0,CONCATENATE(dms_RPTMonth)&" "&VALUE((LEFT(CRY,2))&RIGHT(CRY,2)),CONCATENATE(dms_RPTMonth)&" "&VALUE((LEFT(dms_CRCP_FinalYear_Result,2)&RIGHT(dms_CRCP_FinalYear_Result,2))))
B64: Form of control | C64: =INDEX(dms_FormControl_List,MATCH(dms_TradingName,dms_TradingName_List)) -> Revenue cap | D64: dms_FormControl | E64: =INDEX(dms_FormControl_List,MATCH(dms_TradingName,dms_TradingName_List))
B65: Calendar Year for table 3.6 data | C65: =VALUE(dms_RYE)-1 -> 2023 | D65: dms_0306_Year | E65: =VALUE(dms_RYE)-1
B66: RIN response - version no. | C66: 1 | D66: dms_RINversion
B67: Jurisdiction | C67: =INDEX(dms_JurisdictionList,MATCH(dms_TradingName,dms_TradingName_List)) -> Tas | D67: dms_Jurisdiction | E67: =INDEX(dms_JurisdictionList,MATCH(dms_TradingName,dms_TradingName_List))
B68: Backcast Multiyear EB, CA or ARR? | C68: 0 | D68: dms_MultiYear_Flag | E68: 1=y, 0-n
C69: 2013 | D69: dms_Specified_FinalYear | E69: The result here is returned to dms_CRCP_FinalYear_Result if dms_MultiYear_Flag is set to 1
B70: Single Year Model T/F | C70: =IF(dms_Model="EB",1,0) -> 0 | D70: dms_EB
C71: =IF(dms_Model="CA",1,0) -> 0 | D71: dms_CA | E71: =dms_SingleYear_Model
C72: =IF(dms_Model="ARR",1,0) -> 0 | D72: dms_ARR
B73: Single Year Final Year Reference | C73: CRY | D73: dms_SingleYear_FinalYear_Ref | E73: This is the reference for EB, CA & ARR RINs
B74: Single Year Final Year Result | C74: =INDIRECT(dms_SingleYear_FinalYear_Ref) ->  | D74: dms_SingleYear_FinalYear_Result | E74: =INDIRECT(dms_SingleYear_FinalYear_Ref) | I74: Formula errors OK
B75: FRCP length in years | C75: =INDEX(dms_FRCPlength_List,MATCH(dms_TradingName,dms_TradingName_List)) -> 5 | D75: dms_FRCPlength_Num | E75: =INDEX(dms_FRCPlength_List,MATCH(dms_TradingName,dms_TradingName_List))
B76: Multi Year Final Year Reference | C76: =INDEX(dms_FinalYear_List,MATCH(dms_FRCPlength_Num,dms_FRCPlength_Num_List)) -> dms_FRCP_y5 | D76: dms_MultiYear_FinalYear_Ref | E76: =INDEX(dms_FinalYear_List,MATCH(dms_FRCPlength_Num,dms_FRCPlength_Num_List))
B77: Multi Year Final Year Result | C77: =IF(dms_MultiYear_Flag=0,INDIRECT(dms_MultiYear_FinalYear_Ref),dms_Specified_FinalYear) -> 2023-24 | D77: dms_MultiYear_FinalYear_Result | E77: =IF(dms_MultiYear_Flag=0,INDIRECT(dms_MultiYear_FinalYear_Ref),dms_Specified_FinalYear) | I77: Formula errors OK
B78: CRCP length in years | C78: =INDEX(dms_CRCPlength_List,MATCH(dms_TradingName,dms_TradingName_List)) -> 5 | D78: dms_CRCPlength_Num | E78: =INDEX(dms_CRCPlength_List,MATCH(dms_TradingName,dms_TradingName_List))
B79: CRCP Final Year Reference | C79: =INDEX(dms_CFinalYear_List,MATCH(dms_CRCPlength_Num,dms_CRCPlength_Num_List)) -> CRCP_y5 | D79: dms_CRCP_FinalYear_Ref | E79: =INDEX(dms_CFinalYear_List,MATCH(dms_CRCPlength_Num,dms_CRCPlength_Num_List))
B80: CRCP First Year Result | C80: =INDEX(dms_CRCP_years,MATCH(dms_CRCPlength_Num,dms_CRCP_index)) -> 2014-15 | D80: dms_CRCP_FirstYear_Result | E80: =INDEX(dms_CRCP_years,MATCH(dms_CRCPlength_Num,dms_CRCP_index))
B81: CRCP Final Year Result | C81: =IF(dms_MultiYear_Flag=0,(IF(SUM(dms_SingleYear_Model)>0,CRY,dms_CRCP_yZ)),dms_Specified_FinalYear) -> 2018-19 | D81: dms_CRCP_FinalYear_Result | E81: =IF(dms_MultiYear_Flag=0,(IF(SUM(dms_SingleYear_Model)>0,CRY,dms_CRCP_yZ)),dms_Specified_FinalYear)
B82: Table 6.6.3 - Public lighting repair - no. business days | C82: =INDEX(dms_663_List,MATCH(dms_TradingName,dms_TradingName_List)) -> 5 | D82: dms_663
B83: Distribution Determination Reference | C83: =INDEX(dms_DeterminationRef_List,MATCH(dms_TradingName,dms_TradingName_List)) -> transmission determination
B84: Backcast templates only - unit of measure | C84: $0s | D84: dms_Backcast_UOM | E84: If the cover sheet is for Backcast data ensure to apply dms_Backcast_UOM named range to this field. Otherwise, do not apply this named range.
B85: EB/CA Unit of Measure for Monetary Values | C85: $0s | D85: dms_dollar_nom_UOM | E85: If the cover sheet is attached to an EB files make sure this field is set
B87: discard this record? | C87: NO | D87: dms_DISCARD | E87: If record is to be discarded from DB set this flag to YES
B88: CBD Feeder for this business | C88: =INDEX(dms_CBD_flag,MATCH(dms_TradingName,dms_TradingName_List)) -> 0 | D88: dms_CBD_flag_NSP
B89: Urban Feeder for this business | C89: =INDEX(dms_Urban_flag,MATCH(dms_TradingName,dms_TradingName_List)) -> 0 | D89: dms_Urban_flag_NSP
B90: Short rural Feeder for this business | C90: =INDEX(dms_ShortRural_flag,MATCH(dms_TradingName,dms_TradingName_List)) -> 0 | D90: dms_ShortRural_flag_NSP
B91: Long rural Feeder for this business | C91: =INDEX(dms_LongRural_flag,MATCH(dms_TradingName,dms_TradingName_List)) -> 0 | D91: dms_LongRural_flag_NSP
B93: USES NAMED RANGES FLAG | C93: yes | D93: dms_Defined_Names_Used

Sheet CPI series
B1: =SheetHeader -> REGULATORY REPORTING STATEMENT
B2: =dms_TradingName -> TasNetworks (T)
B3: =dms_Reg_Year_Span -> 2019-20 to 2023-24
B4: CPI SERIES
B8: NOMINATED CPI SERIES
B10: Name of CPI series | C10: ABS CPI Index - June (rebased)
C12: =CRCP_y1 -> 2014-15 | D12: =CRCP_y2 -> 2015-16 | E12: =CRCP_y3 -> 2016-17 | F12: =CRCP_y4 -> 2017-18 | G12: =CRCP_y5 -> 2018-19 | H12: =FRCP_y1 -> 2019-20 | I12: =FRCP_y2 -> 2020-21 | J12: =FRCP_y3 -> 2021-22 | K12: =FRCP_y4 -> 2022-23 | L12: =FRCP_y5 -> 2023-24
B13: Series data | C13: 107.5 | D13: 108.6 | E13: 110.7 | F13: =ROUND(113.41215,1) -> 113.4 | G13: =ROUND(116.190747675,1) -> 116.2 | H13: =ROUND(119.037420993038,1) -> 119 | I13: =ROUND(121.953837807367,1) -> 122 | J13: =ROUND(124.941706833647,1) -> 124.9 | K13: =ROUND(128.002778651072,1) -> 128 | L13: =ROUND(131.138846728023,1) -> 131.1

Sheet 2.1 Expenditure summary
B1: =(LOOKUP(dms_Model,dms_Model_List,dms_Worksheet_List)) -> REGULATORY REPORTING STATEMENT
B2: =INDEX(dms_TradingNameFull_List,MATCH(dms_TradingName,dms_TradingName_List)) -> TasNetworks (T)
B3: =IF(SUM(dms_SingleYear_Model)>0,CRY,CONCATENATE(FRCP_y1," to ",dms_MultiYear_FinalYear_Result)) -> 2019-20 to 2023-24
B4: 2.1 - EXPENDITURE SUMMARY AND RECONCILIATION
B6: There are three tables on this worksheet. Each has been grouped for ease of navigation. See the Instructions sheet on how to group or ungroup tables.
B8: 2.1.1 - PRESCRIBED TRANSMISSION SERVICES CAPEX (as incurred)
C9: =CONCATENATE("Forecast ($0's. real ",dms_DollarReal,")") -> Forecast ($0's. real June 2019)
C10: =CRCP_y4 -> 2017-18 | D10: =CRCP_y5 -> 2018-19 | E10: =FRCP_y1 -> 2019-20 | F10: =FRCP_y2 -> 2020-21 | G10: =FRCP_y3 -> 2021-22 | H10: =FRCP_y4 -> 2022-23 | I10: =FRCP_y5 -> 2023-24
B11: Replacement expenditure | C11: 33913878.03 | D11: 36025307.16 | E11: 21978664.29 | F11: 33310974.8 | G11: 44063553.35 | H11: 32533186.78 | I11: 28921477.69
B12: Connections | C12: 85510.71338 | D12: 90834.48704 | E12: 0 | F12: 906091.4989 | G12: 1630964.698 | H12: 0 | I12: 0
B13: Augmentation Expenditure | C13: 1438301.779 | D13: 1527848.373 | E13: 1140318.738 | F13: 11641068.8 | G13: 3693762.663 | H13: 467813.4709 | I13: 312522.6016
B14: Non-network | C14: 3655561.657 | D14: 3212373.24 | E14: 5871491.96 | F14: 8137166.402 | G14: 6071528.225 | H14: 4620952.114 | I14: 3923755.142
B15: Capitalised network overheads | C15: 8740910.448 | D15: 8740910.448 | E15: 8740910.448 | F15: 8715953.526 | G15: 8629845.815 | H15: 8535840.952 | I15: 8452915.355
B16: Capitalised corporate overheads | C16: 1571341.403 | D16: 1571341.403 | E16: 1571341.403 | F16: 1566854.932 | G16: 1551375.467 | H16: 1534476.343 | I16: 1519568.923
B17: TOTAL CAPEX | C17: =SUM(C11:C16) -> 49405504.03 | D17: 51168615.11 | E17: 39302726.84 | F17: 64278109.95 | G17: 65641030.22 | H17: 47692269.66 | I17: 43130239.71
B19: 2.1.2 - PRESCRIBED TRANSMISSION SERVICES OPEX
C20: =CONCATENATE("Forecast ($0's. real ",dms_DollarReal,")") -> Forecast ($0's. real June 2019)
C21: =CRCP_y4 -> 2017-18 | D21: =CRCP_y5 -> 2018-19 | E21: =FRCP_y1 -> 2019-20 | F21: =FRCP_y2 -> 2020-21 | G21: =FRCP_y3 -> 2021-22 | H21: =FRCP_y4 -> 2022-23 | I21: =FRCP_y5 -> 2023-24
B22: Vegetation management
B23: Maintenance
B24: Non-network
B25: Network overheads
B26: Corporate overheads
B27: TOTAL OPEX | C27: =SUM(C22:C26) -> 0 | D27: 0 | E27: 0 | F27: 0 | G27: 0 | H27: 0 | I27: 0
B30: 2.1.8 - PRESCRIBED TRANSMISSION SERVICES CAPITALISED OVERHEADS
C31: =CONCATENATE("Forecast ($0's. real ",dms_DollarReal,")") -> Forecast ($0's. real June 2019)
C32: =CRCP_y4 -> 2017-18 | D32: =CRCP_y5 -> 2018-19 | E32: =FRCP_y1 -> 2019-20 | F32: =FRCP_y2 -> 2020-21 | G32: =FRCP_y3 -> 2021-22 | H32: =FRCP_y4 -> 2022-23 | I32: =FRCP_y5 -> 2023-24
B33: Replacement expenditure | C33: 0 | D33: 0 | E33: 9915168.016 | F33: 8019652.942 | G33: 9176265.161 | H33: 9533069.437 | I33: 9634722.245
B34: Connections | C34: 0 | D34: 0 | E34: 397083.8353 | F34: 2116049.082 | G34: 761847.8062 | H34: 537247.8578 | I34: 337762.0332
B35: Augmentation Expenditure | C35: 0 | D35: 0 | E35: 0 | F35: 147106.4339 | G35: 243108.3152 | H35: 0 | I35: 0
B36: Non-network | C36: 0 | D36: 0 | E36: 0 | F36: 0 | G36: 0 | H36: 0 | I36: 0
B37: TOTAL CAPITALISED OVERHEADS | C37: =SUM(C33:C36) -> 0 | D37: 0 | E37: 10312251.85 | F37: 10282808.46 | G37: 10181221.28 | H37: 10070317.29 | I37: 9972484.278

Sheet 2.2 Repex
B1: =(LOOKUP(dms_Model,dms_Model_List,dms_Worksheet_List)) -> REGULATORY REPORTING STATEMENT
B2: =INDEX(dms_TradingNameFull_List,MATCH(dms_TradingName,dms_TradingName_List)) -> TasNetworks (T)
B3: =IF(SUM(dms_SingleYear_Model)>0,CRY,CONCATENATE(FRCP_y1," to ",dms_MultiYear_FinalYear_Result)) -> 2019-20 to 2023-24
B4: 2.2 REPEX
B6: There is ONE table (with three sub-tables) on this worksheet. See the Instructions sheet on how to group or ungroup tables.
B8: 2.2.1 - REPLACEMENT EXPENDITURE, VOLUMES AND ASSET FAILURES BY ASSET CATEGORY
B9: EXPENDITURE
D10: EXPENDITURE
D11: =CONCATENATE("($0's. real ",dms_DollarReal,")") -> ($0's. real June 2019)
B12: ASSET GROUP | C12: ASSET CATEGORY | D12: =CRCP_y4 -> 2017-18 | E12: =CRCP_y5 -> 2018-19 | F12: =FRCP_y1 -> 2019-20 | G12: =FRCP_y2 -> 2020-21 | H12: =FRCP_y3 -> 2021-22 | I12: =FRCP_y4 -> 2022-23 | J12: =FRCP_y5 -> 2023-24
B13: TRANSMISSION TOWERS Highest operating voltage; Circuit configuration | C13: < = 33 kV; Single Circuit | D13: 0 | E13: 0 | F13: 0 | G13: 0 | H13: 0 | I13: 0 | J13: 0
C14: > 33 kV & < = 66 kV ; Single Circuit | D14: 0 | E14: 0 | F14: 0 | G14: 0 | H14: 0 | I14: 0 | J14: 0
C15: > 66 kV & < = 132 kV ; Single Circuit | D15: 0 | E15: 2153226.26 | F15: 2467282.188 | G15: 0 | H15: 0 | I15: 2101758.901 | J15: 0
C16: > 132 kV & < = 275 kV ; Single Circuit | D16: 0 | E16: 0 | F16: 0 | G16: 0 | H16: 0 | I16: 0 | J16: 0
C17: > 275 kV & < = 330 kV ; Single Circuit | D17: 0 | E17: 0 | F17: 0 | G17: 0 | H17: 0 | I17: 0 | J17: 0
C18: > 330 kV & < = 500 kV ; Single Circuit | D18: 0 | E18: 0 | F18: 0 | G18: 0 | H18: 0 | I18: 0 | J18: 0
C19: > 500 kV ; Single Circuit | D19: 0 | E19: 0 | F19: 0 | G19: 0 | H19: 0 | I19: 0 | J19: 0
C20: < = 33 kV; Multiple Circuit | D20: 0 | E20: 0 | F20: 0 | G20: 0 | H20: 0 | I20: 0 | J20: 0
C21: > 33 kV & < = 66 kV ; Multiple Circuit | D21: 0 | E21: 0 | F21: 0 | G21: 0 | H21: 0 | I21: 0 | J21: 0
C22: > 66 kV & < = 132 kV ; Multiple Circuit | D22: 0 | E22: 0 | F22: 0 | G22: 0 | H22: 0 | I22: 3364388.641 | J22: 0
C23: > 132 kV & < = 275 kV ; Multiple Circuit | D23: 0 | E23: 791620.8568 | F23: 0 | G23: 0 | H23: 0 | I23: 0 | J23: 0
C24: > 275 kV & < = 330 kV ; Multiple Circuit | D24: 0 | E24: 0 | F24: 0 | G24: 0 | H24: 0 | I24: 0 | J24: 0
C25: > 330 kV & < = 500 kV ; Multiple Circuit | D25: 0 | E25: 0 | F25: 0 | G25: 0 | H25: 0 | I25: 0 | J25: 0
C26: > 500 kV ; Multiple Circuit | D26: 0 | E26: 0 | F26: 0 | G26: 0 | H26: 0 | I26: 0 | J26: 0
C27: Other | D27: 0 | E27: 0 | F27: 0 | G27: 0 | H27: 0 | I27: 0 | J27: 0
B28: TRANSMISSION TOWER SUPPORT STRUCTURES BY: Highest operating voltage; Circuit configuration | C28: < = 33 kV; Single Circuit | D28: 0 | E28: 0 | F28: 0 | G28: 0 | H28: 0 | I28: 0 | J28: 0
C29: > 33 kV & < = 66 kV ; Single Circuit | D29: 0 | E29: 0 | F29: 0 | G29: 0 | H29: 0 | I29: 0 | J29: 0
C30: > 66 kV & < = 132 kV ; Single Circuit | D30: 255624.8131 | E30: 170416.5421 | F30: 249215.2942 | G30: 150871.1658 | H30: 3692018.916 | I30: 985995.6014 | J30: 132712.5213
C31: > 132 kV & < = 275 kV ; Single Circuit | D31: 2673299.316 | E31: 2328357.469 | F31: 345067.3304 | G31: 208898.5373 | H31: 874646.8503 | I31: 2095756.341 | J31: 183755.7987
C32: > 275 kV & < = 330 kV ; Single Circuit | D32: 0 | E32: 0 | F32: 0 | G32: 0 | H32: 0 | I32: 0 | J32: 0
C33: > 330 kV & < = 500 kV ; Single Circuit | D33: 0 | E33: 0 | F33: 0 | G33: 0 | H33: 0 | I33: 0 | J33: 0
C34: > 500 kV ; Single Circuit | D34: 0 | E34: 0 | F34: 0 | G34: 0 | H34: 0 | I34: 0 | J34: 0
C35: < = 33 kV; Multiple Circuit | D35: 0 | E35: 0 | F35: 0 | G35: 0 | H35: 0 | I35: 0 | J35: 0
C36: > 33 kV & < = 66 kV ; Multiple Circuit | D36: 0 | E36: 0 | F36: 0 | G36: 0 | H36: 0 | I36: 0 | J36: 0
C37: > 66 kV & < = 132 kV ; Multiple Circuit | D37: 4485125.672 | E37: 456363.9907 | F37: 3961884.164 | G37: 5346255.158 | H37: 4718046.952 | I37: 82510.09216 | J37: 3242949.559
C38: > 132 kV & < = 275 kV ; Multiple Circuit | D38: 101348.1746 | E38: 101348.1746 | F38: 977690.7696 | G38: 143134.1829 | H38: 311172.4371 | I38: 499186.0576 | J38: 1915824.346
C39: > 275 kV & < = 330 kV ; Multiple Circuit | D39: 0 | E39: 0 | F39: 0 | G39: 0 | H39: 0 | I39: 0 | J39: 0
C40: > 330 kV & < = 500 kV ; Multiple Circuit | D40: 0 | E40: 0 | F40: 0 | G40: 0 | H40: 0 | I40: 0 | J40: 0
C41: > 500 kV ; Multiple Circuit | D41: 0 | E41: 0 | F41: 0 | G41: 0 | H41: 0 | I41: 0 | J41: 0
C42: Other | D42: 0 | E42: 0 | F42: 0 | G42: 0 | H42: 0 | I42: 0 | J42: 0
B43: CONDUCTORS BY: Voltage; Maximum continuous rating | C43: < = 33 kV ; < = 100 MVA | D43: 0 | E43: 0 | F43: 0 | G43: 0 | H43: 0 | I43: 0 | J43: 0
C44: < = 33 kV ; > 100 MVA & < = 400 MVA | D44: 0 | E44: 0 | F44: 0 | G44: 0 | H44: 0 | I44: 0 | J44: 0
C45: < = 33 kV ; > 400 MVA | D45: 0 | E45: 0 | F45: 0 | G45: 0 | H45: 0 | I45: 0 | J45: 0
C46: > 33 kV & < = 66 kV ; < = 100 MVA | D46: 0 | E46: 0 | F46: 0 | G46: 0 | H46: 0 | I46: 0 | J46: 0
C47: > 33 kV & < = 66 kV ; > 100 MVA & < = 400 MVA | D47: 0 | E47: 0 | F47: 0 | G47: 0 | H47: 0 | I47: 0 | J47: 0
C48: > 33 kV & < = 66 kV ; > 400 MVA | D48: 0 | E48: 0 | F48: 0 | G48: 0 | H48: 0 | I48: 0 | J48: 0
C49: > 66 kV & < = 132 kV ; < = 100 MVA | D49: 0 | E49: 0 | F49: 0 | G49: 0 | H49: 0 | I49: 0 | J49: 0
C50: > 66 kV & < = 132 kV ; > 100 MVA & < = 400 MVA | D50: 0 | E50: 0 | F50: 0 | G50: 0 | H50: 0 | I50: 748335.4809 | J50: 0
C51: > 66 kV & < = 132 kV ; > 400 MVA | D51: 0 | E51: 0 | F51: 0 | G51: 0 | H51: 0 | I51: 0 | J51: 0
C52: > 132 kV & < = 275 kV ; < = 200 MVA | D52: 0 | E52: 0 | F52: 0 | G52: 0 | H52: 0 | I52: 0 | J52: 0
C53: > 132 kV & < = 275 kV ; > 200 MVA & < = 600 MVA | D53: 0 | E53: 328432.1264 | F53: 0 | G53: 0 | H53: 0 | I53: 0 | J53: 0
C54: > 132 kV & < = 275 kV ; > 600 MVA | D54: 0 | E54: 0 | F54: 0 | G54: 0 | H54: 0 | I54: 0 | J54: 0
C55: > 275 kV & < = 330 kV ; < = 800 MVA | D55: 0 | E55: 0 | F55: 0 | G55: 0 | H55: 0 | I55: 0 | J55: 0
C56: > 275 kV & < = 330 kV ; > 800 MVA & < = 1200 MVA | D56: 0 | E56: 0 | F56: 0 | G56: 0 | H56: 0 | I56: 0 | J56: 0
C57: > 275 kV & < = 330 kV ; > 1200 MVA | D57: 0 | E57: 0 | F57: 0 | G57: 0 | H57: 0 | I57: 0 | J57: 0
C58: > 330 kV & < = 500 kV ; < = 1000 MVA | D58: 0 | E58: 0 | F58: 0 | G58: 0 | H58: 0 | I58: 0 | J58: 0
C59: > 330 kV & < = 500 kV ; > 1000 MVA & < = 1500 MVA | D59: 0 | E59: 0 | F59: 0 | G59: 0 | H59: 0 | I59: 0 | J59: 0
C60: > 330 kV & < = 500 kV ; > 1500 MVA | D60: 0 | E60: 0 | F60: 0 | G60: 0 | H60: 0 | I60: 0 | J60: 0
C61: > 500 kV ; < = 2000 MVA | D61: 0 | E61: 0 | F61: 0 | G61: 0 | H61: 0 | I61: 0 | J61: 0
C62: > 500 kV ; > 2000 MVA & < = 3000 MVA | D62: 0 | E62: 0 | F62: 0 | G62: 0 | H62: 0 | I62: 0 | J62: 0
C63: > 500 kV ; > 3000 MVA | D63: 0 | E63: 0 | F63: 0 | G63: 0 | H63: 0 | I63: 0 | J63: 0
C64: Other | D64: 0 | E64: 0 | F64: 0 | G64: 0 | H64: 0 | I64: 0 | J64: 0
B65: TRANSMISSION CABLES BY: Highest operating voltage; Insulation type | C65: < = 33 kV; Oil Filled | D65: 0 | E65: 0 | F65: 0 | G65: 0 | H65: 0 | I65: 0 | J65: 0
C66: > 33 kV & < = 66 kV ; Oil Filled | D66: 0 | E66: 0 | F66: 0 | G66: 0 | H66: 0 | I66: 0 | J66: 0
C67: > 66 kV & < = 132 kV ; Oil Filled | D67: 0 | E67: 0 | F67: 0 | G67: 0 | H67: 0 | I67: 0 | J67: 0
C68: > 132 kV & < = 275 kV ; Oil Filled | D68: 0 | E68: 0 | F68: 0 | G68: 0 | H68: 0 | I68: 0 | J68: 0
C69: > 275 kV & < = 330 kV ; Oil Filled | D69: 0 | E69: 0 | F69: 0 | G69: 0 | H69: 0 | I69: 0 | J69: 0
C70: > 330 kV & < = 500 kV ; Oil Filled | D70: 0 | E70: 0 | F70: 0 | G70: 0 | H70: 0 | I70: 0 | J70: 0
C71: > 500 kV ; Oil Filled | D71: 0 | E71: 0 | F71: 0 | G71: 0 | H71: 0 | I71: 0 | J71: 0
C72: < = 33 kV; XLPE Insulated | D72: 0 | E72: 0 | F72: 0 | G72: 0 | H72: 0 | I72: 0 | J72: 0
C73: > 33 kV & < = 66 kV ; XLPE Insulated | D73: 0 | E73: 0 | F73: 0 | G73: 0 | H73: 0 | I73: 0 | J73: 0
C74: > 66 kV & < = 132 kV ; XLPE Insulated | D74: 0 | E74: 0 | F74: 0 | G74: 0 | H74: 0 | I74: 0 | J74: 0
C75: > 132 kV & < = 275 kV ; XLPE Insulated | D75: 0 | E75: 0 | F75: 0 | G75: 0 | H75: 0 | I75: 0 | J75: 0
C76: > 275 kV & < = 330 kV ; XLPE Insulated | D76: 0 | E76: 0 | F76: 0 | G76: 0 | H76: 0 | I76: 0 | J76: 0
C77: > 330 kV & < = 500 kV ; XLPE Insulated | D77: 0 | E77: 0 | F77: 0 | G77: 0 | H77: 0 | I77: 0 | J77: 0
C78: > 500 kV ; XLPE Insulated | D78: 0 | E78: 0 | F78: 0 | G78: 0 | H78: 0 | I78: 0 | J78: 0
C79: < = 33 kV; Other Insulated | D79: 0 | E79: 0 | F79: 0 | G79: 0 | H79: 0 | I79: 0 | J79: 0
C80: > 33 kV & < = 66 kV ; Other Insulated | D80: 0 | E80: 0 | F80: 0 | G80: 0 | H80: 0 | I80: 0 | J80: 0
C81: > 66 kV & < = 132 kV ; Other Insulated | D81: 0 | E81: 0 | F81: 0 | G81: 0 | H81: 0 | I81: 0 | J81: 0
C82: > 132 kV & < = 275 kV ; Other Insulated | D82: 0 | E82: 0 | F82: 0 | G82: 0 | H82: 0 | I82: 0 | J82: 0
C83: > 275 kV & < = 330 kV ; Other Insulated | D83: 0 | E83: 0 | F83: 0 | G83: 0 | H83: 0 | I83: 0 | J83: 0
C84: > 330 kV & < = 500 kV ; Other Insulated | D84: 0 | E84: 0 | F84: 0 | G84: 0 | H84: 0 | I84: 0 | J84: 0
C85: > 500 kV ; Other Insulated | D85: 0 | E85: 0 | F85: 0 | G85: 0 | H85: 0 | I85: 0 | J85: 0
C86: Other | D86: 0 | E86: 0 | F86: 0 | G86: 0 | H86: 0 | I86: 0 | J86: 0
B87: SUBSTATION SWITCHBAYS BY: Highest operating voltage; Switch type | C87: < = 33 kV; Air Insulated circuit Breaker | D87: 0 | E87: 0 | F87: 0 | G87: 0 | H87: 0 | I87: 6916306.752 | J87: 1617391.663
C88: > 33 kV & < = 66 kV ; Air Insulated circuit Breaker | D88: 4857850.039 | E88: 4857850.039 | F88: 0 | G88: 0 | H88: 24289250.2 | I88: 0 | J88: 0
C89: > 66 kV & < = 132 kV ; Air Insulated circuit Breaker | D89: 2538533.976 | E89: 2538533.976 | F89: 3998373.6 | G89: 8694296.282 | H89: 0 | I89: 0 | J89: 0
C90: > 132 kV & < = 275 kV ; Air Insulated circuit Breaker | D90: 1649646.38 | E90: 1979575.656 | F90: 0 | G90: 9897878.281 | H90: 0 | I90: 0 | J90: 0
C91: > 275 kV & < = 330 kV ; Air Insulated circuit Breaker | D91: 0 | E91: 0 | F91: 0 | G91: 0 | H91: 0 | I91: 0 | J91: 0
C92: > 330 kV & < = 500 kV ; Air Insulated circuit Breaker | D92: 0 | E92: 0 | F92: 0 | G92: 0 | H92: 0 | I92: 0 | J92: 0
C93: > 500 kV ; Air Insulated circuit Breaker | D93: 0 | E93: 0 | F93: 0 | G93: 0 | H93: 0 | I93: 0 | J93: 0
C94: < = 33 kV; Air Insulated Isolators / Earth Switch | D94: 0 | E94: 0 | F94: 0 | G94: 0 | H94: 0 | I94: 0 | J94: 0
C95: > 33 kV & < = 66 kV ; Air Insulated Isolators / Earth Switch | D95: 0 | E95: 0 | F95: 0 | G95: 0 | H95: 0 | I95: 0 | J95: 0
C96: > 66 kV & < = 132 kV ; Air Insulated Isolators / Earth Switch | D96: 1952718.443 | E96: 0 | F96: 0 | G96: 0 | H96: 0 | I96: 0 | J96: 0
C97: > 132 kV & < = 275 kV ; Air Insulated Isolators / Earth Switch | D97: 0 | E97: 0 | F97: 0 | G97: 0 | H97: 0 | I97: 0 | J97: 0
C98: > 275 kV & < = 330 kV ; Air Insulated Isolators / Earth Switch | D98: 0 | E98: 0 | F98: 0 | G98: 0 | H98: 0 | I98: 0 | J98: 0
C99: > 330 kV & < = 500 kV ; Air Insulated Isolators / Earth Switch | D99: 0 | E99: 0 | F99: 0 | G99: 0 | H99: 0 | I99: 0 | J99: 0
C100: > 500 kV ; Air Insulated Isolators / Earth Switch | D100: 0 | E100: 0 | F100: 0 | G100: 0 | H100: 0 | I100: 0 | J100: 0
C101: < = 33 kV; VT | D101: 0 | E101: 0 | F101: 0 | G101: 0 | H101: 0 | I101: 0 | J101: 0
C102: > 33 kV & < = 66 kV ; VT | D102: 0 | E102: 0 | F102: 0 | G102: 0 | H102: 0 | I102: 0 | J102: 0
C103: > 66 kV & < = 132 kV ; VT | D103: 0 | E103: 0 | F103: 0 | G103: 0 | H103: 0 | I103: 0 | J103: 0
C104: > 132 kV & < = 275 kV ; VT | D104: 0 | E104: 0 | F104: 0 | G104: 0 | H104: 0 | I104: 1476765.068 | J104: 0
C105: > 275 kV & < = 330 kV ; VT | D105: 0 | E105: 0 | F105: 0 | G105: 0 | H105: 0 | I105: 0 | J105: 0
C106: > 330 kV & < = 500 kV ; VT | D106: 0 | E106: 0 | F106: 0 | G106: 0 | H106: 0 | I106: 0 | J106: 0
C107: > 500 kV ; VT | D107: 0 | E107: 0 | F107: 0 | G107: 0 | H107: 0 | I107: 0 | J107: 0
C108: < = 33 kV; CT | D108: 0 | E108: 0 | F108: 0 | G108: 0 | H108: 0 | I108: 0 | J108: 0
C109: > 33 kV & < = 66 kV ; CT | D109: 0 | E109: 0 | F109: 0 | G109: 0 | H109: 0 | I109: 0 | J109: 0
C110: > 66 kV & < = 132 kV ; CT | D110: 0 | E110: 0 | F110: 0 | G110: 0 | H110: 0 | I110: 0 | J110: 0
C111: > 132 kV & < = 275 kV ; CT | D111: 0 | E111: 0 | F111: 0 | G111: 0 | H111: 0 | I111: 0 | J111: 2401076.283
C112: > 275 kV & < = 330 kV ; CT | D112: 0 | E112: 0 | F112: 0 | G112: 0 | H112: 0 | I112: 0 | J112: 0
C113: > 330 kV & < = 500 kV ; CT | D113: 0 | E113: 0 | F113: 0 | G113: 0 | H113: 0 | I113: 0 | J113: 0
C114: > 500 kV ; CT | D114: 0 | E114: 0 | F114: 0 | G114: 0 | H114: 0 | I114: 0 | J114: 0
C115: < = 33 kV; GIS Module | D115: 0 | E115: 0 | F115: 0 | G115: 0 | H115: 0 | I115: 0 | J115: 0
C116: > 33 kV & < = 66 kV ; GIS Module | D116: 0 | E116: 0 | F116: 0 | G116: 0 | H116: 0 | I116: 0 | J116: 0
C117: > 66 kV & < = 132 kV ; GIS Module | D117: 0 | E117: 0 | F117: 0 | G117: 0 | H117: 0 | I117: 0 | J117: 0
C118: > 132 kV & < = 275 kV ; GIS Module | D118: 0 | E118: 0 | F118: 0 | G118: 0 | H118: 0 | I118: 0 | J118: 0
C119: > 275 kV & < = 330 kV ; GIS Module | D119: 0 | E119: 0 | F119: 0 | G119: 0 | H119: 0 | I119: 0 | J119: 0
C120: > 330 kV & < = 500 kV ; GIS Module | D120: 0 | E120: 0 | F120: 0 | G120: 0 | H120: 0 | I120: 0 | J120: 0
C121: > 500 kV ; GIS Module | D121: 0 | E121: 0 | F121: 0 | G121: 0 | H121: 0 | I121: 0 | J121: 0
C122: Other | D122: 0 | E122: 0 | F122: 0 | G122: 0 | H122: 0 | I122: 0 | J122: 0
B123: SUBSTATION POWER TRANSFORMERS BY: Highest operating voltage; Ampere rating | C123: < = 33 kV ; < = 10 MVA | D123: 0 | E123: 0 | F123: 0 | G123: 0 | H123: 0 | I123: 0 | J123: 0
C124: < = 33 kV ; > 10 MVA & < = 30 MVA | D124: 0 | E124: 0 | F124: 0 | G124: 0 | H124: 0 | I124: 0 | J124: 0
C125: < = 33 kV ; > 30 MVA | D125: 0 | E125: 0 | F125: 0 | G125: 0 | H125: 0 | I125: 0 | J125: 0
C126: > 33 kV & < = 66 kV ; < = 10 MVA | D126: 0 | E126: 0 | F126: 0 | G126: 0 | H126: 0 | I126: 0 | J126: 0
C127: > 33 kV & < = 66 kV ; > 10 MVA & < = 30 MVA | D127: 0 | E127: 0 | F127: 0 | G127: 0 | H127: 0 | I127: 0 | J127: 0
C128: > 33 kV & < = 66 kV ; > 30 MVA | D128: 0 | E128: 0 | F128: 0 | G128: 0 | H128: 0 | I128: 0 | J128: 0
C129: > 66 kV & < = 132 kV ; < = 30 MVA | D129: 5681950.71 | E129: 5681950.71 | F129: 0 | G129: 0 | H129: 0 | I129: 5736378.883 | J129: 5627522.538
C130: > 66 kV & < = 132 kV ; > 30 MVA & < = 60 MVA | D130: 0 | E130: 2234334.874 | F130: 0 | G130: 0 | H130: 0 | I130: 0 | J130: 4468669.749
C131: > 66 kV & < = 132 kV ; > 60 MVA | D131: 0 | E131: 2840975.355 | F131: 0 | G131: 0 | H131: 0 | I131: 0 | J131: 0
C132: > 132 kV & < = 220 kV ; < = 50 MVA | D132: 0 | E132: 0 | F132: 0 | G132: 0 | H132: 0 | I132: 0 | J132: 0
C133: > 132 kV & < = 220 kV ; > 50 MVA & < = 100 MVA | D133: 0 | E133: 0 | F133: 0 | G133: 0 | H133: 0 | I133: 0 | J133: 0
C134: > 132 kV & < = 220 kV ; > 100 MVA | D134: 0 | E134: 0 | F134: 0 | G134: 0 | H134: 0 | I134: 0 | J134: 0
C135: > 220 kV & < = 275 kV ; < = 50 MVA | D135: 0 | E135: 0 | F135: 0 | G135: 0 | H135: 0 | I135: 0 | J135: 0
C136: > 220 kV & < = 275 kV ; > 50 MVA & < = 100 MVA | D136: 0 | E136: 0 | F136: 0 | G136: 0 | H136: 0 | I136: 0 | J136: 0
C137: > 220 kV & < = 275 kV ; > 100 MVA | D137: 0 | E137: 0 | F137: 0 | G137: 0 | H137: 0 | I137: 0 | J137: 0
C138: > 275 kV & < = 330 kV ; < = 100 MVA | D138: 0 | E138: 0 | F138: 0 | G138: 0 | H138: 0 | I138: 0 | J138: 0
C139: > 275 kV & < = 330 kV ; > 100 MVA & < = 250 MVA | D139: 0 | E139: 0 | F139: 0 | G139: 0 | H139: 0 | I139: 0 | J139: 0
C140: > 275 kV & < = 330 kV ; > 250 MVA | D140: 0 | E140: 0 | F140: 0 | G140: 0 | H140: 0 | I140: 0 | J140: 0
C141: > 330 kV & < = 500 kV ; < = 150 MVA | D141: 0 | E141: 0 | F141: 0 | G141: 0 | H141: 0 | I141: 0 | J141: 0
C142: > 330 kV & < = 500 kV ; > 150 MVA & < = 300 MVA | D142: 0 | E142: 0 | F142: 0 | G142: 0 | H142: 0 | I142: 0 | J142: 0
C143: > 330 kV & < = 500 kV ; > 300 MVA | D143: 0 | E143: 0 | F143: 0 | G143: 0 | H143: 0 | I143: 0 | J143: 0
C144: > 500 kV ; < = 1000 MVA | D144: 0 | E144: 0 | F144: 0 | G144: 0 | H144: 0 | I144: 0 | J144: 0
C145: > 500 kV ; > 1000 MVA & < = 1500 MVA | D145: 0 | E145: 0 | F145: 0 | G145: 0 | H145: 0 | I145: 0 | J145: 0
C146: > 500 kV ; > 1500 MVA | D146: 0 | E146: 0 | F146: 0 | G146: 0 | H146: 0 | I146: 0 | J146: 0
C147: Other | D147: 0 | E147: 0 | F147: 0 | G147: 0 | H147: 0 | I147: 0 | J147: 0
B148: SUBSTATION REACTIVE PLANT BY: Highest operating voltage; Function | C148: < = 33 kV; SVCS | D148: 0 | E148: 0 | F148: 0 | G148: 0 | H148: 0 | I148: 0 | J148: 0
C149: > 33 kV & < = 66 kV ; SVCS | D149: 0 | E149: 0 | F149: 0 | G149: 0 | H149: 0 | I149: 0 | J149: 0
C150: > 66 kV & < = 132 kV ; SVCS | D150: 0 | E150: 0 | F150: 0 | G150: 0 | H150: 0 | I150: 0 | J150: 0
C151: > 132 kV & < = 275 kV ; SVCS | D151: 0 | E151: 0 | F151: 0 | G151: 0 | H151: 0 | I151: 0 | J151: 0
C152: > 275 kV & < = 330 kV ; SVCS | D152: 0 | E152: 0 | F152: 0 | G152: 0 | H152: 0 | I152: 0 | J152: 0
C153: > 330 kV & < = 500 kV ; SVCS | D153: 0 | E153: 0 | F153: 0 | G153: 0 | H153: 0 | I153: 0 | J153: 0
C154: > 500 kV ; SVCS | D154: 0 | E154: 0 | F154: 0 | G154: 0 | H154: 0 | I154: 0 | J154: 0
C155: < = 33 kV; Capacitors | D155: 0 | E155: 0 | F155: 0 | G155: 0 | H155: 0 | I155: 0 | J155: 0
C156: > 33 kV & < = 66 kV ; Capacitors | D156: 0 | E156: 0 | F156: 0 | G156: 0 | H156: 0 | I156: 0 | J156: 0
C157: > 66 kV & < = 132 kV ; Capacitors | D157: 0 | E157: 0 | F157: 0 | G157: 0 | H157: 0 | I157: 0 | J157: 0
C158: > 132 kV & < = 275 kV ; Capacitors | D158: 0 | E158: 0 | F158: 0 | G158: 0 | H158: 0 | I158: 0 | J158: 0
C159: > 275 kV & < = 330 kV ; Capacitors | D159: 0 | E159: 0 | F159: 0 | G159: 0 | H159: 0 | I159: 0 | J159: 0
C160: > 330 kV & < = 500 kV ; Capacitors | D160: 0 | E160: 0 | F160: 0 | G160: 0 | H160: 0 | I160: 0 | J160: 0
C161: > 500 kV ; Capacitors | D161: 0 | E161: 0 | F161: 0 | G161: 0 | H161: 0 | I161: 0 | J161: 0
C162: < = 33 kV; Oil Filled Reactors | D162: 0 | E162: 0 | F162: 0 | G162: 0 | H162: 0 | I162: 0 | J162: 0
C163: > 33 kV & < = 66 kV ; Oil Filled Reactors | D163: 0 | E163: 0 | F163: 0 | G163: 0 | H163: 0 | I163: 0 | J163: 0
C164: > 66 kV & < = 132 kV ; Oil Filled Reactors | D164: 0 | E164: 0 | F164: 0 | G164: 0 | H164: 0 | I164: 0 | J164: 0
C165: > 132 kV & < = 275 kV ; Oil Filled Reactors | D165: 0 | E165: 0 | F165: 0 | G165: 0 | H165: 0 | I165: 0 | J165: 0
C166: > 275 kV & < = 330 kV ; Oil Filled Reactors | D166: 0 | E166: 0 | F166: 0 | G166: 0 | H166: 0 | I166: 0 | J166: 0
C167: > 330 kV & < = 500 kV ; Oil Filled Reactors | D167: 0 | E167: 0 | F167: 0 | G167: 0 | H167: 0 | I167: 0 | J167: 0
C168: > 500 kV ; Oil Filled Reactors | D168: 0 | E168: 0 | F168: 0 | G168: 0 | H168: 0 | I168: 0 | J168: 0
C169: Other | D169: 0 | E169: 0 | F169: 0 | G169: 0 | H169: 0 | I169: 0 | J169: 0
B170: SCADA, NETWORK CONTROL AND PROTECTION SYSTEMS BY: Function | C170: OPGW | D170: 5679677.191 | E170: 5679677.191 | F170: 5733296.891 | G170: 5753292.708 | H170: 5357379.085 | I170: 5776941.058 | J170: 5777476.211
C171: Protection Schemes / systems | D171: 9515.922909 | E171: 190318.4582 | F171: 290581.3007 | G171: 173777.0271 | H171: 282127.1117 | I171: 207957.7063 | J171: 139887.9888
C172: Station SCADA and Control Systems | D172: 2982091.674 | E172: 2982091.674 | F172: 3596498.615 | G172: 2302059.749 | H172: 4115168.803 | I172: 1935711.602 | J172: 2961019.602
C173: Telecommunications Network / Systems | D173: 465583.3095 | E173: 359152.1522 | F173: 358774.1398 | G173: 640511.7047 | H173: 423742.998 | I173: 605194.5999 | J173: 453191.4273
C174: Other | D174: 780585.1961 | E174: 562502.918 | F174: 0 | G174: 0 | H174: 0 | I174: 0 | J174: 0
D175: 0 | E175: 0 | F175: 0 | G175: 0 | H175: 0 | I175: 0 | J175: 0
B176: OTHER BY: NSP defined | C176: <NSP to enter description for Asset Category not listed above>
B204: ASSET REPLACEMENTS
D205: VOLUMES
D206: (0's)
B207: ASSET GROUP | C207: ASSET CATEGORY | D207: =CRCP_y4 -> 2017-18 | E207: =CRCP_y5 -> 2018-19 | F207: =FRCP_y1 -> 2019-20 | G207: =FRCP_y2 -> 2020-21 | H207: =FRCP_y3 -> 2021-22 | I207: =FRCP_y4 -> 2022-23 | J207: =FRCP_y5 -> 2023-24
B208: TRANSMISSION TOWERS Highest operating voltage; Circuit configuration | C208: < = 33 kV; Single Circuit | D208: 0 | E208: 0 | F208: 0 | G208: 0 | H208: 0 | I208: 0 | J208: 0
C209: > 33 kV & < = 66 kV ; Single Circuit | D209: 0 | E209: 0 | F209: 0 | G209: 0 | H209: 0 | I209: 0 | J209: 0
C210: > 66 kV & < = 132 kV ; Single Circuit | D210: 0 | E210: 41 | F210: 47 | G210: 0 | H210: 0 | I210: 40 | J210: 0
C211: > 132 kV & < = 275 kV ; Single Circuit | D211: 0 | E211: 0 | F211: 0 | G211: 0 | H211: 0 | I211: 0 | J211: 0
C212: > 275 kV & < = 330 kV ; Single Circuit | D212: 0 | E212: 0 | F212: 0 | G212: 0 | H212: 0 | I212: 0 | J212: 0
C213: > 330 kV & < = 500 kV ; Single Circuit | D213: 0 | E213: 0 | F213: 0 | G213: 0 | H213: 0 | I213: 0 | J213: 0
C214: > 500 kV ; Single Circuit | D214: 0 | E214: 0 | F214: 0 | G214: 0 | H214: 0 | I214: 0 | J214: 0
C215: < = 33 kV; Multiple Circuit | D215: 0 | E215: 0 | F215: 0 | G215: 0 | H215: 0 | I215: 0 | J215: 0
C216: > 33 kV & < = 66 kV ; Multiple Circuit | D216: 0 | E216: 0 | F216: 0 | G216: 0 | H216: 0 | I216: 0 | J216: 0
C217: > 66 kV & < = 132 kV ; Multiple Circuit | D217: 0 | E217: 0 | F217: 0 | G217: 0 | H217: 0 | I217: 17 | J217: 0
C218: > 132 kV & < = 275 kV ; Multiple Circuit | D218: 0 | E218: 4 | F218: 0 | G218: 0 | H218: 0 | I218: 0 | J218: 0
C219: > 275 kV & < = 330 kV ; Multiple Circuit | D219: 0 | E219: 0 | F219: 0 | G219: 0 | H219: 0 | I219: 0 | J219: 0
C220: > 330 kV & < = 500 kV ; Multiple Circuit | D220: 0 | E220: 0 | F220: 0 | G220: 0 | H220: 0 | I220: 0 | J220: 0
C221: > 500 kV ; Multiple Circuit | D221: 0 | E221: 0 | F221: 0 | G221: 0 | H221: 0 | I221: 0 | J221: 0
C222: Other | D222: 0 | E222: 0 | F222: 0 | G222: 0 | H222: 0 | I222: 0 | J222: 0
B223: TRANSMISSION TOWER SUPPORT STRUCTURES BY: Highest operating voltage; Circuit configuration | C223: < = 33 kV; Single Circuit | D223: 0 | E223: 0 | F223: 0 | G223: 0 | H223: 0 | I223: 0 | J223: 0
C224: > 33 kV & < = 66 kV ; Single Circuit | D224: 0 | E224: 0 | F224: 0 | G224: 0 | H224: 0 | I224: 0 | J224: 0
C225: > 66 kV & < = 132 kV ; Single Circuit | D225: 39 | E225: 26 | F225: 39 | G225: 39 | H225: 439 | I225: 239 | J225: 39
C226: > 132 kV & < = 275 kV ; Single Circuit | D226: 558 | E226: 486 | F226: 54 | G226: 54 | H226: 104 | I226: 508 | J226: 54
C227: > 275 kV & < = 330 kV ; Single Circuit | D227: 0 | E227: 0 | F227: 0 | G227: 0 | H227: 0 | I227: 0 | J227: 0
C228: > 330 kV & < = 500 kV ; Single Circuit | D228: 0 | E228: 0 | F228: 0 | G228: 0 | H228: 0 | I228: 0 | J228: 0
C229: > 500 kV ; Single Circuit | D229: 0 | E229: 0 | F229: 0 | G229: 0 | H229: 0 | I229: 0 | J229: 0
... 308 more rows

Sheet 2.3 Augex (a)
B1: =(LOOKUP(dms_Model,dms_Model_List,dms_Worksheet_List)) -> REGULATORY REPORTING STATEMENT
B2: =INDEX(dms_TradingNameFull_List,MATCH(dms_TradingName,dms_TradingName_List)) -> TasNetworks (T)
B3: =IF(SUM(dms_SingleYear_Model)>0,CRY,CONCATENATE(FRCP_y1," to ",dms_MultiYear_FinalYear_Result)) -> 2019-20 to 2023-24
B4: 2.3 AUGEX PROJECTS
B6: There are TWO tables on this worksheet - each has been 'grouped' for easy navigation. Both ROWS and COLUMNS have been grouped. See the Instructions sheet on how to group or ungroup tables.
B8: NOTE: TNSP MUST PROVIDE EXPENDITURE INFORMATION ON A PROJECT CLOSE BASIS.
B9: 2.3.1 - AUGEX ASSET DATA - SUBSTATIONS
B10: SUBSTATION AND PROJECT SUMMARY | L10: PLANT AND EQUIPMENT EXPENDITURE AND VOLUME | Z10: OTHER EXPENDITURE | AB10: TOTAL DIRECT EXPENDITURE ($0's) | AC10: YEARS INCURRED | AD10: RELATED PARTY CONTRACTS | AF10: ALL NON RELATED PARTYCONTRACTS | AG10: LAND AND EASEMENTS | AI10: Comments
B11: SUBSTATION ID | C11: SUBSTATION TYPE (drop down) | D11: PROJECT ID | E11: PROJECT TYPE (drop down) | F11: PROJECT TRIGGER (drop down) | G11: VOLTAGE (KV) | H11: SUBSTATION RATING NORMAL CYCLIC (MVA) | J11: SUBSTATION RATING N-1 EMERGENCY (MVA) | L11: TRANSFORMERS | P11: SWITCHGEAR | S11: REACTIVE PLANT | W11: OTHER PLANT ITEM | X11: INSTALLATION (LABOUR) | Z11: CIVIL WORKS | AA11: OTHER DIRECT | AD11: RELATED PARTY MARGINS | AE11: TOTAL | AG11: LAND PURCHASES | AH11: EASEMENTS
H12: PRE | I12: POST | J12: PRE | K12: POST | L12: Units Added | M12: MVA Added | N12: OLTC INCLUDED? | O12: Expenditure ($0's) | P12: Insulation | Q12: Units Added | R12: Expenditure ($0's) | S12: Plant Type | U12: Units Added | V12: Expenditure ($0's) | W12: Expenditure ($0's) | X12: Volume | Y12: Expenditure ($0's) | Z12: Expenditure ($0's) | AD12: Expenditure ($0's) | AG12: Expenditure ($0's)
B13: George Town Substation | C13: Transmission substation | D13: RR 1523 NDXXXX | E13: Voltage upgrade | F13: Net market benefit | G13: 220/110 | H13: 780 | I13: 780 | J13: 520 | K13: 520 | L13: 1 | M13: - | N13: No | O13: 2200000 | P13: Air | Q13: 10 | R13: 1046069 | S13: Other | T13: STATCOM | U13: 1 | V13: 4725922 | W13: 629242 | Y13: 5489678 | Z13: 977545 | AB13: 15068456 | AC13: 2020,2021, 2022
B20: Project Totals | L20: =SUM(L13:L18) -> 1 | M20: =SUM(M13:M18) -> 0 | O20: =SUM(O13:O18) -> 2200000 | Q20: =SUM(Q13:Q18) -> 10 | R20: =SUM(R13:R18) -> 1046069 | T20: =SUM(T13:T18) -> 0 | U20: 1 | V20: 4725922 | W20: 629242 | X20: 0 | Y20: 5489678 | Z20: 977545 | AA20: =O18+R18+U18+V18+SUM(X18:Z18) -> 0 | AC20: =SUM(AC13:AC18) -> 0 | AD20: =SUM(AD13:AD18) -> 0 | AE20: =SUM(AE13:AE18) -> 0 | AF20: =SUM(AF13:AF18) -> 0 | AG20: =SUM(AG13:AG18) -> 0 | AH20: =SUM(AH13:AH19) -> 0
B21: George Town Substation | C21: Transmission substation | D21: ND1390 | E21: Voltage upgrade | F21: Net market benefit | G21: 220/110 | H21: 780 | I21: 780 | J21: 520 | K21: 520 | L21: 0 | M21: - | N21: No | O21: 0 | P21: Air | Q21: 6 | R21: 254819 | S21: Capacitor | U21: 1 | V21: 380000 | W21: 299983 | Y21: 1327823 | AB21: 2262625 | AC21: 2017, 2018, 2019
B28: Project Totals | L28: =SUM(L21:L26) -> 0 | M28: =SUM(M21:M26) -> 0 | O28: =SUM(O21:O26) -> 0 | Q28: =SUM(Q21:Q26) -> 6 | R28: =SUM(R21:R26) -> 254819 | T28: =SUM(T21:T26) -> 0 | U28: 1 | V28: 380000 | W28: 299983 | X28: 0 | Y28: 1327823 | Z28: 0 | AA28: =O26+R26+U26+V26+SUM(X26:Z26) -> 0 | AC28: =SUM(AC21:AC26) -> 0 | AD28: =SUM(AD21:AD26) -> 0 | AE28: =SUM(AE21:AE26) -> 0 | AF28: =SUM(AF21:AF26) -> 0 | AG28: =SUM(AG21:AG26) -> 0 | AH28: =SUM(AH21:AH27) -> 0
B29: <Enter substation ID>
B36: Project Totals | L36: =SUM(L29:L34) -> 0 | M36: =SUM(M29:M34) -> 0 | O36: =SUM(O29:O34) -> 0 | Q36: =SUM(Q29:Q34) -> 0 | R36: =SUM(R29:R34) -> 0 | T36: =SUM(T29:T34) -> 0 | U36: 0 | V36: 0 | W36: 0 | X36: 0 | Y36: 0 | Z36: 0 | AA36: =O34+R34+U34+V34+SUM(X34:Z34) -> 0 | AC36: =SUM(AC29:AC34) -> 0 | AD36: =SUM(AD29:AD34) -> 0 | AE36: =SUM(AE29:AE34) -> 0 | AF36: =SUM(AF29:AF34) -> 0 | AG36: =SUM(AG29:AG34) -> 0 | AH36: =SUM(AH29:AH35) -> 0
B37: <Enter substation ID>
B44: Project Totals | L44: =SUM(L37:L42) -> 0 | M44: =SUM(M37:M42) -> 0 | O44: =SUM(O37:O42) -> 0 | Q44: =SUM(Q37:Q42) -> 0 | R44: =SUM(R37:R42) -> 0 | T44: =SUM(T37:T42) -> 0 | U44: 0 | V44: 0 | W44: 0 | X44: 0 | Y44: 0 | Z44: 0 | AA44: =O42+R42+U42+V42+SUM(X42:Z42) -> 0 | AC44: =SUM(AC37:AC42) -> 0 | AD44: =SUM(AD37:AD42) -> 0 | AE44: =SUM(AE37:AE42) -> 0 | AF44: =SUM(AF37:AF42) -> 0 | AG44: =SUM(AG37:AG42) -> 0 | AH44: =SUM(AH37:AH43) -> 0
B45: <Enter substation ID>
B52: Project Totals | L52: =SUM(L45:L50) -> 0 | M52: =SUM(M45:M50) -> 0 | O52: =SUM(O45:O50) -> 0 | Q52: =SUM(Q45:Q50) -> 0 | R52: =SUM(R45:R50) -> 0 | T52: =SUM(T45:T50) -> 0 | U52: 0 | V52: 0 | W52: 0 | X52: 0 | Y52: 0 | Z52: 0 | AA52: =O50+R50+U50+V50+SUM(X50:Z50) -> 0 | AC52: =SUM(AC45:AC50) -> 0 | AD52: =SUM(AD45:AD50) -> 0 | AE52: =SUM(AE45:AE50) -> 0 | AF52: =SUM(AF45:AF50) -> 0 | AG52: =SUM(AG45:AG50) -> 0 | AH52: =SUM(AH45:AH51) -> 0
B53: <Enter substation ID>
B60: Project Totals | L60: =SUM(L53:L58) -> 0 | M60: =SUM(M53:M58) -> 0 | O60: =SUM(O53:O58) -> 0 | Q60: =SUM(Q53:Q58) -> 0 | R60: =SUM(R53:R58) -> 0 | T60: =SUM(T53:T58) -> 0 | U60: 0 | V60: 0 | W60: 0 | X60: 0 | Y60: 0 | Z60: 0 | AA60: =O58+R58+U58+V58+SUM(X58:Z58) -> 0 | AC60: =SUM(AC53:AC58) -> 0 | AD60: =SUM(AD53:AD58) -> 0 | AE60: =SUM(AE53:AE58) -> 0 | AF60: =SUM(AF53:AF58) -> 0 | AG60: =SUM(AG53:AG58) -> 0 | AH60: =SUM(AH53:AH59) -> 0
B61: <Enter substation ID>
B68: Project Totals | L68: =SUM(L61:L66) -> 0 | M68: =SUM(M61:M66) -> 0 | O68: =SUM(O61:O66) -> 0 | Q68: =SUM(Q61:Q66) -> 0 | R68: =SUM(R61:R66) -> 0 | T68: =SUM(T61:T66) -> 0 | U68: 0 | V68: 0 | W68: 0 | X68: 0 | Y68: 0 | Z68: 0 | AA68: =O66+R66+U66+V66+SUM(X66:Z66) -> 0 | AC68: =SUM(AC61:AC66) -> 0 | AD68: =SUM(AD61:AD66) -> 0 | AE68: =SUM(AE61:AE66) -> 0 | AF68: =SUM(AF61:AF66) -> 0 | AG68: =SUM(AG61:AG66) -> 0 | AH68: =SUM(AH61:AH67) -> 0
B69: <Enter substation ID>
B76: Project Totals | L76: =SUM(L69:L74) -> 0 | M76: =SUM(M69:M74) -> 0 | O76: =SUM(O69:O74) -> 0 | Q76: =SUM(Q69:Q74) -> 0 | R76: =SUM(R69:R74) -> 0 | T76: =SUM(T69:T74) -> 0 | U76: 0 | V76: 0 | W76: 0 | X76: 0 | Y76: 0 | Z76: 0 | AA76: =O74+R74+U74+V74+SUM(X74:Z74) -> 0 | AC76: =SUM(AC69:AC74) -> 0 | AD76: =SUM(AD69:AD74) -> 0 | AE76: =SUM(AE69:AE74) -> 0 | AF76: =SUM(AF69:AF74) -> 0 | AG76: =SUM(AG69:AG74) -> 0 | AH76: =SUM(AH69:AH75) -> 0
B77: <Enter substation ID>
B84: Project Totals | L84: =SUM(L77:L82) -> 0 | M84: =SUM(M77:M82) -> 0 | O84: =SUM(O77:O82) -> 0 | Q84: =SUM(Q77:Q82) -> 0 | R84: =SUM(R77:R82) -> 0 | T84: =SUM(T77:T82) -> 0 | U84: 0 | V84: 0 | W84: 0 | X84: 0 | Y84: 0 | Z84: 0 | AA84: =O82+R82+U82+V82+SUM(X82:Z82) -> 0 | AC84: =SUM(AC77:AC82) -> 0 | AD84: =SUM(AD77:AD82) -> 0 | AE84: =SUM(AE77:AE82) -> 0 | AF84: =SUM(AF77:AF82) -> 0 | AG84: =SUM(AG77:AG82) -> 0 | AH84: =SUM(AH77:AH83) -> 0
B85: <Enter substation ID>
B92: Project Totals | L92: =SUM(L85:L90) -> 0 | M92: =SUM(M85:M90) -> 0 | O92: =SUM(O85:O90) -> 0 | Q92: =SUM(Q85:Q90) -> 0 | R92: =SUM(R85:R90) -> 0 | T92: =SUM(T85:T90) -> 0 | U92: 0 | V92: 0 | W92: 0 | X92: 0 | Y92: 0 | Z92: 0 | AA92: =O90+R90+U90+V90+SUM(X90:Z90) -> 0 | AC92: =SUM(AC85:AC90) -> 0 | AD92: =SUM(AD85:AD90) -> 0 | AE92: =SUM(AE85:AE90) -> 0 | AF92: =SUM(AF85:AF90) -> 0 | AG92: =SUM(AG85:AG90) -> 0 | AH92: =SUM(AH85:AH91) -> 0
B93: <Enter substation ID>
B100: Project Totals | L100: =SUM(L93:L98) -> 0 | M100: =SUM(M93:M98) -> 0 | O100: =SUM(O93:O98) -> 0 | Q100: =SUM(Q93:Q98) -> 0 | R100: =SUM(R93:R98) -> 0 | T100: =SUM(T93:T98) -> 0 | U100: 0 | V100: 0 | W100: 0 | X100: 0 | Y100: 0 | Z100: 0 | AA100: =O98+R98+U98+V98+SUM(X98:Z98) -> 0 | AC100: =SUM(AC93:AC98) -> 0 | AD100: =SUM(AD93:AD98) -> 0 | AE100: =SUM(AE93:AE98) -> 0 | AF100: =SUM(AF93:AF98) -> 0 | AG100: =SUM(AG93:AG98) -> 0 | AH100: =SUM(AH93:AH99) -> 0
B101: <Enter substation ID>
B108: Project Totals | L108: =SUM(L101:L106) -> 0 | M108: =SUM(M101:M106) -> 0 | O108: =SUM(O101:O106) -> 0 | Q108: =SUM(Q101:Q106) -> 0 | R108: =SUM(R101:R106) -> 0 | T108: =SUM(T101:T106) -> 0 | U108: 0 | V108: 0 | W108: 0 | X108: 0 | Y108: 0 | Z108: 0 | AA108: =O106+R106+U106+V106+SUM(X106:Z106) -> 0 | AC108: =SUM(AC101:AC106) -> 0 | AD108: =SUM(AD101:AD106) -> 0 | AE108: =SUM(AE101:AE106) -> 0 | AF108: =SUM(AF101:AF106) -> 0 | AG108: =SUM(AG101:AG106) -> 0 | AH108: =SUM(AH101:AH107) -> 0
B109: <Enter substation ID>
B116: Project Totals | L116: =SUM(L109:L114) -> 0 | M116: =SUM(M109:M114) -> 0 | O116: =SUM(O109:O114) -> 0 | Q116: =SUM(Q109:Q114) -> 0 | R116: =SUM(R109:R114) -> 0 | T116: =SUM(T109:T114) -> 0 | U116: 0 | V116: 0 | W116: 0 | X116: 0 | Y116: 0 | Z116: 0 | AA116: =O114+R114+U114+V114+SUM(X114:Z114) -> 0 | AC116: =SUM(AC109:AC114) -> 0 | AD116: =SUM(AD109:AD114) -> 0 | AE116: =SUM(AE109:AE114) -> 0 | AF116: =SUM(AF109:AF114) -> 0 | AG116: =SUM(AG109:AG114) -> 0 | AH116: =SUM(AH109:AH115) -> 0
B117: <Enter substation ID>
B124: Project Totals | L124: =SUM(L117:L122) -> 0 | M124: =SUM(M117:M122) -> 0 | O124: =SUM(O117:O122) -> 0 | Q124: =SUM(Q117:Q122) -> 0 | R124: =SUM(R117:R122) -> 0 | T124: =SUM(T117:T122) -> 0 | U124: 0 | V124: 0 | W124: 0 | X124: 0 | Y124: 0 | Z124: 0 | AA124: =O122+R122+U122+V122+SUM(X122:Z122) -> 0 | AC124: =SUM(AC117:AC122) -> 0 | AD124: =SUM(AD117:AD122) -> 0 | AE124: =SUM(AE117:AE122) -> 0 | AF124: =SUM(AF117:AF122) -> 0 | AG124: =SUM(AG117:AG122) -> 0 | AH124: =SUM(AH117:AH123) -> 0
B125: <Enter substation ID>
B132: Project Totals | L132: =SUM(L125:L130) -> 0 | M132: =SUM(M125:M130) -> 0 | O132: =SUM(O125:O130) -> 0 | Q132: =SUM(Q125:Q130) -> 0 | R132: =SUM(R125:R130) -> 0 | T132: =SUM(T125:T130) -> 0 | U132: 0 | V132: 0 | W132: 0 | X132: 0 | Y132: 0 | Z132: 0 | AA132: =O130+R130+U130+V130+SUM(X130:Z130) -> 0 | AC132: =SUM(AC125:AC130) -> 0 | AD132: =SUM(AD125:AD130) -> 0 | AE132: =SUM(AE125:AE130) -> 0 | AF132: =SUM(AF125:AF130) -> 0 | AG132: =SUM(AG125:AG130) -> 0 | AH132: =SUM(AH125:AH131) -> 0
K133: Non material projects
B135: NOTE: TNSP MUST PROVIDE EXPENDITURE INFORMATION ON A PROJECT CLOSE BASIS.
B136: 2.3.2 - AUGEX ASSET DATA - LINES
B137: LINE AND PROJECT SUMMARY | L137: PLANT AND EQUIPMENT EXPENDITURE AND VOLUME | Z137: OTHER EXPENDITURE | AB137: TOTAL DIRECT EXPENDITURE ($0's) | AC137: YEARS INCURRED | AD137: ALL RELATED PARTY CONTRACTS | AF137: ALL NON RELATED PARTYCONTRACTS | AG137: LAND AND EASEMENTS | AI137: Comments
B138: LINE ID | D138: PROJECT ID | E138: PROJECT TYPE (drop down) | F138: PROJECT TRIGGER (drop down) | G138: VOLTAGE (KV) (drop down) | H138: ROUTE LINE LENGTH ADDED | L138: TOWERS/POLES (INCLUDING STRUCTURES, AND CIVIL WORKS) | P138: LINES AND CABLES | W138: OTHER PLANT ITEM | X138: INSTALLATION (LABOUR) | Z138: CIVIL WORKS | AA138: OTHER DIRECT | AD138: RELATED PARTY MARGINS | AE138: TOTAL | AG138: LAND PURCHASES | AH138: EASEMENTS
P139: Type | Q139: Rating (MVA) | S139: N-1 Emergency Rating (MVA) | U139: Circuit KM Added | V139: Expenditure ($0's) | W139: Expenditure ($0's)
H140: KM ADDED | L140: Configuration | M140: Towers/Poles Added | N140: Towers/Poles Upgraded | O140: Expenditure ($0's) | Q140: PRE | R140: POST | S140: PRE | T140: POST | X140: Volume | Y140: Expenditure ($0's) | Z140: Expenditure ($0's) | AD140: Expenditure ($0's) | AG140: Expenditure ($0's)
B141: <Enter line ID>
B148: Project Totals | M148: =SUM(M141:M147) -> 0 | N148: =SUM(N141:N147) -> 0 | O148: =SUM(O141:O147) -> 0 | U148: =SUM(U141:U147) -> 0 | V148: =SUM(V141:V147) -> 0 | W148: =SUM(W141:W146) -> 0 | X148: =SUM(X141:X146) -> 0 | Y148: =SUM(Y141:Y147) -> 0 | Z148: =SUM(Z141:Z147) -> 0 | AA148: =SUM(AA141:AA147) -> 0 | AB148: =K92+R92+S92+SUM(U92:W92) -> 0 | AD148: =SUM(AD141:AD147) -> 0 | AE148: =SUM(AE141:AE147) -> 0 | AF148: =SUM(AF141:AF147) -> 0 | AG148: =SUM(AG141:AG147) -> 0 | AH148: =SUM(AH141:AH147) -> 0
B149: <Enter line ID>
B156: Project Totals | M156: =SUM(M149:M155) -> 0 | N156: =SUM(N149:N155) -> 0 | O156: =SUM(O149:O155) -> 0 | U156: =SUM(U149:U155) -> 0 | V156: =SUM(V149:V155) -> 0 | W156: =SUM(W149:W154) -> 0 | X156: =SUM(X149:X154) -> 0 | Y156: =SUM(Y149:Y155) -> 0 | Z156: =SUM(Z149:Z155) -> 0 | AA156: =SUM(AA149:AA155) -> 0 | AB156: =K84+R84+S84+SUM(U84:W84) -> 0 | AD156: =SUM(AD149:AD155) -> 0 | AE156: =SUM(AE149:AE155) -> 0 | AF156: =SUM(AF149:AF155) -> 0 | AG156: =SUM(AG149:AG155) -> 0 | AH156: =SUM(AH149:AH155) -> 0
B157: <Enter line ID>
B164: Project Totals | M164: =SUM(M157:M163) -> 0 | N164: =SUM(N157:N163) -> 0 | O164: =SUM(O157:O163) -> 0 | U164: =SUM(U157:U163) -> 0 | V164: =SUM(V157:V163) -> 0 | W164: =SUM(W157:W162) -> 0 | X164: =SUM(X157:X162) -> 0 | Y164: =SUM(Y157:Y163) -> 0 | Z164: =SUM(Z157:Z163) -> 0 | AA164: =SUM(AA157:AA163) -> 0 | AB164: =K92+R92+S92+SUM(U92:W92) -> 0 | AD164: =SUM(AD157:AD163) -> 0 | AE164: =SUM(AE157:AE163) -> 0 | AF164: =SUM(AF157:AF163) -> 0 | AG164: =SUM(AG157:AG163) -> 0 | AH164: =SUM(AH157:AH163) -> 0
B165: <Enter line ID>
B172: Project Totals | M172: =SUM(M165:M171) -> 0 | N172: =SUM(N165:N171) -> 0 | O172: =SUM(O165:O171) -> 0 | U172: =SUM(U165:U171) -> 0 | V172: =SUM(V165:V171) -> 0 | W172: =SUM(W165:W170) -> 0 | X172: =SUM(X165:X170) -> 0 | Y172: =SUM(Y165:Y171) -> 0 | Z172: =SUM(Z165:Z171) -> 0 | AA172: =SUM(AA165:AA171) -> 0 | AB172: =K100+R100+S100+SUM(U100:W100) -> 0 | AD172: =SUM(AD165:AD171) -> 0 | AE172: =SUM(AE165:AE171) -> 0 | AF172: =SUM(AF165:AF171) -> 0 | AG172: =SUM(AG165:AG171) -> 0 | AH172: =SUM(AH165:AH171) -> 0
B173: <Enter line ID>
B180: Project Totals | M180: =SUM(M173:M179) -> 0 | N180: =SUM(N173:N179) -> 0 | O180: =SUM(O173:O179) -> 0 | U180: =SUM(U173:U179) -> 0 | V180: =SUM(V173:V179) -> 0 | W180: =SUM(W173:W178) -> 0 | X180: =SUM(X173:X178) -> 0 | Y180: =SUM(Y173:Y179) -> 0 | Z180: =SUM(Z173:Z179) -> 0 | AA180: =SUM(AA173:AA179) -> 0 | AB180: =K108+R108+S108+SUM(U108:W108) -> 0 | AD180: =SUM(AD173:AD179) -> 0 | AE180: =SUM(AE173:AE179) -> 0 | AF180: =SUM(AF173:AF179) -> 0 | AG180: =SUM(AG173:AG179) -> 0 | AH180: =SUM(AH173:AH179) -> 0
B181: <Enter line ID>
B188: Project Totals | M188: =SUM(M181:M187) -> 0 | N188: =SUM(N181:N187) -> 0 | O188: =SUM(O181:O187) -> 0 | U188: =SUM(U181:U187) -> 0 | V188: =SUM(V181:V187) -> 0 | W188: =SUM(W181:W186) -> 0 | X188: =SUM(X181:X186) -> 0 | Y188: =SUM(Y181:Y187) -> 0 | Z188: =SUM(Z181:Z187) -> 0 | AA188: =SUM(AA181:AA187) -> 0 | AB188: =K116+R116+S116+SUM(U116:W116) -> 0 | AD188: =SUM(AD181:AD187) -> 0 | AE188: =SUM(AE181:AE187) -> 0 | AF188: =SUM(AF181:AF187) -> 0 | AG188: =SUM(AG181:AG187) -> 0 | AH188: =SUM(AH181:AH187) -> 0
B189: <Enter line ID>
B196: Project Totals | M196: =SUM(M189:M195) -> 0 | N196: =SUM(N189:N195) -> 0 | O196: =SUM(O189:O195) -> 0 | U196: =SUM(U189:U195) -> 0 | V196: =SUM(V189:V195) -> 0 | W196: =SUM(W189:W194) -> 0 | X196: =SUM(X189:X194) -> 0 | Y196: =SUM(Y189:Y195) -> 0 | Z196: =SUM(Z189:Z195) -> 0 | AA196: =SUM(AA189:AA195) -> 0 | AB196: =K124+R124+S124+SUM(U124:W124) -> 0 | AD196: =SUM(AD189:AD195) -> 0 | AE196: =SUM(AE189:AE195) -> 0 | AF196: =SUM(AF189:AF195) -> 0 | AG196: =SUM(AG189:AG195) -> 0 | AH196: =SUM(AH189:AH195) -> 0
K197: Non material projects

Sheet 2.3 Augex (b)
B1: =(LOOKUP(dms_Model,dms_Model_List,dms_Worksheet_List)) -> REGULATORY REPORTING STATEMENT
B2: =INDEX(dms_TradingNameFull_List,MATCH(dms_TradingName,dms_TradingName_List)) -> TasNetworks (T)
B3: =IF(SUM(dms_SingleYear_Model)>0,CRY,CONCATENATE(FRCP_y1," to ",dms_MultiYear_FinalYear_Result)) -> 2019-20 to 2023-24
B4: 2.3 AUGEX PROJECTS
B6: There are THREE tables on this worksheet - each has been 'grouped' for easy navigation. See the Instructions sheet on how to group or ungroup tables.
B8: 2.3.4 - AUGEX - TOTAL EXPENDITURE
C9: =CONCATENATE("EXPENDITURE Forecast ($0's. real ",dms_DollarReal,")") -> EXPENDITURE Forecast ($0's. real June 2019)
B10: As incurred | C10: =CRCP_y4 -> 2017-18 | D10: =CRCP_y5 -> 2018-19 | E10: =FRCP_y1 -> 2019-20 | F10: =FRCP_y2 -> 2020-21 | G10: =FRCP_y3 -> 2021-22 | H10: =FRCP_y4 -> 2022-23 | I10: =FRCP_y5 -> 2023-24
B11: Substations | C11: 1311712.254 | D11: 1393377.566 | E11: 1101574.314 | F11: 11330478.65 | G11: 3304722.941 | H11: 0 | I11: 0
B12: Lines | C12: 0 | D12: 0 | E12: 0 | F12: 0 | G12: 0 | H12: 0 | I12: 0
B13: Other assets | C13: 126589.5251 | D13: 134470.8063 | E13: 38744.42408 | F13: 310590.1413 | G13: 389039.7223 | H13: 467813.4709 | I13: 312522.6016
B14: Total | C14: =SUM(C11:C13) -> 1438301.779 | D14: =SUM(D11:D13) -> 1527848.373 | E14: 1140318.738 | F14: 11641068.8 | G14: 3693762.663 | H14: 467813.4709 | I14: 312522.6016
B17: 2.3.5 - AUGEX - BY DRIVER
C18: =CONCATENATE("EXPENDITURE Forecast ($0's. real ",dms_DollarReal,")") -> EXPENDITURE Forecast ($0's. real June 2019)
B19: As incurred | C19: =CRCP_y4 -> 2017-18 | D19: =CRCP_y5 -> 2018-19 | E19: =FRCP_y1 -> 2019-20 | F19: =FRCP_y2 -> 2020-21 | G19: =FRCP_y3 -> 2021-22 | H19: =FRCP_y4 -> 2022-23 | I19: =FRCP_y5 -> 2023-24
B20: "Greenfield" driven augex (network expansion capex) | C20: 0 | D20: 0 | E20: 0 | F20: 0 | G20: 0 | H20: 0 | I20: 0
B21: Reinforcement driven augex (augmentation of the existing network) | C21: 1438301.779 | D21: 1527848.373 | E21: 1140318.738 | F21: 11641068.8 | G21: 3693762.663 | H21: 467813.4709 | I21: 312522.6016
B22: Total | C22: =SUM(C20:C21) -> 1438301.779 | D22: 1527848.373 | E22: 1140318.738 | F22: 11641068.8 | G22: 3693762.663 | H22: 467813.4709 | I22: 312522.6016
B25: 2.3.6 - AUGEX - GREENFIELDS DRIVEN
C26: =CONCATENATE("EXPENDITURE Forecast ($0's. real ",dms_DollarReal,")") -> EXPENDITURE Forecast ($0's. real June 2019)
B27: As incurred | C27: =CRCP_y4 -> 2017-18 | D27: =CRCP_y5 -> 2018-19 | E27: =FRCP_y1 -> 2019-20 | F27: =FRCP_y2 -> 2020-21 | G27: =FRCP_y3 -> 2021-22 | H27: =FRCP_y4 -> 2022-23 | I27: =FRCP_y5 -> 2023-24
B28: Substations | C28: 0 | D28: 0 | E28: 0 | F28: 0 | G28: 0 | H28: 0 | I28: 0
B29: Lines | C29: 0 | D29: 0 | E29: 0 | F29: 0 | G29: 0 | H29: 0 | I29: 0
B30: Other assets | C30: 0 | D30: 0 | E30: 0 | F30: 0 | G30: 0 | H30: 0 | I30: 0
B31: Total | C31: =SUM(C28:C30) -> 0 | D31: =SUM(D28:D30) -> 0 | E31: =SUM(E28:E30) -> 0 | F31: 0 | G31: 0 | H31: 0 | I31: 0

Sheet 2.5 Connections
B1: =(LOOKUP(dms_Model,dms_Model_List,dms_Worksheet_List)) -> REGULATORY REPORTING STATEMENT
B2: =INDEX(dms_TradingNameFull_List,MATCH(dms_TradingName,dms_TradingName_List)) -> TasNetworks (T)
B3: =IF(SUM(dms_SingleYear_Model)>0,CRY,CONCATENATE(FRCP_y1," to ",dms_MultiYear_FinalYear_Result)) -> 2019-20 to 2023-24
B4: 2.5 CONNECTIONS EXPENDITURE
B6: There are TWO tables on this worksheet. Each has been grouped (or sub-grouped). See the Instructions sheet on how to group or ungroup data.
B8: 2.5.1 - EXPENDITURE ON CONNECTION PROJECTS
C9: =CONCATENATE("EXPENDITURE Forecast ($0's. real ",dms_DollarReal,")") -> EXPENDITURE Forecast ($0's. real June 2019)
C10: =CRCP_y4 -> 2017-18 | D10: =CRCP_y5 -> 2018-19 | E10: =FRCP_y1 -> 2019-20 | F10: =FRCP_y2 -> 2020-21 | G10: =FRCP_y3 -> 2021-22 | H10: =FRCP_y4 -> 2022-23 | I10: =FRCP_y5 -> 2023-24
B11: DIRECT MATERIALS EXPENDITURE
B12: Sheffield Substation | C12: 0 | D12: 0 | E12: 0 | F12: 906091.4989 | G12: 1630964.698 | H12: 0 | I12: 0
B37: DIRECT LABOUR EXPENDITURE
B38: =IF(ISBLANK(B12),"",B12) -> Sheffield Substation
B39: =IF(ISBLANK(B13),"",B13) -> 
B66: 2.5.2 - DESCRIPTION OF CONNECTION PROJECTS
C67: CONNECTION RATING (MVA) | D67: CONNECTION VOLTAGE (KV) | E67: UNDERGROUND / OVERHEAD (drop down) | F67: YEAR CONNECTION PROJECT COMPLETED
B68: =IF(ISBLANK(B12),"",B12) -> Sheffield Substation | C68: 30 | D68: 22 | E68: Overhead | F68: 2022
B69: =IF(ISBLANK(B13),"",B13) -> 
B70: =IF(ISBLANK(B14),"",B14) -> 

Sheet 2.6 Non-network
B1: =(LOOKUP(dms_Model,dms_Model_List,dms_Worksheet_List)) -> REGULATORY REPORTING STATEMENT
B2: =INDEX(dms_TradingNameFull_List,MATCH(dms_TradingName,dms_TradingName_List)) -> TasNetworks (T)
B3: =IF(SUM(dms_SingleYear_Model)>0,CRY,CONCATENATE(FRCP_y1," to ",dms_MultiYear_FinalYear_Result)) -> 2019-20 to 2023-24
B4: 2.6 NON NETWORK EXPENDITURE
B6: There are THREE tables on this worksheet - each has been 'grouped' for easy navigation. See the Instructions sheet on how to group or ungroup tables.
B8: 2.6.1 - NON-NETWORK EXPENDITURE
E9: =CONCATENATE("EXPENDITURE Forecast ($0's. real ",dms_DollarReal,")") -> EXPENDITURE Forecast ($0's. real June 2019)
B10: SERVICE SUBCATEGORY | C10: ASSET CATEGORY | E10: =CRCP_y4 -> 2017-18 | F10: =CRCP_y5 -> 2018-19 | G10: =FRCP_y1 -> 2019-20 | H10: =FRCP_y2 -> 2020-21 | I10: =FRCP_y3 -> 2021-22 | J10: =FRCP_y4 -> 2022-23 | K10: =FRCP_y5 -> 2023-24
B11: OPEX
B12: IT & COMMUNICATIONS | C12: Total IT and communications | E12: 10306254.66 | F12: 10306254.66 | G12: 10306254.66 | H12: 10306254.66 | I12: 10306254.66 | J12: 10306254.66 | K12: 10306254.66
B13: MOTOR VEHICLES | C13: Car | E13: 280212.9168 | F13: 280212.9168 | G13: 280212.9168 | H13: 280212.9168 | I13: 280212.9168 | J13: 280212.9168 | K13: 280212.9168
C14: Light commercial vehicle | E14: 1027447.362 | F14: 1027447.362 | G14: 1027447.362 | H14: 1027447.362 | I14: 1027447.362 | J14: 1027447.362 | K14: 1027447.362
C15: Elevated work platform (LCV) | E15: 0 | F15: 0 | G15: 0 | H15: 0 | I15: 0 | J15: 0 | K15: 0
C16: Elevated work platform (HCV) | E16: 0 | F16: 0 | G16: 0 | H16: 0 | I16: 0 | J16: 0 | K16: 0
C17: Heavy commercial vehicle | E17: 93404.3056 | F17: 93404.3056 | G17: 93404.3056 | H17: 93404.3056 | I17: 93404.3056 | J17: 93404.3056 | K17: 93404.3056
B18: BUILDINGS AND PROPERTY | C18: Total buildings and property expenditure | E18: 1997007.812 | F18: 1997007.812 | G18: 1997007.812 | H18: 1997007.812 | I18: 1997007.812 | J18: 1997007.812 | K18: 1997007.812
B19: OTHER | C19: Other expenditure
B20: OTHER - TNSP nominated
B31: CAPEX
B32: IT & COMMUNICATIONS | C32: Total IT and communications | E32: 2468615.781 | F32: 2028275.159 | G32: 3870779.598 | H32: 5341314.964 | I32: 3804655.962 | J32: 3188810.029 | K32: 2501877.374
B33: MOTOR VEHICLES | C33: Car | E33: 159556.9313 | F33: 158028.0882 | G33: 241064.3386 | H33: 436281.6464 | I33: 509722.4728 | J33: 317820.8921 | K33: 378028.2891
C34: Light commercial vehicle | E34: 445079.8612 | F34: 440815.1937 | G34: 332665.7948 | H34: 602063.2563 | I34: 703410.6851 | J34: 438588.8858 | K34: 521674.3463
C35: Elevated work platform (LCV) | E35: 0 | F35: 0 | G35: 0 | H35: 0 | I35: 0 | J35: 0 | K35: 0
C36: Elevated work platform (HCV) | E36: 442290.0352 | F36: 456102.0733 | G36: 147538.9441 | H36: 267018.0658 | I36: 311966.1575 | J36: 194516.3648 | K36: 231365.1821
C37: Heavy commercial vehicle | E37: 71146.50713 | F37: 65013.30177 | G37: 84792.86122 | H37: 153459.3184 | I37: 179291.6661 | J37: 111791.495 | K37: 132969.0673
B38: BUILDINGS AND PROPERTY | C38: Total buildings and property expenditure | E38: 68872.54064 | F38: 64139.42434 | G38: 1194650.423 | H38: 1337029.152 | I38: 562481.2811 | J38: 369424.4476 | K38: 157840.8824
B39: OTHER | C39: Other expenditure
B40: OTHER - TNSP nominated
B54: 2.6.3 - ANNUAL DESCRIPTOR METRICS
B55: IT & COMMUNICATIONS
E56: VOLUMES (0's)
E57: =CRCP_y4 -> 2017-18 | F57: =CRCP_y5 -> 2018-19 | G57: =FRCP_y1 -> 2019-20 | H57: =FRCP_y2 -> 2020-21 | I57: =FRCP_y3 -> 2021-22 | J57: =FRCP_y4 -> 2022-23 | K57: =FRCP_y5 -> 2023-24
B58: Employee numbers | E58: 204 | F58: 204 | G58: 204 | H58: 204 | I58: 204 | J58: 204 | K58: 204
B59: User numbers | E59: 164 | F59: 164 | G59: 164 | H59: 164 | I59: 164 | J59: 164 | K59: 164
B60: Number of devices | E60: 342 | F60: 342 | G60: 342 | H60: 342 | I60: 342 | J60: 342 | K60: 342
B63: MOTOR VEHICLES
E64: VOLUMES (0's or %)
D65: Units | E65: =CRCP_y4 -> 2017-18 | F65: =CRCP_y5 -> 2018-19 | G65: =FRCP_y1 -> 2019-20 | H65: =FRCP_y2 -> 2020-21 | I65: =FRCP_y3 -> 2021-22 | J65: =FRCP_y4 -> 2022-23 | K65: =FRCP_y5 -> 2023-24
B66: CAR | C66: Average kilometres travelled | D66: 0's | E66: 971829 | F66: 971829 | G66: 971829 | H66: 971829 | I66: 971829 | J66: 971829 | K66: 971829
C67: Number purchased | D67: 0's | E67: 5 | F67: 2 | G67: 7 | H67: 13 | I67: 8 | J67: 3 | K67: 5
C68: Number leased | D68: 0's
C69: Number in fleet | D69: 0's | E69: 40 | F69: 40 | G69: 40 | H69: 40 | I69: 40 | J69: 40 | K69: 40
C70: Proportion of total fleet expenditure allocated as regulatory expenditure | D70: % | E70: 0.244 | F70: 0.244 | G70: 0.244 | H70: 0.244 | I70: 0.244 | J70: 0.244 | K70: 0.244
B71: LIGHT COMMERCIAL VEHICLE | C71: Average kilometres travelled | D71: 0's | E71: 1493298 | F71: 1493298 | G71: 1493298 | H71: 1493298 | I71: 1493298 | J71: 1493298 | K71: 1493298
C72: Number purchased | D72: 0's | E72: 10 | F72: 2 | G72: 11 | H72: 15 | I72: 11 | J72: 12 | K72: 10
C73: Number leased | D73: 0's
C74: Number in fleet | D74: 0's | E74: 61 | F74: 61 | G74: 61 | H74: 61 | I74: 61 | J74: 61 | K74: 61
C75: Proportion of total fleet expenditure allocated as regulatory expenditure | D75: % | E75: 0.244 | F75: 0.244 | G75: 0.244 | H75: 0.244 | I75: 0.244 | J75: 0.244 | K75: 0.244
B76: ELEVATED WORK PLATFORM (LCV) | C76: Average kilometres travelled | D76: 0's
C77: Number purchased | D77: 0's
C78: Number leased | D78: 0's
C79: Number in fleet | D79: 0's
C80: Proportion of total fleet expenditure allocated as regulatory expenditure | D80: %
B81: ELEVATED WORK PLATFORM (HCV) | C81: Average kilometres travelled | D81: 0's | E81: 854000 | F81: 854000 | G81: 854000 | H81: 854000 | I81: 854000 | J81: 854000 | K81: 854000
C82: Number purchased | D82: 0's | E82: 0 | F82: 0 | G82: 3 | H82: 1 | I82: 1 | J82: 1 | K82: 3
C83: Number leased | D83: 0's
C84: Number in fleet | D84: 0's | E84: 12 | F84: 12 | G84: 12 | H84: 12 | I84: 12 | J84: 12 | K84: 12
C85: Proportion of total fleet expenditure allocated as regulatory expenditure | D85: % | E85: 0.244 | F85: 0.244 | G85: 0.244 | H85: 0.244 | I85: 0.244 | J85: 0.244 | K85: 0.244
B86: HEAVY COMMERCIAL VEHICLE | C86: Average kilometres travelled | D86: 0's | E86: 415616 | F86: 415616 | G86: 415616 | H86: 415616 | I86: 415616 | J86: 415616 | K86: 415616
C87: Number purchased | D87: 0's | E87: 0 | F87: 2 | G87: 0 | H87: 1 | I87: 1 | J87: 0 | K87: 0
C88: Number leased | D88: 0's
C89: Number in fleet | D89: 0's | E89: 8 | F89: 8 | G89: 8 | H89: 8 | I89: 8 | J89: 8 | K89: 8
C90: Proportion of total fleet expenditure allocated as regulatory expenditure | D90: % | E90: 0.244 | F90: 0.244 | G90: 0.244 | H90: 0.244 | I90: 0.244 | J90: 0.244 | K90: 0.244
B94: 2.6.4 - INFORMATION & COMMUNICATIONS TECHNOLOGY - CAPEX BY PURPOSE
E95: =CONCATENATE("EXPENDITURE Forecast ($0's. real ",dms_DollarReal,")") -> EXPENDITURE Forecast ($0's. real June 2019)
E96: =CRCP_y4 -> 2017-18 | F96: =CRCP_y5 -> 2018-19 | G96: =FRCP_y1 -> 2019-20 | H96: =FRCP_y2 -> 2020-21 | I96: =FRCP_y3 -> 2021-22 | J96: =FRCP_y4 -> 2022-23 | K96: =FRCP_y5 -> 2023-24
B97: ICT CAPABILITY GROWTH
B98: Customer Information Systems | E98: 0 | F98: 0 | G98: 0 | H98: 172072.087 | I98: 0 | J98: 0 | K98: 0
B99: Digital Customer Engagement | E99: 0 | F99: 0 | G99: 0 | H99: 151856.2899 | I99: 0 | J99: 0 | K99: 0
B100: IT Infrastructure, Security & Support | E100: 1176473.718 | F100: 340294.5693 | G100: 849178.6109 | H100: 1073143.813 | I100: 3087978.338 | J100: 1573821.747 | K100: 1647672.147
B101: Mobility | E101: 78171.63133 | F101: 0 | G101: 0 | H101: 204741.6613 | I101: 0 | J101: 331463.8719 | K101: 87061.06731
B102: Data Warehouses, Bus Intelligence & Analytics | E102: 0 | F102: 0 | G102: 0 | H102: 0 | I102: 344064.4388 | J102: 139879.6445 | K102: 101326.3191
B103: Enterprise Architecture Evolution | E103: 0 | F103: 0 | G103: 0 | H103: 0 | I103: 0 | J103: 69939.82227 | K103: 50663.15957
B104: ITC ASSET EXTENSIONS
B105: Digital Customer Engagement | E105: 0 | F105: 0 | G105: 0 | H105: 10566.89511 | I105: 0 | J105: 0 | K105: 0
B106: Finance, HR, Asset & Works Systems | E106: 6413.859733 | F106: 13251.39828 | G106: 23484.40697 | H106: 29258.90481 | I106: 0 | J106: 0 | K106: 0
B107: Market Systems | E107: 0 | F107: 0 | G107: 0 | H107: 0 | I107: 0 | J107: 0 | K107: 0
B111: ITC ASSET REMEDIATION
B112: Business Systems Upgrades | E112: 293354.7976 | F112: 15789.60951 | G112: 60873.37808 | H112: 40203.75865 | I112: 372613.1856 | J112: 250949.4623 | K112: 83331.15457
B113: Enterprise Information Management | E113: 112007.1135 | F113: 1559.876479 | G113: 0 | H113: 0 | I113: 0 | J113: 822755.4809 | K113: 531823.527
B114: Finance, HR, Asset & Works Systems | E114: 66016.79617 | F114: 136394.4482 | G114: 241721.1122 | H114: 301157.0623 | I114: 0 | J114: 0 | K114: 0
B118: ITC ASSET REPLACEMENT
B119: Finance, HR, Asset & Works Systems | E119: 736177.8653 | F119: 1520985.257 | G119: 2695522.09 | H119: 3358314.491 | I119: 0 | J119: 0 | K119: 0

Sheet 2.10 Overheads
B1: =(LOOKUP(dms_Model,dms_Model_List,dms_Worksheet_List)) -> REGULATORY REPORTING STATEMENT
B2: =INDEX(dms_TradingNameFull_List,MATCH(dms_TradingName,dms_TradingName_List)) -> TasNetworks (T)
B3: =IF(SUM(dms_SingleYear_Model)>0,CRY,CONCATENATE(FRCP_y1," to ",dms_MultiYear_FinalYear_Result)) -> 2019-20 to 2023-24
B4: 2.10 OVERHEADS
B6: There are TWO tables on this worksheet. Each table has been 'grouped' (and sub-grouped) for easy navigation. See the Instructions sheet on how to group or ungroup data.
B8: 2.10.1 - NETWORK OVERHEADS EXPENDITURE
D9: =CONCATENATE("EXPENDITURE Forecast ($0's. real ",dms_DollarReal,")") -> EXPENDITURE Forecast ($0's. real June 2019)
D10: =CRCP_y4 -> 2017-18 | E10: =CRCP_y5 -> 2018-19 | F10: =FRCP_y1 -> 2019-20 | G10: =FRCP_y2 -> 2020-21 | H10: =FRCP_y3 -> 2021-22 | I10: =FRCP_y4 -> 2022-23 | J10: =FRCP_y5 -> 2023-24
B11: MAINTENANCE SUPPORT
B12: Prescribed Services | C12: Capitalised Overheads | D12: 2791685.687 | E12: 2791685.687 | F12: 2791685.687 | G12: 2783714.906 | H12: 2756213.69 | I12: 2726190.269 | J12: 2699705.362
B37: Negotiated Services | C37: Total
B38: Unregulated Services | C38: Total | D38: 59161.51899 | E38: 59161.51899 | F38: 59161.51899 | G38: 58865.71139 | H38: 58277.05428 | I38: 57694.28373 | J38: 57117.3409
B39: NETWORK MONITORING AND CONTROL
B40: Prescribed Services | C40: Capitalised Overheads | D40: 2025419.476 | E40: 2025419.476 | F40: 2025419.476 | G40: 2019636.527 | H40: 1999683.888 | I40: 1977901.342 | J40: 1958686.053
B61: Negotiated Services | C61: Total
B62: Unregulated Services | C62: Total | D62: 89509.7734 | E62: 89509.7734 | F62: 89509.7734 | G62: 89062.22453 | H62: 88171.60229 | I62: 87289.88627 | J62: 86416.9874
B63: ASSET MANAGEMENT SUPPORT
B64: Prescribed Services | C64: Capitalised Overheads | D64: 3923805.285 | E64: 3923805.285 | F64: 3923805.285 | G64: 3912602.093 | H64: 3873948.237 | I64: 3831749.34 | J64: 3794523.939
B90: Negotiated Services | C90: Total
B91: Unregulated Services | C91: Total | D91: 825445.0549 | E91: 825445.0549 | F91: 825445.0549 | G91: 821317.8296 | H91: 813104.6513 | I91: 804973.6048 | J91: 796923.8687
B95: 2.10.2 - CORPORATE OVERHEADS EXPENDITURE
D96: =CONCATENATE("EXPENDITURE Forecast ($0's. real ",dms_DollarReal,")") -> EXPENDITURE Forecast ($0's. real June 2019)
D97: =CRCP_y4 -> 2017-18 | E97: =CRCP_y5 -> 2018-19 | F97: =FRCP_y1 -> 2019-20 | G97: =FRCP_y2 -> 2020-21 | H97: =FRCP_y3 -> 2021-22 | I97: =FRCP_y4 -> 2022-23 | J97: =FRCP_y5 -> 2023-24
B98: CORPORATE OVERHEADS
B99: Prescribed Services | C99: Capitalised Overheads | D99: 1571341.403 | E99: 1571341.403 | F99: 1571341.403 | G99: 1566854.932 | H99: 1551375.467 | I99: 1534476.343 | J99: 1519568.923
B124: Negotiated Services | C124: Total
B125: Unregulated Services | C125: Total | D125: 825445.0549 | E125: 825445.0549 | F125: 825445.0549 | G125: 821317.8296 | H125: 813104.6513 | I125: 804973.6048 | J125: 796923.8687

Sheet 2.11 Labour
B1: =(LOOKUP(dms_Model,dms_Model_List,dms_Worksheet_List)) -> REGULATORY REPORTING STATEMENT
B2: =INDEX(dms_TradingNameFull_List,MATCH(dms_TradingName,dms_TradingName_List)) -> TasNetworks (T)
B3: =IF(SUM(dms_SingleYear_Model)>0,CRY,CONCATENATE(FRCP_y1," to ",dms_MultiYear_FinalYear_Result)) -> 2019-20 to 2023-24
B4: 2.11 LABOUR
B6: There is ONE table on this worksheet. The table has been 'grouped' (and sub-grouped) for easy navigation. See the Instructions sheet on how to group or ungroup data.
B8: Table numbering in this template starts at 2.11.3. Tables 2.11.1 & 2.11.2 appear in the Category Analysis RIN and are not required for this RIN.
B10: 2.11.3 - LABOUR / NON-LABOUR EXPENDITURE SPLIT
B11: OPEX
C12: EXPENDITURE
C13: ($0's, nominal) | H13: =CONCATENATE("($0's, real ", dms_DollarReal,")") -> ($0's, real June 2019)
C14: =PRCP_y4 -> 2012-13 | D14: =PRCP_y5 -> 2013-14 | E14: =CRCP_y1 -> 2014-15 | F14: =CRCP_y2 -> 2015-16 | G14: =CRCP_y3 -> 2016-17 | H14: =CRCP_y4 -> 2017-18 | I14: =CRCP_y5 -> 2018-19 | J14: =FRCP_y1 -> 2019-20 | K14: =FRCP_y2 -> 2020-21 | L14: =FRCP_y3 -> 2021-22 | M14: =FRCP_y4 -> 2022-23 | N14: =FRCP_y5 -> 2023-24
B15: In-house labour expenditure
B16: Labour expenditure outsourced to related parties
B17: Labour expenditure outsourced to unrelated parties
B18: Controllable non-labour expenditure
B19: Uncontrollable non-labour expenditure
B20: Total | C20: =SUM(C15:C19) -> 0 | D20: =SUM(D15:D19) -> 0 | E20: 0 | F20: 0 | G20: 0 | H20: 0 | I20: =SUM(I15:I19) -> 0 | J20: 0 | K20: 0 | L20: 0 | M20: 0 | N20: 0
B22: CAPEX
C23: EXPENDITURE
C24: ($0's, nominal) | H24: =CONCATENATE("($0's, real ", dms_DollarReal,")") -> ($0's, real June 2019)
C25: =PRCP_y4 -> 2012-13 | D25: =PRCP_y5 -> 2013-14 | E25: =CRCP_y1 -> 2014-15 | F25: =CRCP_y2 -> 2015-16 | G25: =CRCP_y3 -> 2016-17 | H25: =CRCP_y4 -> 2017-18 | I25: =CRCP_y5 -> 2018-19 | J25: =FRCP_y1 -> 2019-20 | K25: =FRCP_y2 -> 2020-21 | L25: =FRCP_y3 -> 2021-22 | M25: =FRCP_y4 -> 2022-23 | N25: =FRCP_y5 -> 2023-24
B26: In-house labour expenditure
B27: Labour expenditure outsourced to related parties
B28: Labour expenditure outsourced to unrelated parties
B29: Controllable non-labour expenditure
B30: Uncontrollable non-labour expenditure
B31: Total | C31: =SUM(C26:C30) -> 0 | D31: =SUM(D26:D30) -> 0 | E31: 0 | F31: 0 | G31: 0 | H31: 0 | I31: =SUM(I26:I30) -> 0 | J31: 0 | K31: 0 | L31: 0 | M31: 0 | N31: 0

Sheet 2.14 Forecast price changes
B1: =(LOOKUP(dms_Model,dms_Model_List,dms_Worksheet_List)) -> REGULATORY REPORTING STATEMENT
B2: =INDEX(dms_TradingNameFull_List,MATCH(dms_TradingName,dms_TradingName_List)) -> TasNetworks (T)
B3: =IF(SUM(dms_SingleYear_Model)>0,CRY,CONCATENATE(FRCP_y1," to ",dms_MultiYear_FinalYear_Result)) -> 2019-20 to 2023-24
B4: 2.14 FORECAST PRICE CHANGES
B6: Instructions
B7: =CONCATENATE(dms_TradingName, " must provide all forecast price changes used to forecast opex and capex, including forecast changes in CPI. "&"Forecast price changes must be expressed in real terms, except for CPI. If the same escalators are not used for capex and opex, report capex and opex escalators separately. "&"If price changes for a given year were not used to forecast either opex or capex enter '0' for that year.") -> TasNetworks (T) must provide all forecast price changes used to forecast opex and capex, including forecast changes in CPI. Forecast price changes must be expressed in real terms, except for CPI. If the same escalators are not used for capex and opex, report capex and opex escalators separately. If price changes for a given year were not used to forecast either opex or capex enter '0' for that year.
B9: 2.14.2 - FORECAST CAPEX AND OPEX PRICE CHANGES
C10: Price changes (% YoY real) Current regulatory period | E10: Price changes (%YoY real) Forthcoming regulatory period
C11: Forecast
C12: =CRCP_y4 -> 2017-18 | D12: =CRCP_y5 -> 2018-19 | E12: =FRCP_y1 -> 2019-20 | F12: =FRCP_y2 -> 2020-21 | G12: =FRCP_y3 -> 2021-22 | H12: =FRCP_y4 -> 2022-23 | I12: =FRCP_y5 -> 2023-24
B13: OPEX
B14: WPI | E14: 0 | F14: 0.0049 | G14: 0.0049 | H14: 0.0049 | I14: 0.0049
B17: CAPEX
B18: WPI (labour component) | E18: 0 | F18: 0.0049 | G18: 0.0049 | H18: 0.0049 | I18: 0.0049

Sheet 2.16 Opex Summary
B1: =(LOOKUP(dms_Model,dms_Model_List,dms_Worksheet_List)) -> REGULATORY REPORTING STATEMENT
B2: =INDEX(dms_TradingNameFull_List,MATCH(dms_TradingName,dms_TradingName_List)) -> TasNetworks (T)
B3: =IF(SUM(dms_SingleYear_Model)>0,CRY,CONCATENATE(FRCP_y1," to ",dms_MultiYear_FinalYear_Result)) -> 2019-20 to 2023-24
B4: 2.16 OPEX SUMMARY
B6: Instructions | K6: IMPORTANT!
B7: =CONCATENATE("Complete the tables below in accordance with the regulatory information notice. ",dms_TradingName, "'s total forecast opex must reconcile to Table 2.16.1. If ",dms_TradingName," did not forecast its total opex using a Base Year approach, total forecast opex must reconcile to Table 2.16.2") -> Complete the tables below in accordance with the regulatory information notice. TasNetworks (T)'s total forecast opex must reconcile to Table 2.16.1. If TasNetworks (T) did not forecast its total opex using a Base Year approach, total forecast opex must reconcile to Table 2.16.2 | K7: =CONCATENATE("Has ",dms_TradingName," used a base-step-trend model to derive its opex forecast? ") -> Has TasNetworks (T) used a base-step-trend model to derive its opex forecast? | M7: Yes
B8: The total step changes and category specific forecasts in Table 2.16.1 must reconcile (in each year) to the total step changes and category secific forecasts for each year in Tables 2.17.1 and 2.17.5 of worksheet 2.17 Step Changes.") | K8: Yes / No
K9: Please nominate the base year. | M9: 2017-18
B11: 2.16.1 - PRESCRIBED TRANSMISSION SERVICES - OPEX BY DRIVER
C12: =CONCATENATE("Forecast ($0's, real ", dms_DollarReal, ")") -> Forecast ($0's, real June 2019)
C13: =CRCP_y1 -> 2014-15 | D13: =CRCP_y2 -> 2015-16 | E13: =CRCP_y3 -> 2016-17 | F13: =CRCP_y4 -> 2017-18 | G13: =CRCP_y5 -> 2018-19 | H13: =FRCP_y1 -> 2019-20 | I13: =FRCP_y2 -> 2020-21 | J13: =FRCP_y3 -> 2021-22 | K13: =FRCP_y4 -> 2022-23 | L13: =FRCP_y5 -> 2023-24
B14: Base year total opex, excluding category specific | F14: 38441219.9 | G14: 38441219.9 | H14: 38441219.9 | I14: 38441219.9 | J14: 38441219.9 | K14: 38441219.9 | L14: 38441219.9
B15: Increment from base year to final year | G15: -530635.2857 | H15: -530635.2857 | I15: -530635.2857 | J15: -530635.2857 | K15: -530635.2857 | L15: -530635.2857
B16: Price growth | H16: 0 | I16: 115172.356 | J16: 230694.6057 | K16: 346567.812 | L16: 462793.041
B17: Output growth | H17: 48917.48101 | I17: 88174.54321 | J17: 177818.5319 | K17: 217654.4156 | L17: 258567.7063
B18: Productivity growth | H18: -48917.48101 | I18: -393167.6966 | J18: -792724.4953 | K18: -1328600.939 | L18: -1862335.349
B19: Step changes | H19: 0 | I19: 0 | J19: 0 | K19: 0 | L19: 0
B20: Category specific | H20: 0 | I20: 0 | J20: 0 | K20: 0 | L20: 0
B21: Total opex | C21: =SUM(C14:C20) -> 0 | D21: 0 | E21: 0 | F21: 38441219.9 | G21: 37910584.61 | H21: 37910584.61 | I21: 37720763.81 | J21: 37526373.25 | K21: 37146205.9 | L21: 36769610.01
B25: 2.16.2 - PRESCRIBED TRANSMISSION SERVICES - OPEX BY CATEGORY
C26: =CONCATENATE("Forecast ($0's, real ", dms_DollarReal, ")") -> Forecast ($0's, real June 2019)
C27: =CRCP_y1 -> 2014-15 | D27: =CRCP_y2 -> 2015-16 | E27: =CRCP_y3 -> 2016-17 | F27: =CRCP_y4 -> 2017-18 | G27: =CRCP_y5 -> 2018-19 | H27: =FRCP_y1 -> 2019-20 | I27: =FRCP_y2 -> 2020-21 | J27: =FRCP_y3 -> 2021-22 | K27: =FRCP_y4 -> 2022-23 | L27: =FRCP_y5 -> 2023-24
B58: Total opex | C58: =SUM(C28:C57) -> 0 | D58: =SUM(D28:D57) -> 0 | E58: =SUM(E28:E57) -> 0 | F58: 0 | G58: 0 | H58: 0 | I58: 0 | J58: 0 | K58: 0 | L58: 0

Sheet 2.17 Step Changes
B1: =(LOOKUP(dms_Model,dms_Model_List,dms_Worksheet_List)) -> REGULATORY REPORTING STATEMENT
B2: =INDEX(dms_TradingNameFull_List,MATCH(dms_TradingName,dms_TradingName_List)) -> TasNetworks (T)
B3: =IF(SUM(dms_SingleYear_Model)>0,CRY,CONCATENATE(FRCP_y1," to ",dms_MultiYear_FinalYear_Result)) -> 2019-20 to 2023-24
B4: 2.17 STEP CHANGES
B6: Instructions
B7: Complete the Tables below in accordance with the regulatory information notice. The total step changes and category specifici forecasts in Tables 2.17.1 and 2.17.5 must reconcile (in each year) to the total step changes and category specific forecasts for each year in Table 2.16.1 of worksheet 2.16 Opex Summary.
B9: 2.17.1 - STEP CHANGES FOR PRESCRIBED TRANSMISSION SERVICES - FORECAST OPEX
F10: EXPENDITURE
F11: =CONCATENATE("Forecast ($0's, real ", dms_DollarReal, ")") -> Forecast ($0's, real June 2019)
B12: Step change | C12: Description | D12: =CRCP_y1 -> 2014-15 | E12: =CRCP_y2 -> 2015-16 | F12: =CRCP_y4 -> 2017-18 | G12: =CRCP_y5 -> 2018-19 | H12: =FRCP_y1 -> 2019-20 | I12: =FRCP_y2 -> 2020-21 | J12: =FRCP_y3 -> 2021-22 | K12: =FRCP_y4 -> 2022-23 | L12: =FRCP_y5 -> 2023-24
B27: Total | D27: =SUM(D20:D26) -> 0 | E27: 0 | F27: 0 | G27: 0 | H27: 0 | I27: 0 | J27: 0 | K27: 0 | L27: 0
B28: Check | H28: =IF(H$27-'2.16 Opex Summary'!C$19=0,"OK","Error") -> OK | I28: =IF(I$27-'2.16 Opex Summary'!G$19=0,"OK","Error") -> OK | J28: =IF(J$27-'2.16 Opex Summary'!H$19=0,"OK","Error") -> OK | K28: =IF(K$27-'2.16 Opex Summary'!I$19=0,"OK","Error") -> OK | L28: =IF(L$27-'2.16 Opex Summary'!J$19=0,"OK","Error") -> OK
B31: 2.17.2 - STEP CHANGES FOR PRESCRIBED TRANSMISSION SERVICES - FORECAST CAPEX
F32: EXPENDITURE
F33: =CONCATENATE("Forecast ($0's, real ", dms_DollarReal, ")") -> Forecast ($0's, real June 2019)
B34: Step change | C34: Description | D34: =CRCP_y1 -> 2014-15 | E34: =CRCP_y2 -> 2015-16 | F34: =CRCP_y4 -> 2017-18 | G34: =CRCP_y5 -> 2018-19 | H34: =FRCP_y1 -> 2019-20 | I34: =FRCP_y2 -> 2020-21 | J34: =FRCP_y3 -> 2021-22 | K34: =FRCP_y4 -> 2022-23 | L34: =FRCP_y5 -> 2023-24
B50: Total | D50: =SUM(D35:D49) -> 0 | E50: =SUM(E35:E49) -> 0 | F50: 0 | G50: 0 | H50: 0 | I50: 0 | J50: 0 | K50: 0 | L50: 0
B53: 2.17.5 - CATEGORY SPECIFIC OPEX FOR PRESCRIBED TRANSMISSION SERVICES
F54: EXPENDITURE
F55: =CONCATENATE("Forecast ($0's, real ", dms_DollarReal, ")") -> Forecast ($0's, real June 2019)
B56: Category | C56: Description | D56: =CRCP_y1 -> 2014-15 | E56: =CRCP_y2 -> 2015-16 | F56: =CRCP_y4 -> 2017-18 | G56: =CRCP_y5 -> 2018-19 | H56: =FRCP_y1 -> 2019-20 | I56: =FRCP_y2 -> 2020-21 | J56: =FRCP_y3 -> 2021-22 | K56: =FRCP_y4 -> 2022-23 | L56: =FRCP_y5 -> 2023-24
B71: Total | D71: =SUM(D64:D70) -> 0 | E71: 0 | F71: 0 | G71: 0 | H71: 0 | I71: 0 | J71: 0 | K71: 0 | L71: 0
B72: Check | H72: =IF(H$71-'2.16 Opex Summary'!C$20=0,"OK","Error") -> OK | I72: =IF(I$71-'2.16 Opex Summary'!G$20=0,"OK","Error") -> OK | J72: =IF(J$71-'2.16 Opex Summary'!H$20=0,"OK","Error") -> OK | K72: =IF(K$71-'2.16 Opex Summary'!I$20=0,"OK","Error") -> OK | L72: =IF(L$71-'2.16 Opex Summary'!J$20=0,"OK","Error") -> OK

Sheet 3.1 Revenue
B1: =(LOOKUP(dms_Model,dms_Model_List,dms_Worksheet_List)) -> REGULATORY REPORTING STATEMENT
B2: =INDEX(dms_TradingNameFull_List,MATCH(dms_TradingName,dms_TradingName_List)) -> TasNetworks (T)
B3: =IF(SUM(dms_SingleYear_Model)>0,CRY,CONCATENATE(FRCP_y1," to ",dms_MultiYear_FinalYear_Result)) -> 2019-20 to 2023-24
B4: 3.1 REVENUE
B8: 3.1.1 - REVENUE GROUPING BY CHARGEABLE QUANTITY
C9: REVENUE
C10: =CONCATENATE("Forecast ($0's, real ",dms_DollarReal,")") -> Forecast ($0's, real June 2019)
C11: =CRCP_y4 -> 2017-18 | D11: =CRCP_y5 -> 2018-19 | E11: =FRCP_y1 -> 2019-20 | F11: =FRCP_y2 -> 2020-21 | G11: =FRCP_y3 -> 2021-22 | H11: =FRCP_y4 -> 2022-23 | I11: =FRCP_y5 -> 2023-24
A12: TREV0101 | B12: From Fixed Customer (Exit Point) Charges | C12: 27502743.02 | D12: 28394202.42 | E12: 28061838.35 | F12: 26473117.41 | G12: 25005948.67 | H12: 23618553.15 | I12: 22286389.37
A13: TREV0102 | B13: From Variable Customer (Exit Point) Charges | C13: 0 | D13: 0 | E13: 0 | F13: 0 | G13: 0 | H13: 0 | I13: 0
A14: TREV0103 | B14: From Fixed Generator (Entry Point) Charges | C14: 11220681.69 | D14: 10968687.43 | E14: 10842581.48 | F14: 10239787.2 | G14: 9683112.393 | H14: 9156705.234 | I14: 8651254.158
A15: TREV0104 | B15: From Variable Generator (Entry Point) Charges | C15: 0 | D15: 0 | E15: 0 | F15: 0 | G15: 0 | H15: 0 | I15: 0
A16: TREV0105 | B16: From Fixed Energy Usage Charges (Charge per day basis) | C16: 0 | D16: 0 | E16: 0 | F16: 0 | G16: 0 | H16: 0 | I16: 0
A17: TREV0106 | B17: From Variable Energy Usage charges (Charge per kWh basis) | C17: 10578385.54 | D17: 10240301.63 | E17: 9927676.94 | F17: 9484234.461 | G17: 9054034.16 | H17: 8637303.312 | I17: 8233818.015
A18: TREV0107 | B18: From Energy based Common Service and General Charges | C18: 8815100.506 | D18: 8668964.576 | E18: 7457397.443 | F18: 7329168.866 | G18: 7164913.186 | H18: 7005004.445 | I18: 6849166.403
A19: TREV0108 | B19: From Fixed Demand based Usage Charges | C19: 105050885.8 | D19: 100998112.9 | E19: 96501744.55 | F19: 92798862.97 | G19: 88976825.21 | H19: 84749697.38 | I19: 80749815.57
A20: TREV0109 | B20: From Variable Demand based Usage Charges | C20: 0 | D20: 0 | E20: 0 | F20: 0 | G20: 0 | H20: 0 | I20: 0
A21: TREV0110 | B21: Revenue from other Sources | C21: 7581300 | D21: 7400000 | E21: 9760858.956 | F21: 9527436.755 | G21: 9299596.637 | H21: 9077205.112 | I21: 8860131.881
A22: TREV01 | B22: Total revenue by chargeable quantity | C22: =SUM(C12:C21) -> 170749096.6 | D22: =SUM(D12:D21) -> 166670269 | E22: 162552097.7 | F22: 155852607.7 | G22: 149184430.3 | H22: 142244468.6 | I22: 135630575.4
B25: 3.1.2 - REVENUE GROUPING BY TYPE OF CONNECTED EQUIPMENT
C26: REVENUE
C27: =CONCATENATE("Forecast ($0's, real ",dms_DollarReal,")") -> Forecast ($0's, real June 2019)
C28: =CRCP_y4 -> 2017-18 | D28: =CRCP_y5 -> 2018-19 | E28: =FRCP_y1 -> 2019-20 | F28: =FRCP_y2 -> 2020-21 | G28: =FRCP_y3 -> 2021-22 | H28: =FRCP_y4 -> 2022-23 | I28: =FRCP_y5 -> 2023-24
A29: TREV0201 | B29: From Other connected transmission networks | C29: 0 | D29: 0 | E29: 0 | F29: 0 | G29: 0 | H29: 0 | I29: 0
A30: TREV0202 | B30: From Distribution networks | C30: 97422099.62 | D30: 94033875.12 | E30: 89844156.02 | F30: 85848275.4 | G30: 82001339.86 | H30: 78330706.79 | I30: 74817925.61
A31: TREV0203 | B31: From Directly connected end–users | C31: 54525015.28 | D31: 54267706.44 | E31: 52104501.26 | F31: 50237108.3 | G31: 48200381.37 | H31: 45679851.5 | I31: 43301263.75
A32: TREV0204 | B32: From Generators | C32: 11220681.69 | D32: 10968687.43 | E32: 10842581.48 | F32: 10239787.2 | G32: 9683112.393 | H32: 9156705.234 | I32: 8651254.158
A33: TREV0205 | B33: Other revenue | C33: 7581300 | D33: 7400000 | E33: 9760858.956 | F33: 9527436.755 | G33: 9299596.637 | H33: 9077205.112 | I33: 8860131.881
A34: TREV02 | B34: Total revenue by type of connected equipment | C34: =SUM(C29:C33) -> 170749096.6 | D34: =SUM(D29:D33) -> 166670269 | E34: 162552097.7 | F34: 155852607.7 | G34: 149184430.3 | H34: 142244468.6 | I34: 135630575.4
B37: 3.1.3 - REVENUE (penalties) ALLOWED (deducted) THROUGH INCENTIVE SCHEMES
C38: =CONCATENATE("Forecast ($0's, real ",dms_DollarReal,")") -> Forecast ($0's, real June 2019)
C39: =CRCP_y4 -> 2017-18 | D39: =CRCP_y5 -> 2018-19 | E39: =FRCP_y1 -> 2019-20 | F39: =FRCP_y2 -> 2020-21 | G39: =FRCP_y3 -> 2021-22 | H39: =FRCP_y4 -> 2022-23 | I39: =FRCP_y5 -> 2023-24
A40: TREV0301 | B40: EBSS | C40: 4567009 | D40: 0 | E40: 6919687 | F40: 1400021 | G40: 123058 | H40: 4808614 | I40: 244324
A41: TREV0302 | B41: STPIS | C41: 1164593.204 | D41: 1136743 | E41: 0 | F41: 0 | G41: 0 | H41: 0 | I41: 0
A42: TREV0303 | B42: Other | C42: 2626780.093 | D42: 2563963 | E42: 1760714.788 | F42: 1718608.87 | G42: 1677509.878 | H42: 1637393.732 | I42: 1598236.927
A43: TREV03 | B43: Total revenue of incentive schemes | C43: =SUM(C40:C42) -> 8358382.297 | D43: =SUM(D40:D42) -> 3700706 | E43: 8680401.788 | F43: 3118629.87 | G43: 1800567.878 | H43: 6446007.732 | I43: 1842560.927

Sheet 3.2 Operating expenditure
B1: =(LOOKUP(dms_Model,dms_Model_List,dms_Worksheet_List)) -> REGULATORY REPORTING STATEMENT
B2: =INDEX(dms_TradingNameFull_List,MATCH(dms_TradingName,dms_TradingName_List)) -> TasNetworks (T)
B3: =IF(SUM(dms_SingleYear_Model)>0,CRY,CONCATENATE(FRCP_y1," to ",dms_MultiYear_FinalYear_Result)) -> 2019-20 to 2023-24
B4: 3.2 OPERATING EXPENDITURE
B7: 3.2.1 - OPEX CATEGORIES
C8: EXPENDITURE
C9: =CONCATENATE("Forecast ($0's, real ",dms_DollarReal,")") -> Forecast ($0's, real June 2019)
C10: =CRCP_y4 -> 2017-18 | D10: =CRCP_y5 -> 2018-19 | E10: =FRCP_y1 -> 2019-20 | F10: =FRCP_y2 -> 2020-21 | G10: =FRCP_y3 -> 2021-22 | H10: =FRCP_y4 -> 2022-23 | I10: =FRCP_y5 -> 2023-24
B11: OPEX CATEGORIES AND COST ALLOCATIONS - approved CAM
B12: Maintenance and vegetation management | C12: 19302288.82 | D12: 19035839.11 | E12: 19035839.11 | F12: 18940659.92 | G12: 18843460.45 | H12: 18653024.81 | I12: 18464512.57
B13: Emergency response | C13: 440903.794 | D13: 434817.5371 | E13: 434817.5371 | F13: 432643.4494 | G13: 430423.2146 | H13: 426073.2747 | I13: 421767.2693
B14: Network operations | C14: 2613628.376 | D14: 2577549.726 | E14: 2577549.726 | F14: 2564661.977 | G14: 2551500.674 | H14: 2525714.717 | I14: 2500189.198
B15: Network asset services | C15: 1619700.395 | D15: 1597341.973 | E15: 1597341.973 | F15: 1589355.263 | G15: 1581199.028 | H15: 1565219.126 | I15: 1549400.622
B16: Business services | C16: 14464707.78 | D16: 14265036.26 | E16: 14265036.26 | F16: 14193711.08 | G16: 14120871.95 | H16: 13978163.7 | I16: 13836896.81
B46: Total opex | C46: =SUM(C12:C45) -> 38441229.17 | D46: =SUM(D12:D45) -> 37910584.61 | E46: 37910584.61 | F46: 37721031.69 | G46: 37527455.32 | H46: 37148195.63 | I46: 36772766.47
B50: 3.2.2 - OPEX CONSISTENCY
B51: CURRENT COST ALLOCATION APPROACH
C52: EXPENDITURE
C53: =CONCATENATE("Forecast ($0's, real ",dms_DollarReal,")") -> Forecast ($0's, real June 2019)
C54: =CRCP_y4 -> 2017-18 | D54: =CRCP_y5 -> 2018-19 | E54: =FRCP_y1 -> 2019-20 | F54: =FRCP_y2 -> 2020-21 | G54: =FRCP_y3 -> 2021-22 | H54: =FRCP_y4 -> 2022-23 | I54: =FRCP_y5 -> 2023-24
A55: TOPEX0201 | B55: Opex for subtransmission assets
A56: TOPEX0202 | B56: Opex for HV assets
B60: Instructions Table 3.2.3 must be completed if there are any proposed changes to the CAM reported in response to Schedule 1, paragraph 1.3.
B62: 3.2.3 - OPEX CATEGORIES - Revised CAM
C63: EXPENDITURE
C64: =CONCATENATE("Forecast ($0's, real ",dms_DollarReal,")") -> Forecast ($0's, real June 2019)
C65: =CRCP_y4 -> 2017-18 | D65: =CRCP_y5 -> 2018-19 | E65: =FRCP_y1 -> 2019-20 | F65: =FRCP_y2 -> 2020-21 | G65: =FRCP_y3 -> 2021-22 | H65: =FRCP_y4 -> 2022-23 | I65: =FRCP_y5 -> 2023-24
B66: OPEX CATEGORIES AND COST ALLOCATIONS - revised CAM
B101: Total opex | C101: =SUM(C67:C100) -> 0 | D101: =SUM(D67:D100) -> 0 | E101: =SUM(E67:E100) -> 0 | F101: 0 | G101: 0 | H101: 0 | I101: 0

Sheet 3.3 Assets (RAB)
B1: =(LOOKUP(dms_Model,dms_Model_List,dms_Worksheet_List)) -> REGULATORY REPORTING STATEMENT
B2: =INDEX(dms_TradingNameFull_List,MATCH(dms_TradingName,dms_TradingName_List)) -> TasNetworks (T)
B3: =IF(SUM(dms_SingleYear_Model)>0,CRY,CONCATENATE(FRCP_y1," to ",dms_MultiYear_FinalYear_Result)) -> 2019-20 to 2023-24
B4: 3.3 ASSETS
B6: There are FOUR tables on this worksheet. Each table has been grouped (and sub-grouped) for ease of navigation. See the Instructions sheet on how to group or ungroup tables.
B8: 3.3.1 - REGULATORY ASSET BASE VALUES
C9: =CONCATENATE("Forecast ($0's, real ",dms_DollarReal,")") -> Forecast ($0's, real June 2019)
C10: =CRCP_y4 -> 2017-18 | D10: =CRCP_y5 -> 2018-19 | E10: =FRCP_y1 -> 2019-20 | F10: =FRCP_y2 -> 2020-21 | G10: =FRCP_y3 -> 2021-22 | H10: =FRCP_y4 -> 2022-23 | I10: =FRCP_y5 -> 2023-24
B11: For total asset base:
A12: TRAB0101 | B12: Opening value | C12: 1480907628 | D12: 1473917722 | E12: 1467448074 | F12: 1454113947 | G12: 1463583718 | H12: 1472663371 | I12: 1460607097
A13: TRAB0102 | B13: Inflation addition | C13: 0 | D13: 0 | E13: 0 | F13: 0 | G13: 0 | H13: 0 | I13: 0
A14: TRAB0103 | B14: Straight line depreciation | C14: -62907590.56 | D14: -63136926.4 | E14: -53541210.39 | F14: -56140095.2 | G14: -57924109.07 | H14: -60826351.62 | I14: -63399428.5
A15: TRAB0105 | B15: Actual additions (recognised in RAB) | C15: 55917684.59 | D15: 56667278.02 | E15: 40207083.8 | F15: 65609865.63 | G15: 67003762.45 | H15: 48770077.96 | I15: 44144182.66
A16: TRAB0106 | B16: Disposals | C16: 0 | D16: 0 | E16: 0 | F16: 0 | G16: 0 | H16: 0 | I16: 0
A17: TRAB0107 | B17: Closing value | C17: =SUM(C12:C16) -> 1473917722 | D17: =SUM(D12:D16) -> 1467448074 | E17: 1454113947 | F17: 1463583718 | G17: 1472663371 | H17: 1460607097 | I17: 1441351852
B20: 3.3.2 - ASSET VALUE ROLL FORWARD
C21: =CONCATENATE("Forecast ($0's, real ",dms_DollarReal,")") -> Forecast ($0's, real June 2019)
C22: =CRCP_y4 -> 2017-18 | D22: =CRCP_y5 -> 2018-19 | E22: =FRCP_y1 -> 2019-20 | F22: =FRCP_y2 -> 2020-21 | G22: =FRCP_y3 -> 2021-22 | H22: =FRCP_y4 -> 2022-23 | I22: =FRCP_y5 -> 2023-24
B23: For overhead assets:
A24: TRAB0201 | B24: Opening value | C24: 510055619.6 | D24: 507682904.1 | E24: 511473929.8 | F24: 508023487.7 | G24: 500452107 | H24: 497231483.8 | I24: 494611883
A25: TRAB0202 | B25: Inflation addition | C25: 0 | D25: 0 | E25: 0 | F25: 0 | G25: 0 | H25: 0 | I25: 0
A26: TRAB0203 | B26: Straight line depreciation | C26: -12747487.11 | D26: -13029308.35 | E26: -14252540.91 | F26: -14500154.28 | G26: -14658980.54 | H26: -14735633.08 | I26: -14893304.44
A27: TRAB0205 | B27: Actual additions (recognised in RAB) | C27: 10374771.56 | D27: 16820334.09 | E27: 10802098.77 | F27: 6928773.563 | G27: 11438357.34 | H27: 12116032.31 | I27: 6947194.561
A28: TRAB0206 | B28: Disposals | C28: 0 | D28: 0 | E28: 0 | F28: 0 | G28: 0 | H28: 0 | I28: 0
A29: TRAB0207 | B29: Closing value | C29: =SUM(C24:C28) -> 507682904.1 | D29: =SUM(D24:D28) -> 511473929.8 | E29: =SUM(E24:E28) -> 508023487.7 | F29: =SUM(F24:F28) -> 500452107 | G29: =SUM(G24:G28) -> 497231483.8 | H29: =SUM(H24:H28) -> 494611883 | I29: =SUM(I24:I28) -> 486665773.1
B30: For underground assets:
A31: TRAB0301 | B31: Opening value | C31: 30438407.25 | D31: 29677680.01 | E31: 28900134.62 | F31: 28049590.82 | G31: 27184270.29 | H31: 26309471.54 | I31: 25430098.42
A32: TRAB0302 | B32: Inflation addition | C32: 0 | D32: 0 | E32: 0 | F32: 0 | G32: 0 | H32: 0 | I32: 0
A33: TRAB0303 | B33: Straight line depreciation | C33: -760727.2404 | D33: -777545.3864 | E33: -850543.7995 | F33: -865320.5339 | G33: -874798.7519 | H33: -879373.1185 | I33: -888782.4161
A34: TRAB0305 | B34: Actual additions (recognised in RAB) | C34: 0 | D34: 0 | E34: 0 | F34: 0 | G34: 0 | H34: 0 | I34: 0
A35: TRAB0306 | B35: Disposals | C35: 0 | D35: 0 | E35: 0 | F35: 0 | G35: 0 | H35: 0 | I35: 0
A36: TRAB0307 | B36: Closing value | C36: =SUM(C31:C35) -> 29677680.01 | D36: =SUM(D31:D35) -> 28900134.62 | E36: =SUM(E31:E35) -> 28049590.82 | F36: =SUM(F31:F35) -> 27184270.29 | G36: =SUM(G31:G35) -> 26309471.54 | H36: =SUM(H31:H35) -> 25430098.42 | I36: =SUM(I31:I35) -> 24541316
B37: For switchyards, substations
A38: TRAB0401 | B38: Opening value | C38: 725146090.4 | D38: 716387601.4 | E38: 705065732.2 | F38: 690777348.8 | G38: 704839767 | H38: 715181057.5 | I38: 707333251.4
A39: TRAB0402 | B39: Inflation addition | C39: 0 | D39: 0 | E39: 0 | F39: 0 | G39: 0 | H39: 0 | I39: 0
A40: TRAB0403 | B40: Straight line depreciation | C40: -36155707.75 | D40: -33475389.87 | E40: -29951183.63 | F40: -30642057.05 | G40: -31276634.73 | H40: -33535690.54 | I40: -35046559.51
A41: TRAB0405 | B41: Actual additions (recognised in RAB) | C41: 27397218.81 | D41: 22153520.69 | E41: 15662800.16 | F41: 44704475.27 | G41: 41617925.2 | H41: 25687884.48 | I41: 25848882.39
A42: TRAB0406 | B42: Disposals | C42: 0 | D42: 0 | E42: 0 | F42: 0 | G42: 0 | H42: 0 | I42: 0
A43: TRAB0407 | B43: Closing value | C43: =SUM(C38:C42) -> 716387601.4 | D43: =SUM(D38:D42) -> 705065732.2 | E43: =SUM(E38:E42) -> 690777348.8 | F43: =SUM(F38:F42) -> 704839767 | G43: =SUM(G38:G42) -> 715181057.5 | H43: =SUM(H38:H42) -> 707333251.4 | I43: =SUM(I38:I42) -> 698135574.3
B44: For easements:
A45: TRAB0501 | B45: Opening value | C45: 6824333.996 | D45: 6881874.2 | E45: 7479814.821 | F45: 7621341.287 | G45: 8252550.686 | H45: 8981880.671 | I45: 10059129.4
A46: TRAB0502 | B46: Inflation addition | C46: 0 | D46: 0 | E46: 0 | F46: 0 | G46: 0 | H46: 0 | I46: 0
A47: TRAB0503 | B47: Straight line depreciation | C47: 0 | D47: 0 | E47: 0 | F47: 0 | G47: 0 | H47: 0 | I47: 0
A48: TRAB0505 | B48: Actual additions (recognised in RAB) | C48: 57540.20368 | D48: 597940.6209 | E48: 141526.4665 | F48: 631209.3994 | G48: 729329.9846 | H48: 1077248.731 | I48: 694801.5321
A49: TRAB0506 | B49: Disposals | C49: 0 | D49: 0 | E49: 0 | F49: 0 | G49: 0 | H49: 0 | I49: 0
A50: TRAB0507 | B50: Closing value | C50: =SUM(C45:C49) -> 6881874.2 | D50: =SUM(D45:D49) -> 7479814.821 | E50: =SUM(E45:E49) -> 7621341.287 | F50: =SUM(F45:F49) -> 8252550.686 | G50: =SUM(G45:G49) -> 8981880.671 | H50: =SUM(H45:H49) -> 10059129.4 | I50: =SUM(I45:I49) -> 10753930.93
B51: For “other” assets with long lives:
A52: TRAB0601 | B52: Opening value | C52: 190093507.5 | D52: 197319401.3 | E52: 199335501.4 | F52: 201217557.7 | G52: 200489386.1 | H52: 199964030.1 | I52: 197930407.5
A53: TRAB0602 | B53: Inflation addition | C53: 0 | D53: 0 | E53: 0 | F53: 0 | G53: 0 | H53: 0 | I53: 0
A54: TRAB0603 | B54: Straight line depreciation | C54: -4379491.504 | D54: -5217989.28 | E54: -5768061.573 | F54: -6388056.869 | G54: -6720573.528 | H54: -6306316.57 | I54: -6467924.631
A55: TRAB0605 | B55: Actual additions (recognised in RAB) | C55: 11605385.3 | D55: 7234089.408 | E55: 7650117.92 | F55: 5659885.27 | G55: 6195217.459 | H55: 4272694.003 | I55: 5667703.11
A56: TRAB0606 | B56: Disposals | C56: 0 | D56: 0 | E56: 0 | F56: 0 | G56: 0 | H56: 0 | I56: 0
A57: TRAB0607 | B57: Closing value | C57: =SUM(C52:C56) -> 197319401.3 | D57: =SUM(D52:D56) -> 199335501.4 | E57: =SUM(E52:E56) -> 201217557.7 | F57: =SUM(F52:F56) -> 200489386.1 | G57: =SUM(G52:G56) -> 199964030.1 | H57: =SUM(H52:H56) -> 197930407.5 | I57: =SUM(I52:I56) -> 197130186
B58: For “other” assets with short lives:
A59: TRAB0701 | B59: Opening value | C59: 18349669.5 | D59: 15968261.25 | E59: 15192960.95 | F59: 18424620.95 | G59: 22365636.61 | H59: 24995447.55 | I59: 25242327.67
A60: TRAB0702 | B60: Inflation addition | C60: 0 | D60: 0 | E60: 0 | F60: 0 | G60: 0 | H60: 0 | I60: 0
A61: TRAB0703 | B61: Straight line depreciation | C61: -8864176.954 | D61: -10636693.51 | E61: -2718880.476 | F61: -3744506.469 | G61: -4393121.522 | H61: -5369338.315 | I61: -6102857.502
A62: TRAB0705 | B62: Actual additions (recognised in RAB) | C62: 6482768.71 | D62: 9861393.21 | E62: 5950540.481 | F62: 7685522.123 | G62: 7022932.466 | H62: 5616218.439 | I62: 4985601.069
A63: TRAB0706 | B63: Disposals | C63: 0 | D63: 0 | E63: 0 | F63: 0 | G63: 0 | H63: 0 | I63: 0
A64: TRAB0707 | B64: Closing value | C64: =SUM(C59:C63) -> 15968261.25 | D64: =SUM(D59:D63) -> 15192960.95 | E64: =SUM(E59:E63) -> 18424620.95 | F64: =SUM(F59:F63) -> 22365636.61 | G64: =SUM(G59:G63) -> 24995447.55 | H64: =SUM(H59:H63) -> 25242327.67 | I64: =SUM(I59:I63) -> 24125071.24
B68: 3.3.3 - TOTAL DISAGGREGATED RAB ASSET VALUES
C69: =CONCATENATE("Forecast ($0's, real ",dms_DollarReal,")") -> Forecast ($0's, real June 2019)
C70: =CRCP_y4 -> 2017-18 | D70: =CRCP_y5 -> 2018-19 | E70: =FRCP_y1 -> 2019-20 | F70: =FRCP_y2 -> 2020-21 | G70: =FRCP_y3 -> 2021-22 | H70: =FRCP_y4 -> 2022-23 | I70: =FRCP_y5 -> 2023-24
A71: TRAB0801 | B71: Overhead transmission assets (wires and towers/poles etc) | C71: 508869261.9 | D71: 509578417 | E71: 509748708.8 | F71: 504237797.3 | G71: 498841795.4 | H71: 495921683.4 | I71: 490638828.1
A72: TRAB0802 | B72: Underground transmission assets (cables, ducts etc) | C72: 30058043.63 | D72: 29288907.32 | E72: 28474862.72 | F72: 27616930.56 | G72: 26746870.91 | H72: 25869784.98 | I72: 24985707.21
A73: TRAB0803 | B73: Substations, switchyards, Transformers etc with transmission function | C73: 720766845.9 | D73: 710726666.8 | E73: 697921540.5 | F73: 697808557.9 | G73: 710010412.2 | H73: 711257154.4 | I73: 702734412.8
A74: TRAB0804 | B74: Easements | C74: 6853104.098 | D74: 7180844.51 | E74: 7550578.054 | F74: 7936945.987 | G74: 8617215.679 | H74: 9520505.037 | I74: 10406530.17
A75: TRAB0805 | B75: Other assets with long lives | C75: 193706454.4 | D75: 198327451.3 | E75: 200276529.6 | F75: 200853471.9 | G75: 200226708.1 | H75: 198947218.8 | I75: 197530296.7
A76: TRAB0806 | B76: Other assets with short lives | C76: 17158965.37 | D76: 15580611.1 | E76: 16808790.95 | F76: 20395128.78 | G76: 23680542.08 | H76: 25118887.61 | I76: 24683699.46
B79: 3.3.4 - ASSET LIVES
C80: Asset Life
C81: =CRCP_y4 -> 2017-18 | D81: =CRCP_y5 -> 2018-19 | E81: =FRCP_y1 -> 2019-20 | F81: =FRCP_y2 -> 2020-21 | G81: =FRCP_y3 -> 2021-22 | H81: =FRCP_y4 -> 2022-23 | I81: =FRCP_y5 -> 2023-24
B82: ESTIMATED SERVICE LIFE OF NEW ASSETS
A83: TRAB0901 | B83: Overhead transmission assets (wires and towers/poles etc) | C83: 57.31150237 | D83: 57.31150237 | E83: 57.31150237 | F83: 57.31150237 | G83: 57.31150237 | H83: 57.31150237 | I83: 57.31150237
A84: TRAB0902 | B84: Underground transmission assets (cables, ducts etc) | C84: 45.79881749 | D84: 45.79881749 | E84: 45.79881749 | F84: 45.79881749 | G84: 45.79881749 | H84: 45.79881749 | I84: 45.79881749
A85: TRAB0903 | B85: Substations, switchyards, Transformers etc with transmission function | C85: 40.92718643 | D85: 40.92718643 | E85: 40.92718643 | F85: 40.92718643 | G85: 40.92718643 | H85: 40.92718643 | I85: 40.92718643
A86: TRAB0904 | B86: Other assets with long lives | C86: 29.64167597 | D86: 29.64167597 | E86: 29.64167597 | F86: 29.64167597 | G86: 29.64167597 | H86: 29.64167597 | I86: 29.64167597
A87: TRAB0905 | B87: Other assets with short lives | C87: 6.889852244 | D87: 6.889852244 | E87: 6.889852244 | F87: 6.889852244 | G87: 6.889852244 | H87: 6.889852244 | I87: 6.889852244
B88: ESTIMATED RESIDUAL SERVICE LIFE
A89: TRAB1001 | B89: Overhead transmission assets | C89: 39.88906015 | D89: 39.66061729 | E89: 39.07767716 | F89: 38.43024667 | G89: 37.90053222 | H89: 37.4829713 | I89: 36.89246255
A90: TRAB1002 | B90: Underground transmission assets | C90: 28.51666667 | D90: 28.03333333 | E90: 27.55 | F90: 27.06666667 | G90: 26.58333333 | H90: 26.1 | I90: 25.61666667
A91: TRAB1003 | B91: Switchyard, substation and transformer assets | C91: 31.74805624 | D91: 31.34527496 | E91: 30.51847304 | F91: 30.01945916 | G91: 30.10812667 | H91: 29.82326291 | I91: 29.38122695
A92: TRAB1004 | B92: Other assets with long lives | C92: 23.96583099 | D92: 23.14030523 | E92: 22.25146361 | F92: 22.30607123 | G92: 22.26230441 | H92: 21.8130341 | I92: 20.90672822
A93: TRAB1005 | B93: Other assets with short lives | C93: 5.471186211 | D93: 5.614726566 | E93: 5.053192584 | F93: 4.449325825 | G93: 4.290831879 | H93: 4.356903141 | I93: 4.314444393

Sheet 3.4 Operational data
B1: =(LOOKUP(dms_Model,dms_Model_List,dms_Worksheet_List)) -> REGULATORY REPORTING STATEMENT
B2: =INDEX(dms_TradingNameFull_List,MATCH(dms_TradingName,dms_TradingName_List)) -> TasNetworks (T)
B3: =IF(SUM(dms_SingleYear_Model)>0,CRY,CONCATENATE(FRCP_y1," to ",dms_MultiYear_FinalYear_Result)) -> 2019-20 to 2023-24
B4: 3.4 OPERATIONAL DATA
B6: There are THREE tables on this worksheet. Each table has been grouped for ease of navigation. See the Instructions sheet on how to group or ungroup tables.
B8: 3.4.1 - ENERGY DELIVERY
D9: Forecast (0's)
C10: Units | D10: =CRCP_y4 -> 2017-18 | E10: =CRCP_y5 -> 2018-19 | F10: =FRCP_y1 -> 2019-20 | G10: =FRCP_y2 -> 2020-21 | H10: =FRCP_y3 -> 2021-22 | I10: =FRCP_y4 -> 2022-23 | J10: =FRCP_y5 -> 2023-24
B11: Energy grouping by downstream connection type
A12: TOPED0101 | B12: To Other connected transmission networks | C12: GWh | D12: 2388.597869 | E12: 2388.597869 | F12: 2388.597869 | G12: 2388.597869 | H12: 2388.597869 | I12: 2388.597869 | J12: 2388.597869
A13: TOPED0102 | B13: To Distribution networks | C13: GWh | D13: 4121.727997 | E13: 4185.883719 | F13: 4259.293716 | G13: 4332.907268 | H13: 4404.665964 | I13: 4474.073027 | J13: 4546.003984
A14: TOPED0103 | B14: To Directly connected end–users (330 kV) | C14: GWh | D14: 0 | E14: 0 | F14: 0 | G14: 0 | H14: 0 | I14: 0 | J14: 0
A15: TOPED0104 | B15: To Directly connected end–users (275 kV) | C15: GWh | D15: 0 | E15: 0 | F15: 0 | G15: 0 | H15: 0 | I15: 0 | J15: 0
A16: TOPED0105 | B16: To Directly connected end–users (220 kV) | C16: GWh | D16: 2992.850273 | E16: 2992.850273 | F16: 2992.850273 | G16: 2992.850273 | H16: 3009.745843 | I16: 3009.745843 | J16: 3009.745843
A17: TOPED0106 | B17: To Directly connected end–users (132 kV) | C17: GWh | D17: 0 | E17: 0 | F17: 0 | G17: 0 | H17: 0 | I17: 0 | J17: 0
A18: TOPED0107 | B18: To Directly connected end–users (110 kV) | C18: GWh | D18: 868.2054216 | E18: 868.2054216 | F18: 868.2054216 | G18: 868.2054216 | H18: 868.2054216 | I18: 868.2054216 | J18: 868.2054216
A19: TOPED0108 | B19: To Directly connected end–users (44 kV) | C19: GWh | D19: 120.3379493 | E19: 124.1227087 | F19: 127.9074682 | G19: 127.9074682 | H19: 127.9074682 | I19: 127.9074682 | J19: 127.9074682
A20: TOPED0109 | B20: To Directly connected end–users (33 kV) | C20: GWh | D20: 0 | E20: 0 | F20: 0 | G20: 0 | H20: 0 | I20: 0 | J20: 0
A21: TOPED0110 | B21: To Directly connected end–users (22 kV) | C21: GWh | D21: 193.6159884 | E21: 193.6159884 | F21: 193.6159884 | G21: 193.6159884 | H21: 193.6159884 | I21: 193.6159884 | J21: 193.6159884
A22: TOPED0111 | B22: To Directly connected end–users (11 kV) | C22: GWh | D22: 1000.581725 | E22: 1000.581725 | F22: 1000.581725 | G22: 1000.581725 | H22: 1000.581725 | I22: 1000.581725 | J22: 1000.581725
A23: TOPED0112 | B23: To Directly connected end–users (6.6 kV) | C23: GWh | D23: 734.3886128 | E23: 734.3886128 | F23: 734.3886128 | G23: 734.3886128 | H23: 734.3886128 | I23: 734.3886128 | J23: 734.3886128
A24: TOPED0113 | B24: Pumping and Power Station Auxillaries | C24: GWh | D24: 25.88495511 | E24: 25.88495511 | F24: 25.88495511 | G24: 25.88495511 | H24: 25.88495511 | I24: 25.88495511 | J24: 25.88495511
A25: TOPED01 | B25: Total energy transported | C25: GWh | D25: =SUM(D12:D24) -> 12446.19079 | E25: =SUM(E12:E24) -> 12514.13127 | F25: =SUM(F12:F24) -> 12591.32603 | G25: 12664.93958 | H25: 12753.59385 | I25: 12823.00091 | J25: 12894.93187
B28: 3.4.2 - CONNECTION POINTS
D29: Forecast (0's)
C30: Units | D30: =CRCP_y4 -> 2017-18 | E30: =CRCP_y5 -> 2018-19 | F30: =FRCP_y1 -> 2019-20 | G30: =FRCP_y2 -> 2020-21 | H30: =FRCP_y3 -> 2021-22 | I30: =FRCP_y4 -> 2022-23 | J30: =FRCP_y5 -> 2023-24
B31: Number of entry points at each transmission voltage level
A32: TOPCP0101 | B32: 500kV | C32: number | D32: 0 | E32: 0 | F32: 0 | G32: 0 | H32: 0 | I32: 0 | J32: 0
A33: TOPCP0102 | B33: 330kV | C33: number | D33: 0 | E33: 0 | F33: 0 | G33: 0 | H33: 0 | I33: 0 | J33: 0
A34: TOPCP0103 | B34: 275kV | C34: number | D34: 0 | E34: 0 | F34: 0 | G34: 0 | H34: 0 | I34: 0 | J34: 0
A35: TOPCP0104 | B35: 220kV | C35: number | D35: 13 | E35: 13 | F35: 13 | G35: 13 | H35: 13 | I35: 13 | J35: 13
A36: TOPCP0105 | B36: 132 kV | C36: number | D36: 0 | E36: 0 | F36: 0 | G36: 0 | H36: 0 | I36: 0 | J36: 0
A37: TOPCP0106 | B37: 110kV | C37: number | D37: 13 | E37: 13 | F37: 13 | G37: 13 | H37: 13 | I37: 13 | J37: 13
A38: TOPCP0107 | B38: 66 kV | C38: number | D38: 0 | E38: 0 | F38: 0 | G38: 0 | H38: 0 | I38: 0 | J38: 0
A39: TOPCP0108 | B39: 33 kV | C39: number | D39: 0 | E39: 0 | F39: 0 | G39: 0 | H39: 0 | I39: 0 | J39: 0
A40: TOPCP0109 | B40: 22 kV | C40: number | D40: 0 | E40: 0 | F40: 0 | G40: 0 | H40: 0 | I40: 0 | J40: 0
A41: TOPCP0110 | B41: 11 kV | C41: number | D41: 0 | E41: 0 | F41: 0 | G41: 0 | H41: 0 | I41: 0 | J41: 0
A42: TOPCP0111 | B42: 6.6 kV | C42: number | D42: 0 | E42: 0 | F42: 0 | G42: 0 | H42: 0 | I42: 0 | J42: 0
B43: Number of exit points at each transmission voltage level
A44: TOPCP0201 | B44: 500kV | C44: number | D44: 0 | E44: 0 | F44: 0 | G44: 0 | H44: 0 | I44: 0 | J44: 0
A45: TOPCP0202 | B45: 330kV | C45: number | D45: 0 | E45: 0 | F45: 0 | G45: 0 | H45: 0 | I45: 0 | J45: 0
A46: TOPCP0203 | B46: 275kV | C46: number | D46: 0 | E46: 0 | F46: 0 | G46: 0 | H46: 0 | I46: 0 | J46: 0
A47: TOPCP0204 | B47: 220kV | C47: number | D47: 2 | E47: 2 | F47: 2 | G47: 2 | H47: 2 | I47: 2 | J47: 2
A48: TOPCP0205 | B48: 132 kV | C48: number | D48: 0 | E48: 0 | F48: 0 | G48: 0 | H48: 0 | I48: 0 | J48: 0
A49: TOPCP0206 | B49: 110kV | C49: number | D49: 3 | E49: 3 | F49: 3 | G49: 3 | H49: 3 | I49: 3 | J49: 3
A50: TOPCP0207 | B50: 66 kV | C50: number | D50: 0 | E50: 0 | F50: 0 | G50: 0 | H50: 0 | I50: 0 | J50: 0
A51: TOPCP0208 | B51: 44 kV | C51: number | D51: 1 | E51: 1 | F51: 1 | G51: 1 | H51: 1 | I51: 1 | J51: 1
A52: TOPCP0209 | B52: 33kV | C52: number | D52: 5 | E52: 5 | F52: 5 | G52: 5 | H52: 5 | I52: 5 | J52: 5
A53: TOPCP0210 | B53: 22kV | C53: number | D53: 28 | E53: 28 | F53: 28 | G53: 28 | H53: 28 | I53: 29 | J53: 29
A54: TOPCP0211 | B54: 11kV | C54: number | D54: 14 | E54: 14 | F54: 14 | G54: 14 | H54: 14 | I54: 14 | J54: 14
A55: TOPCP0212 | B55: 6.6kV | C55: number | D55: 3 | E55: 3 | F55: 3 | G55: 3 | H55: 3 | I55: 3 | J55: 3
B59: 3.4.3 - SYSTEM DEMAND
D60: Forecast (0's)
C61: Units | D61: =CRCP_y4 -> 2017-18 | E61: =CRCP_y5 -> 2018-19 | F61: =FRCP_y1 -> 2019-20 | G61: =FRCP_y2 -> 2020-21 | H61: =FRCP_y3 -> 2021-22 | I61: =FRCP_y4 -> 2022-23 | J61: =FRCP_y5 -> 2023-24
B62: Annual system maximum demand characteristics – MW measure
A63: TOPSD0101 | B63: Transmission System coincident maximum demand | C63: MW | D63: 1854.313012 | E63: 1869.482795 | F63: 1886.789626 | G63: 1903.68496 | H63: 1922.117773 | I63: 1938.047644 | J63: 1954.556725
A64: TOPSD0102 | B64: Transmission System coincident weather adjusted maximum demand 10% POE | C64: MW | D64: 1902.769319 | E64: 1918.335513 | F64: 1936.094601 | G64: 1953.431438 | H64: 1972.345931 | I64: 1988.692077 | J64: 2005.632567
A65: TOPSD0103 | B65: Transmission System coincident weather adjusted maximum demand 50% POE | C65: MW | D65: 1880.087644 | E65: 1895.468284 | F65: 1913.015677 | G65: 1930.145853 | H65: 1948.834879 | I65: 1964.986173 | J65: 1981.724726
A66: TOPSD0104 | B66: Transmission System non-coincident summated maximum demand | C66: MW | D66: 2318.733137 | E66: 2337.702252 | F66: 2359.343648 | G66: 2380.470487 | H66: 2403.519871 | I66: 2423.439443 | J66: 2444.083288
A67: TOPSD0105 | B67: Transmission System non-coincident weather adjusted summated maximum demand 10% POE | C67: MW | D67: 2367.189443 | E67: 2386.55497 | F67: 2408.648623 | G67: 2430.216964 | H67: 2453.748029 | I67: 2474.083875 | J67: 2495.159131
A68: TOPSD0106 | B68: Transmission System non-coincident weather adjusted summated maximum demand 50% POE | C68: MW | D68: 2344.507768 | E68: 2363.687741 | F68: 2385.569699 | G68: 2406.93138 | H68: 2430.236977 | I68: 2450.377971 | J68: 2471.25129
B69: Annual system maximum demand characteristics – MVA measure
A70: TOPSD0201 | B70: Transmission System coincident maximum demand | C70: MVA | D70: 1870.103476 | E70: 1885.402437 | F70: 1902.856645 | G70: 1919.895852 | H70: 1938.48563 | I70: 1954.551152 | J70: 1971.200816
A71: TOPSD0202 | B71: Transmission System coincident weather adjusted maximum demand 10% POE | C71: MVA | D71: 1918.972413 | E71: 1934.671162 | F71: 1952.581478 | G71: 1970.065947 | H71: 1989.141507 | I71: 2005.626849 | J71: 2022.711597
A72: TOPSD0203 | B72: Transmission System coincident weather adjusted maximum demand 50% POE | C72: MVA | D72: 1896.097592 | E72: 1911.609206 | F72: 1929.306025 | G72: 1946.582073 | H72: 1965.430246 | I72: 1981.719077 | J72: 1998.600168
A73: TOPSD0204 | B73: Transmission System non-coincident summated maximum demand | C73: MVA | D73: 2383.077664 | E73: 2402.573169 | F73: 2424.815112 | G73: 2446.528217 | H73: 2470.217218 | I73: 2490.689555 | J73: 2511.906265
A74: TOPSD0205 | B74: Transmission System non-coincident weather adjusted summated maximum demand 10% POE | C74: MVA | D74: 2431.946601 | E74: 2451.841894 | F74: 2474.539944 | G74: 2496.698312 | H74: 2520.873096 | I74: 2541.765252 | J74: 2563.417045
A75: TOPSD0206 | B75: Transmission System non-coincident weather adjusted summated maximum demand 50% POE | C75: MVA | D75: 2409.07178 | E75: 2428.779938 | F75: 2451.264491 | G75: 2473.214438 | H75: 2497.161835 | I75: 2517.85748 | J75: 2539.305617
B76: Power factor
B77: Power factor conversion between MVA and MW
A78: TOPSD0301 | B78: Average overall network power factor conversion between MVA and MW | C78: Factor | D78: 0.981211463 | E78: 0.981211463 | F78: 0.981211463 | G78: 0.981211463 | H78: 0.981211463 | I78: 0.981211463 | J78: 0.981211463
A79: TOPSD0302 | B79: Average power factor conversion for 500 kV lines | C79: Factor
A80: TOPSD0303 | B80: Average power factor conversion for 330 kV lines | C80: Factor
A81: TOPSD0304 | B81: Average power factor conversion for 275 kV lines | C81: Factor
A82: TOPSD0305 | B82: Average power factor conversion for 220 kV lines | C82: Factor | D82: 0.9671487813 | E82: 0.9671487813 | F82: 0.9671487813 | G82: 0.9671487813 | H82: 0.9671487813 | I82: 0.9671487813 | J82: 0.9671487813
A83: TOPSD0306 | B83: Average power factor conversion for 132 kV lines | C83: Factor
A84: TOPSD0307 | B84: Average power factor conversion for 110 kV lines | C84: Factor | D84: 0.9947183453 | E84: 0.9947183453 | F84: 0.9947183453 | G84: 0.9947183453 | H84: 0.9947183453 | I84: 0.9947183453 | J84: 0.9947183453
A85: TOPSD0308 | B85: Average power factor conversion for 88 kV lines | C85: Factor
A86: TOPSD0309 | B86: Average power factor conversion for 66 kV lines | C86: Factor
A87: TOPSD0310 | B87: Average power factor conversion for 33 kV lines | C87: Factor | D87: 0.9945381005 | E87: 0.9945381005 | F87: 0.9945381005 | G87: 0.9945381005 | H87: 0.9945381005 | I87: 0.9945381005 | J87: 0.9945381005
A88: TOPSD0311 | B88: Average power factor conversion for 22 kV lines | C88: Factor | D88: 0.9944444932 | E88: 0.9944444932 | F88: 0.9944444932 | G88: 0.9944444932 | H88: 0.9944444932 | I88: 0.9944444932 | J88: 0.9944444932
A89: TOPSD0311 | B89: Average power factor conversion for 11 kV lines | C89: Factor | D89: 0.9675674981 | E89: 0.9675674981 | F89: 0.9675674981 | G89: 0.9675674981 | H89: 0.9675674981 | I89: 0.9675674981 | J89: 0.9675674981
A90: TOPSD0312 | B90: Average power factor conversion for 6.6 kV lines | C90: Factor | D90: 0.9696923933 | E90: 0.9696923933 | F90: 0.9696923933 | G90: 0.9696923933 | H90: 0.9696923933 | I90: 0.9696923933 | J90: 0.9696923933

Sheet 3.5 Physical assets
B1: =(LOOKUP(dms_Model,dms_Model_List,dms_Worksheet_List)) -> REGULATORY REPORTING STATEMENT
B2: =INDEX(dms_TradingNameFull_List,MATCH(dms_TradingName,dms_TradingName_List)) -> TasNetworks (T)
B3: =IF(SUM(dms_SingleYear_Model)>0,CRY,CONCATENATE(FRCP_y1," to ",dms_MultiYear_FinalYear_Result)) -> 2019-20 to 2023-24
B4: 3.5 PHYSICAL ASSETS
B7: There is ONE table on this worksheet. It has been sub-grouped for ease of navigation. See the Instructions sheet on how to group or ungroup tables.
B9: 3.5.1 - TRANSMISSION SYSTEM CAPACITIES
D10: Forecast (0's)
C11: Units | D11: =CRCP_y4 -> 2017-18 | E11: =CRCP_y5 -> 2018-19 | F11: =FRCP_y1 -> 2019-20 | G11: =FRCP_y2 -> 2020-21 | H11: =FRCP_y3 -> 2021-22 | I11: =FRCP_y4 -> 2022-23 | J11: =FRCP_y5 -> 2023-24
B12: Overhead network length of circuit at each voltage
A13: TPA0101 | B13: 500 kV | C13: km | D13: 0 | E13: 0 | F13: 0 | G13: 0 | H13: 0 | I13: 0 | J13: 0
A14: TPA0102 | B14: 330 kV | C14: km | D14: 0 | E14: 0 | F14: 0 | G14: 0 | H14: 0 | I14: 0 | J14: 0
A15: TPA0103 | B15: 275 kV | C15: km | D15: 0 | E15: 0 | F15: 0 | G15: 0 | H15: 0 | I15: 0 | J15: 0
A16: TPA0104 | B16: 220 kV | C16: km | D16: 1710.3 | E16: 1710.3 | F16: 1710.3 | G16: 1710.3 | H16: 1710.3 | I16: 1710.3 | J16: 1710.3
A17: TPA0105 | B17: 132 kV | C17: km | D17: 0 | E17: 0 | F17: 0 | G17: 0 | H17: 0 | I17: 0 | J17: 0
A18: TPA0106 | B18: 110 kV | C18: km | D18: 1829.6 | E18: 1829.6 | F18: 1829.6 | G18: 1829.6 | H18: 1829.6 | I18: 1829.6 | J18: 1829.6
A19: TPA0107 | B19: 88 kV | C19: km | D19: 0 | E19: 0 | F19: 0 | G19: 0 | H19: 0 | I19: 0 | J19: 0
A20: TPA0108 | B20: 66 kV | C20: km | D20: 0 | E20: 0 | F20: 0 | G20: 0 | H20: 0 | I20: 0 | J20: 0
A21: TPA0109 | B21: 33 kV | C21: km | D21: 0 | E21: 0 | F21: 0 | G21: 0 | H21: 0 | I21: 0 | J21: 0
A22: TPA0109 | B22: 22 kV | C22: km | D22: 0 | E22: 0 | F22: 0 | G22: 0 | H22: 0 | I22: 0 | J22: 0
A23: TPA0109 | B23: 11 kV | C23: km | D23: 0 | E23: 0 | F23: 0 | G23: 0 | H23: 0 | I23: 0 | J23: 0
A24: TPA01 | B24: Total | D24: =SUM(D13:D23) -> 3539.9 | E24: =SUM(E13:E23) -> 3539.9 | F24: =SUM(F13:F23) -> 3539.9 | G24: 3539.9 | H24: 3539.9 | I24: 3539.9 | J24: 3539.9
B26: Underground cable circuit length at each voltage
A27: TPA0201 | B27: 500 kV | C27: km | D27: 0 | E27: 0 | F27: 0 | G27: 0 | H27: 0 | I27: 0 | J27: 0
A28: TPA0202 | B28: 330 kV | C28: km | D28: 0 | E28: 0 | F28: 0 | G28: 0 | H28: 0 | I28: 0 | J28: 0
A29: TPA0203 | B29: 275 kV | C29: km | D29: 0 | E29: 0 | F29: 0 | G29: 0 | H29: 0 | I29: 0 | J29: 0
A30: TPA0204 | B30: 220 kV | C30: km | D30: 0 | E30: 0 | F30: 0 | G30: 0 | H30: 0 | I30: 0 | J30: 0
A31: TPA0205 | B31: 132 kV | C31: km | D31: 0 | E31: 0 | F31: 0 | G31: 0 | H31: 0 | I31: 0 | J31: 0
A32: TPA0206 | B32: 110 kV | C32: km | D32: 23.8 | E32: 23.8 | F32: 23.8 | G32: 23.8 | H32: 23.8 | I32: 23.8 | J32: 23.8
A33: TPA0207 | B33: 88 kV | C33: km | D33: 0 | E33: 0 | F33: 0 | G33: 0 | H33: 0 | I33: 0 | J33: 0
A34: TPA0208 | B34: 66 kV | C34: km | D34: 0 | E34: 0 | F34: 0 | G34: 0 | H34: 0 | I34: 0 | J34: 0
A35: TPA0209 | B35: 33 kV | C35: km | D35: 0 | E35: 0 | F35: 0 | G35: 0 | H35: 0 | I35: 0 | J35: 0
A36: TPA0210 | B36: 22 kV | C36: km | D36: 0 | E36: 0 | F36: 0 | G36: 0 | H36: 0 | I36: 0 | J36: 0
A37: TPA0211 | B37: 11 kV | C37: km | D37: 0 | E37: 0 | F37: 0 | G37: 0 | H37: 0 | I37: 0 | J37: 0
A38: TPA02 | B38: Total | D38: =SUM(D27:D37) -> 23.8 | E38: =SUM(E27:E37) -> 23.8 | F38: =SUM(F27:F37) -> 23.8 | G38: 23.8 | H38: 23.8 | I38: 23.8 | J38: 23.8
B40: Estimated overhead network weighted average MVA capacity by voltage class
A41: TPA0301 | B41: 500 kV | C41: MVA | D41: 0 | E41: 0 | F41: 0 | G41: 0 | H41: 0 | I41: 0 | J41: 0
A42: TPA0302 | B42: 330 kV | C42: MVA | D42: 0 | E42: 0 | F42: 0 | G42: 0 | H42: 0 | I42: 0 | J42: 0
A43: TPA0303 | B43: 275 kV | C43: MVA | D43: 0 | E43: 0 | F43: 0 | G43: 0 | H43: 0 | I43: 0 | J43: 0
A44: TPA0304 | B44: 220 kV | C44: MVA | D44: 397.6 | E44: 397.6 | F44: 397.6 | G44: 397.6 | H44: 397.6 | I44: 397.6 | J44: 397.6
A45: TPA0305 | B45: 132 kV | C45: MVA | D45: 0 | E45: 0 | F45: 0 | G45: 0 | H45: 0 | I45: 0 | J45: 0
A46: TPA0306 | B46: 110 kV | C46: MVA | D46: 105.8 | E46: 105.8 | F46: 105.8 | G46: 105.8 | H46: 105.8 | I46: 105.8 | J46: 105.8
A47: TPA0307 | B47: 88 kV | C47: MVA | D47: 0 | E47: 0 | F47: 0 | G47: 0 | H47: 0 | I47: 0 | J47: 0
A48: TPA0308 | B48: 66 kV | C48: MVA | D48: 0 | E48: 0 | F48: 0 | G48: 0 | H48: 0 | I48: 0 | J48: 0
A49: TPA0309 | B49: 33 kV | C49: MVA | D49: 0 | E49: 0 | F49: 0 | G49: 0 | H49: 0 | I49: 0 | J49: 0
A50: TPA0310 | B50: 22 kV | C50: MVA | D50: 0 | E50: 0 | F50: 0 | G50: 0 | H50: 0 | I50: 0 | J50: 0
A51: TPA0311 | B51: 11 kV | C51: MVA | D51: 0 | E51: 0 | F51: 0 | G51: 0 | H51: 0 | I51: 0 | J51: 0
B53: Estimated underground network weighted average MVA capacity by voltage class
A54: TPA0401 | B54: 500 kV | C54: MVA | D54: 0 | E54: 0 | F54: 0 | G54: 0 | H54: 0 | I54: 0 | J54: 0
A55: TPA0402 | B55: 330 kV | C55: MVA | D55: 0 | E55: 0 | F55: 0 | G55: 0 | H55: 0 | I55: 0 | J55: 0
A56: TPA0403 | B56: 275 kV | C56: MVA | D56: 0 | E56: 0 | F56: 0 | G56: 0 | H56: 0 | I56: 0 | J56: 0
A57: TPA0404 | B57: 220 kV | C57: MVA | D57: 0 | E57: 0 | F57: 0 | G57: 0 | H57: 0 | I57: 0 | J57: 0
A58: TPA0405 | B58: 132 kV | C58: MVA | D58: 0 | E58: 0 | F58: 0 | G58: 0 | H58: 0 | I58: 0 | J58: 0
A59: TPA0406 | B59: 110 kV | C59: MVA | D59: 142.6 | E59: 142.6 | F59: 142.6 | G59: 142.6 | H59: 142.6 | I59: 142.6 | J59: 142.6
A60: TPA0407 | B60: 88 kV | C60: MVA | D60: 0 | E60: 0 | F60: 0 | G60: 0 | H60: 0 | I60: 0 | J60: 0
A61: TPA0408 | B61: 66 kV | C61: MVA | D61: 0 | E61: 0 | F61: 0 | G61: 0 | H61: 0 | I61: 0 | J61: 0
A62: TPA0409 | B62: 33 kV | C62: MVA | D62: 0 | E62: 0 | F62: 0 | G62: 0 | H62: 0 | I62: 0 | J62: 0
A63: TPA0410 | B63: 22 kV | C63: MVA | D63: 0 | E63: 0 | F63: 0 | G63: 0 | H63: 0 | I63: 0 | J63: 0
A64: TPA0411 | B64: 11 kV | C64: MVA | D64: 0 | E64: 0 | F64: 0 | G64: 0 | H64: 0 | I64: 0 | J64: 0
B66: Installed transmission system transformer capacity
A67: TPA0501 | B67: Transmission substations (eg 500 kV to 330 kV) | C67: MVA | D67: 3640 | E67: 3640 | F67: 3640 | G67: 3640 | H67: 3640 | I67: 3640 | J67: 3640
A68: TPA0502 | B68: Terminal points to DNSP systems | C68: MVA | D68: 3339 | E68: 3369 | F68: 3369 | G68: 3369 | H68: 3369 | I68: 3369 | J68: 3447
A69: TPA0503 | B69: Transformer capacity for directly connected end–users owned by the TNSP | C69: MVA | D69: 605 | E69: 605 | F69: 605 | G69: 605 | H69: 605 | I69: 605 | J69: 605
A70: TPA0504 | B70: Transformer capacity for directly connected end–users owned by the end–user | C70: MVA | D70: 467 | E70: 467 | F70: 467 | G70: 467 | H70: 467 | I70: 467 | J70: 467
A71: TPA0505 | B71: Interconnector capacity | C71: MVA | D71: 520 | E71: 520 | F71: 520 | G71: 520 | H71: 520 | I71: 520 | J71: 520
A72: TPA0506 | B72: Other | C72: MVA | D72: 0 | E72: 0 | F72: 0 | G72: 0 | H72: 0 | I72: 0 | J72: 0
B74: Cold spare capacity
A75: TPA06 | B75: Cold spare capacity included in 3.5.1.5 | C75: MVA | D75: 370 | E75: 498.5 | F75: 498.5 | G75: 498.5 | H75: 498.5 | I75: 498.5 | J75: 498.5

Sheet 3.7 Operating environment
B1: =(LOOKUP(dms_Model,dms_Model_List,dms_Worksheet_List)) -> REGULATORY REPORTING STATEMENT
B2: =INDEX(dms_TradingNameFull_List,MATCH(dms_TradingName,dms_TradingName_List)) -> TasNetworks (T)
B3: =IF(SUM(dms_SingleYear_Model)>0,CRY,CONCATENATE(FRCP_y1," to ",dms_MultiYear_FinalYear_Result)) -> 2019-20 to 2023-24
B4: 3.7 OPERATING ENVIRONMENT FACTORS
A7: TEF01 | B7: 3.7.1 - TERRAIN FACTORS
D8: Forecast (0's)
C9: Units | D9: =CRCP_y4 -> 2017-18 | E9: =CRCP_y5 -> 2018-19 | F9: =FRCP_y1 -> 2019-20 | G9: =FRCP_y2 -> 2020-21 | H9: =FRCP_y3 -> 2021-22 | I9: =FRCP_y4 -> 2022-23 | J9: =FRCP_y5 -> 2023-24
A10: TEF0101 | B10: Total number of vegetation maintenance spans | C10: Number of spans | D10: 940
A11: TEF0102 | B11: Average vegetation maintenance span cycle | C11: Years | D11: 5
A12: TEF0103 | B12: Average number of trees per vegetation maintenance span | C12: Trees | D12: 1266
A13: TEF0104 | B13: Average number of defects per vegetation maintenance span | C13: Defects | D13: 1
A14: TEF0105 | B14: Tropical proportion | C14: Number of spans | D14: 0
A15: TEF0106 | B15: Standard vehicle access | C15: km | D15: 2302
A16: TEF0107 | B16: Altitude | C16: km | D16: 492
A17: TEF0108 | B17: Bushfire risk | C17: Number of spans | D17: 204
A19: TEF02 | B19: 3.7.2 - NETWORK CHARACTERISTICS
D20: Forecast (0's)
C21: Units | D21: =CRCP_y4 -> 2017-18 | E21: =CRCP_y5 -> 2018-19 | F21: =FRCP_y1 -> 2019-20 | G21: =FRCP_y2 -> 2020-21 | H21: =FRCP_y3 -> 2021-22 | I21: =FRCP_y4 -> 2022-23 | J21: =FRCP_y5 -> 2023-24
A22: TEF0201 | B22: Route line length | C22: km | D22: 2340 | E22: 2317 | F22: 2294 | G22: 2294 | H22: 2294 | I22: 2294 | J22: 2294
A23: TEF0202 | B23: Variability of dispatch | C23: % | D23: 0.9236 | E23: 0.9236 | F23: 0.9236 | G23: 0.9236 | H23: 0.9236 | I23: 0.9236 | J23: 0.9236
A24: TEF0203 | B24: Concentrated load distance | C24: km | D24: 319 | E24: 319 | F24: 319 | G24: 319 | H24: 319 | I24: 319 | J24: 319
A25: TEF0204 | B25: Total number of spans | C25: number | D25: 7802 | E25: 7705 | F25: 7608 | G25: 7608 | H25: 7608 | I25: 7608 | J25: 7608

Sheet 5.4 MD & Utilisation - Spatial
B1: =(LOOKUP(dms_Model,dms_Model_List,dms_Worksheet_List)) -> REGULATORY REPORTING STATEMENT
B2: =INDEX(dms_TradingNameFull_List,MATCH(dms_TradingName,dms_TradingName_List)) -> TasNetworks (T)
B3: =IF(SUM(dms_SingleYear_Model)>0,CRY,CONCATENATE(FRCP_y1," to ",dms_MultiYear_FinalYear_Result)) -> 2019-20 to 2023-24
B4: 5.4 MAXIMUM DEMAND AND UTILISATION AT SPATIAL LEVEL
B6: There is ONE table on this worksheet. It has been sub-grouped into blocks of approximately 500 rows for ease of navigation. See the Instructions sheet on how to group or ungroup data.
B8: 5.4.1 - NON-COINCIDENT & COINCIDENT MAXIMUM DEMAND
B9: CONNECTION POINT | C9: FORECASTING ELEMENTS | D9: UNIT | E9: MAX DEMAND | G9: TNSP NAME | H9: SERVICE | I9: SERVICE SUBCATEGORY | J9: DATA TYPE | K9: DATA TYPE SUBCATEGORY | L9: LOCATION | M9: LOCATION SUBCATEGORY | N9: MEASUREMENT | O9: DENOMINATION | Q9: =CRCP_y4 -> 2017-18 | R9: =CRCP_y5 -> 2018-19 | S9: =FRCP_y1 -> 2019-20 | T9: =FRCP_y2 -> 2020-21 | U9: =FRCP_y3 -> 2021-22 | V9: =FRCP_y4 -> 2022-23 | W9: =FRCP_y5 -> 2023-24
B10: Arthurs Lake 6.6 kV | C10: CONNECTION POINT RATING | D10: MVA | E10: Non-coincident | G10: TNSP NAME | H10: DEMAND FORECASTING | I10: NON-COINCIDENT MAXIMUM DEMAND | J10: DESCRIPTOR METRIC | K10: CONNECTION POINT RATING | L10: CONNECTION POINT | M10: =B10 -> Arthurs Lake 6.6 kV | N10: RATING | O10: MVA | Q10: 30 | R10: 30 | S10: 30 | T10: 30 | U10: 30 | V10: 30 | W10: 30
E11: Coincident | G11: TNSP NAME | H11: DEMAND FORECASTING | I11: COINCIDENT MAXIMUM DEMAND | J11: DESCRIPTOR METRIC | K11: CONNECTION POINT RATING | L11: CONNECTION POINT | M11: =M10 -> Arthurs Lake 6.6 kV | N11: RATING | O11: MVA | Q11: 30 | R11: 30 | S11: 30 | T11: 30 | U11: 30 | V11: 30 | W11: 30
C12: WINTER/SUMMER PEAKING | E12: Non-coincident | G12: TNSP NAME | H12: DEMAND FORECASTING | I12: NON-COINCIDENT MAXIMUM DEMAND | J12: DESCRIPTOR METRIC | K12: WINTER/SUMMER PEAKING | L12: CONNECTION POINT | M12: =#REF! ->  | N12: WINTER/SUMMER | O12: WINTER/SUMMER | Q12: SUMMER | R12: SUMMER | S12: SUMMER | T12: SUMMER | U12: SUMMER | V12: SUMMER | W12: SUMMER
E13: Coincident | G13: TNSP NAME | H13: DEMAND FORECASTING | I13: COINCIDENT MAXIMUM DEMAND | J13: DESCRIPTOR METRIC | K13: WINTER/SUMMER PEAKING | L13: CONNECTION POINT | N13: WINTER/SUMMER | O13: WINTER/SUMMER | Q13: WINTER | R13: WINTER | S13: WINTER | T13: WINTER | U13: WINTER | V13: WINTER | W13: WINTER
C14: ADJUSTMENTS - EMBEDDED GENERATION | D14: MW | E14: Non-coincident | G14: TNSP NAME | H14: DEMAND FORECASTING | I14: NON-COINCIDENT MAXIMUM DEMAND | J14: DESCRIPTOR METRIC | K14: ADJUSTMENTS - EMBEDDED GENERATION | L14: CONNECTION POINT | N14: GENERATED LOAD | O14: MW | Q14: 1.183924 | R14: 1.183924 | S14: 1.183924 | T14: 1.183924 | U14: 1.183924 | V14: 1.183924 | W14: 1.183924
E15: Coincident | G15: TNSP NAME | H15: DEMAND FORECASTING | I15: COINCIDENT MAXIMUM DEMAND | J15: DESCRIPTOR METRIC | K15: ADJUSTMENTS - EMBEDDED GENERATION | L15: CONNECTION POINT | N15: GENERATED LOAD | O15: MW | Q15: 1.253882 | R15: 1.253882 | S15: 1.253882 | T15: 1.253882 | U15: 1.253882 | V15: 1.253882 | W15: 1.253882
C16: WEATHER CORRECTED MD 10% POE | D16: MW | E16: Non-coincident | G16: TNSP NAME | H16: DEMAND FORECASTING | I16: NON-COINCIDENT MAXIMUM DEMAND | J16: DESCRIPTOR METRIC | K16: WEATHER CORRECTED MD 10% POE | L16: CONNECTION POINT | N16: MAXIMUM DEMAND | O16: MW | Q16: 6.492075853 | R16: 6.492075853 | S16: 6.492075853 | T16: 6.492075853 | U16: 6.492075853 | V16: 6.492075853 | W16: 6.492075853
E17: Coincident | G17: TNSP NAME | H17: DEMAND FORECASTING | I17: COINCIDENT MAXIMUM DEMAND | J17: DESCRIPTOR METRIC | K17: WEATHER CORRECTED MD 10% POE | L17: CONNECTION POINT | N17: MAXIMUM DEMAND | O17: MW | Q17: 3.819349278 | R17: 3.819349278 | S17: 3.819349278 | T17: 3.819349278 | U17: 3.819349278 | V17: 3.819349278 | W17: 3.819349278
C18: WEATHER CORRECTED MD 10% POE | D18: MVA | E18: Non-coincident | G18: TNSP NAME | H18: DEMAND FORECASTING | I18: NON-COINCIDENT MAXIMUM DEMAND | J18: DESCRIPTOR METRIC | K18: WEATHER CORRECTED MD 10% POE | L18: CONNECTION POINT | N18: MAXIMUM DEMAND | O18: MVA | Q18: 6.760764091 | R18: 6.760764091 | S18: 6.760764091 | T18: 6.760764091 | U18: 6.760764091 | V18: 6.760764091 | W18: 6.760764091
E19: Coincident | G19: TNSP NAME | H19: DEMAND FORECASTING | I19: COINCIDENT MAXIMUM DEMAND | J19: DESCRIPTOR METRIC | K19: WEATHER CORRECTED MD 10% POE | L19: CONNECTION POINT | N19: MAXIMUM DEMAND | O19: MVA | Q19: 3.881459567 | R19: 3.881459567 | S19: 3.881459567 | T19: 3.881459567 | U19: 3.881459567 | V19: 3.881459567 | W19: 3.881459567
C20: WEATHER CORRECTED MD 50% POE | D20: MW | E20: Non-coincident | G20: TNSP NAME | H20: DEMAND FORECASTING | I20: NON-COINCIDENT MAXIMUM DEMAND | J20: DESCRIPTOR METRIC | K20: WEATHER CORRECTED MD 50% POE | L20: CONNECTION POINT | N20: MAXIMUM DEMAND | O20: MW | Q20: 6.475313276 | R20: 6.475313276 | S20: 6.475313276 | T20: 6.475313276 | U20: 6.475313276 | V20: 6.475313276 | W20: 6.475313276
E21: Coincident | G21: TNSP NAME | H21: DEMAND FORECASTING | I21: COINCIDENT MAXIMUM DEMAND | J21: DESCRIPTOR METRIC | K21: WEATHER CORRECTED MD 50% POE | L21: CONNECTION POINT | N21: MAXIMUM DEMAND | O21: MW | Q21: 3.807685076 | R21: 3.807685076 | S21: 3.807685076 | T21: 3.807685076 | U21: 3.807685076 | V21: 3.807685076 | W21: 3.807685076
C22: WEATHER CORRECTED MD 50% POE | D22: MVA | E22: Non-coincident | G22: TNSP NAME | H22: DEMAND FORECASTING | I22: NON-COINCIDENT MAXIMUM DEMAND | J22: DESCRIPTOR METRIC | K22: WEATHER CORRECTED MD 50% POE | L22: CONNECTION POINT | N22: MAXIMUM DEMAND | O22: MVA | Q22: 6.74330776 | R22: 6.74330776 | S22: 6.74330776 | T22: 6.74330776 | U22: 6.74330776 | V22: 6.74330776 | W22: 6.74330776
E23: Coincident | G23: TNSP NAME | H23: DEMAND FORECASTING | I23: COINCIDENT MAXIMUM DEMAND | J23: DESCRIPTOR METRIC | K23: WEATHER CORRECTED MD 50% POE | L23: CONNECTION POINT | N23: MAXIMUM DEMAND | O23: MVA | Q23: 3.869605682 | R23: 3.869605682 | S23: 3.869605682 | T23: 3.869605682 | U23: 3.869605682 | V23: 3.869605682 | W23: 3.869605682
B24: Avoca 22 kV | C24: CONNECTION POINT RATING | D24: MVA | E24: Non-coincident | G24: TNSP NAME | H24: DEMAND FORECASTING | I24: NON-COINCIDENT MAXIMUM DEMAND | J24: DESCRIPTOR METRIC | K24: CONNECTION POINT RATING | L24: CONNECTION POINT | M24: =B24 -> Avoca 22 kV | N24: RATING | O24: MVA | Q24: 20.4 | R24: 20.4 | S24: 20.4 | T24: 20.4 | U24: 20.4 | V24: 20.4 | W24: 20.4
E25: Coincident | G25: TNSP NAME | H25: DEMAND FORECASTING | I25: COINCIDENT MAXIMUM DEMAND | J25: DESCRIPTOR METRIC | K25: CONNECTION POINT RATING | L25: CONNECTION POINT | M25: Avoca 22 kV | N25: RATING | O25: MVA | Q25: 20.4 | R25: 20.4 | S25: 20.4 | T25: 20.4 | U25: 20.4 | V25: 20.4 | W25: 20.4
C26: WINTER/SUMMER PEAKING | E26: Non-coincident | G26: TNSP NAME | H26: DEMAND FORECASTING | I26: NON-COINCIDENT MAXIMUM DEMAND | J26: DESCRIPTOR METRIC | K26: WINTER/SUMMER PEAKING | L26: CONNECTION POINT | M26: =#REF! ->  | N26: WINTER/SUMMER | O26: WINTER/SUMMER | Q26: SUMMER | R26: SUMMER | S26: SUMMER | T26: SUMMER | U26: SUMMER | V26: SUMMER | W26: SUMMER
E27: Coincident | G27: TNSP NAME | H27: DEMAND FORECASTING | I27: COINCIDENT MAXIMUM DEMAND | J27: DESCRIPTOR METRIC | K27: WINTER/SUMMER PEAKING | L27: CONNECTION POINT | N27: WINTER/SUMMER | O27: WINTER/SUMMER | Q27: WINTER | R27: WINTER | S27: WINTER | T27: WINTER | U27: WINTER | V27: WINTER | W27: WINTER
C28: ADJUSTMENTS - EMBEDDED GENERATION | D28: MW | E28: Non-coincident | G28: TNSP NAME | H28: DEMAND FORECASTING | I28: NON-COINCIDENT MAXIMUM DEMAND | J28: DESCRIPTOR METRIC | K28: ADJUSTMENTS - EMBEDDED GENERATION | L28: CONNECTION POINT | N28: GENERATED LOAD | O28: MW | Q28: 8.359909127 | R28: 8.349386695 | S28: 8.031279913 | T28: 8.075889883 | U28: 8.332277493 | V28: 8.338049711 | W28: 8.466674475
E29: Coincident | G29: TNSP NAME | H29: DEMAND FORECASTING | I29: COINCIDENT MAXIMUM DEMAND | J29: DESCRIPTOR METRIC | K29: ADJUSTMENTS - EMBEDDED GENERATION | L29: CONNECTION POINT | N29: GENERATED LOAD | O29: MW | Q29: 3.807685076 | R29: 3.807685076 | S29: 3.807685076 | T29: 3.807685076 | U29: 3.807685076 | V29: 3.807685076 | W29: 3.807685076
C30: WEATHER CORRECTED MD 10% POE | D30: MW | E30: Non-coincident | G30: TNSP NAME | H30: DEMAND FORECASTING | I30: NON-COINCIDENT MAXIMUM DEMAND | J30: DESCRIPTOR METRIC | K30: WEATHER CORRECTED MD 10% POE | L30: CONNECTION POINT | N30: MAXIMUM DEMAND | O30: MW | Q30: 3.807685076 | R30: 3.807685076 | S30: 3.807685076 | T30: 3.807685076 | U30: 3.807685076 | V30: 3.807685076 | W30: 3.807685076
E31: Coincident | G31: TNSP NAME | H31: DEMAND FORECASTING | I31: COINCIDENT MAXIMUM DEMAND | J31: DESCRIPTOR METRIC | K31: WEATHER CORRECTED MD 10% POE | L31: CONNECTION POINT | N31: MAXIMUM DEMAND | O31: MW | Q31: 3.314420677 | R31: 3.356740646 | S31: 3.427872519 | T31: 3.499578873 | U31: 3.574687538 | V31: 3.647850726 | W31: 3.722984809
C32: WEATHER CORRECTED MD 10% POE | D32: MVA | E32: Non-coincident | G32: TNSP NAME | H32: DEMAND FORECASTING | I32: NON-COINCIDENT MAXIMUM DEMAND | J32: DESCRIPTOR METRIC | K32: WEATHER CORRECTED MD 10% POE | L32: CONNECTION POINT | N32: MAXIMUM DEMAND | O32: MVA | Q32: 3.977623005 | R32: 3.977623005 | S32: 3.977623005 | T32: 3.977623005 | U32: 3.977623005 | V32: 3.977623005 | W32: 3.977623005
E33: Coincident | G33: TNSP NAME | H33: DEMAND FORECASTING | I33: COINCIDENT MAXIMUM DEMAND | J33: DESCRIPTOR METRIC | K33: WEATHER CORRECTED MD 10% POE | L33: CONNECTION POINT | N33: MAXIMUM DEMAND | O33: MVA | Q33: 3.660036789 | R33: 3.706769735 | S33: 3.785318989 | T33: 3.86450263 | U33: 3.947443361 | V33: 4.028235749 | W33: 4.111204549
C34: WEATHER CORRECTED MD 50% POE | D34: MW | E34: Non-coincident | G34: TNSP NAME | H34: DEMAND FORECASTING | I34: NON-COINCIDENT MAXIMUM DEMAND | J34: DESCRIPTOR METRIC | K34: WEATHER CORRECTED MD 50% POE | L34: CONNECTION POINT | N34: MAXIMUM DEMAND | O34: MW | Q34: 7.792947233 | R34: 7.798083675 | S34: 7.429262464 | T34: 7.477040633 | U34: 7.659546941 | V34: 7.816398571 | W34: 7.895573183
E35: Coincident | G35: TNSP NAME | H35: DEMAND FORECASTING | I35: COINCIDENT MAXIMUM DEMAND | J35: DESCRIPTOR METRIC | K35: WEATHER CORRECTED MD 50% POE | L35: CONNECTION POINT | N35: MAXIMUM DEMAND | O35: MW | Q35: 0.052729949 | R35: 0.052729949 | S35: 0.052729949 | T35: 0.052729949 | U35: 0.052729949 | V35: 0.052729949 | W35: 0.052729949
C36: WEATHER CORRECTED MD 50% POE | D36: MVA | E36: Non-coincident | G36: TNSP NAME | H36: DEMAND FORECASTING | I36: NON-COINCIDENT MAXIMUM DEMAND | J36: DESCRIPTOR METRIC | K36: WEATHER CORRECTED MD 50% POE | L36: CONNECTION POINT | N36: MAXIMUM DEMAND | O36: MVA | Q36: 8.1407484 | R36: 8.146114083 | S36: 7.76083229 | T36: 7.81074281 | U36: 8.00139442 | V36: 8.165246377 | W36: 8.247954572
E37: Coincident | G37: TNSP NAME | H37: DEMAND FORECASTING | I37: COINCIDENT MAXIMUM DEMAND | J37: DESCRIPTOR METRIC | K37: WEATHER CORRECTED MD 50% POE | L37: CONNECTION POINT | N37: MAXIMUM DEMAND | O37: MVA | Q37: 0.05822844232 | R37: 0.05822844232 | S37: 0.05822844232 | T37: 0.05822844232 | U37: 0.05822844232 | V37: 0.05822844232 | W37: 0.05822844232
B38: Boyer 6.6 kV 'A' | C38: CONNECTION POINT RATING | D38: MVA | E38: Non-coincident | Q38: 56.4 | R38: 56.4 | S38: 58.8 | T38: 58.8 | U38: 58.8 | V38: 58.8 | W38: 58.8
E39: Coincident | Q39: 56.4 | R39: 56.4 | S39: 58.8 | T39: 58.8 | U39: 58.8 | V39: 58.8 | W39: 58.8
C40: WINTER/SUMMER PEAKING | E40: Non-coincident | Q40: WINTER | R40: WINTER | S40: WINTER | T40: WINTER | U40: WINTER | V40: WINTER | W40: WINTER
E41: Coincident | Q41: WINTER | R41: WINTER | S41: WINTER | T41: WINTER | U41: WINTER | V41: WINTER | W41: WINTER
C42: ADJUSTMENTS - EMBEDDED GENERATION | D42: MW | E42: Non-coincident | Q42: 0 | R42: 0 | S42: 0 | T42: 0 | U42: 0 | V42: 0 | W42: 0
E43: Coincident | Q43: 0 | R43: 0 | S43: 0 | T43: 0 | U43: 0 | V43: 0 | W43: 0
C44: WEATHER CORRECTED MD 10% POE | D44: MW | E44: Non-coincident | Q44: 26.411472 | R44: 26.411472 | S44: 26.411472 | T44: 26.411472 | U44: 26.411472 | V44: 26.411472 | W44: 26.411472
E45: Coincident | Q45: 25.808414 | R45: 25.808414 | S45: 25.808414 | T45: 25.808414 | U45: 25.808414 | V45: 25.808414 | W45: 25.808414
C46: WEATHER CORRECTED MD 10% POE | D46: MVA | E46: Non-coincident | Q46: 31.93211462 | R46: 31.93211462 | S46: 31.93211462 | T46: 31.93211462 | U46: 31.93211462 | V46: 31.93211462 | W46: 31.93211462
E47: Coincident | Q47: 31.2600993 | R47: 31.2600993 | S47: 31.2600993 | T47: 31.2600993 | U47: 31.2600993 | V47: 31.2600993 | W47: 31.2600993
C48: WEATHER CORRECTED MD 50% POE | D48: MW | E48: Non-coincident | Q48: 26.411472 | R48: 26.411472 | S48: 26.411472 | T48: 26.411472 | U48: 26.411472 | V48: 26.411472 | W48: 26.411472
E49: Coincident | Q49: 25.808414 | R49: 25.808414 | S49: 25.808414 | T49: 25.808414 | U49: 25.808414 | V49: 25.808414 | W49: 25.808414
C50: WEATHER CORRECTED MD 50% POE | D50: MVA | E50: Non-coincident | Q50: 31.93211462 | R50: 31.93211462 | S50: 31.93211462 | T50: 31.93211462 | U50: 31.93211462 | V50: 31.93211462 | W50: 31.93211462
E51: Coincident | Q51: 31.2600993 | R51: 31.2600993 | S51: 31.2600993 | T51: 31.2600993 | U51: 31.2600993 | V51: 31.2600993 | W51: 31.2600993
B52: Boyer 6.6 kV 'B' | C52: CONNECTION POINT RATING | D52: MVA | E52: Non-coincident | Q52: 151.2 | R52: 151.2 | S52: 151.2 | T52: 151.2 | U52: 151.2 | V52: 151.2 | W52: 151.2
E53: Coincident | Q53: 151.2 | R53: 151.2 | S53: 151.2 | T53: 151.2 | U53: 151.2 | V53: 151.2 | W53: 151.2
C54: WINTER/SUMMER PEAKING | E54: Non-coincident | Q54: WINTER | R54: WINTER | S54: WINTER | T54: WINTER | U54: WINTER | V54: WINTER | W54: WINTER
E55: Coincident | Q55: WINTER | R55: WINTER | S55: WINTER | T55: WINTER | U55: WINTER | V55: WINTER | W55: WINTER
C56: ADJUSTMENTS - EMBEDDED GENERATION | D56: MW | E56: Non-coincident | Q56: 0 | R56: 0 | S56: 0 | T56: 0 | U56: 0 | V56: 0 | W56: 0
E57: Coincident | Q57: 0 | R57: 0 | S57: 0 | T57: 0 | U57: 0 | V57: 0 | W57: 0
C58: WEATHER CORRECTED MD 10% POE | D58: MW | E58: Non-coincident | Q58: 73.72502 | R58: 73.72502 | S58: 73.72502 | T58: 73.72502 | U58: 73.72502 | V58: 73.72502 | W58: 73.72502
E59: Coincident | Q59: 71.031196 | R59: 71.031196 | S59: 71.031196 | T59: 71.031196 | U59: 71.031196 | V59: 71.031196 | W59: 71.031196
C60: WEATHER CORRECTED MD 10% POE | D60: MVA | E60: Non-coincident | Q60: 74.79530578 | R60: 74.79530578 | S60: 74.79530578 | T60: 74.79530578 | U60: 74.79530578 | V60: 74.79530578 | W60: 74.79530578
E61: Coincident | Q61: 72.13167083 | R61: 72.13167083 | S61: 72.13167083 | T61: 72.13167083 | U61: 72.13167083 | V61: 72.13167083 | W61: 72.13167083
C62: WEATHER CORRECTED MD 50% POE | D62: MW | E62: Non-coincident | Q62: 73.72502 | R62: 73.72502 | S62: 73.72502 | T62: 73.72502 | U62: 73.72502 | V62: 73.72502 | W62: 73.72502
E63: Coincident | Q63: 71.031196 | R63: 71.031196 | S63: 71.031196 | T63: 71.031196 | U63: 71.031196 | V63: 71.031196 | W63: 71.031196
C64: WEATHER CORRECTED MD 50% POE | D64: MVA | E64: Non-coincident | Q64: 74.79530578 | R64: 74.79530578 | S64: 74.79530578 | T64: 74.79530578 | U64: 74.79530578 | V64: 74.79530578 | W64: 74.79530578
E65: Coincident | Q65: 72.13167083 | R65: 72.13167083 | S65: 72.13167083 | T65: 72.13167083 | U65: 72.13167083 | V65: 72.13167083 | W65: 72.13167083
B66: Bridgewater 11 kV | C66: CONNECTION POINT RATING | D66: MVA | E66: Non-coincident | Q66: 84 | R66: 84 | S66: 84 | T66: 84 | U66: 84 | V66: 84 | W66: 84
E67: Coincident | Q67: 84 | R67: 84 | S67: 84 | T67: 84 | U67: 84 | V67: 84 | W67: 84
C68: WINTER/SUMMER PEAKING | E68: Non-coincident | Q68: WINTER | R68: WINTER | S68: WINTER | T68: WINTER | U68: WINTER | V68: WINTER | W68: WINTER
E69: Coincident | Q69: WINTER | R69: WINTER | S69: WINTER | T69: WINTER | U69: WINTER | V69: WINTER | W69: WINTER
C70: ADJUSTMENTS - EMBEDDED GENERATION | D70: MW | E70: Non-coincident | Q70: 0 | R70: 0 | S70: 0 | T70: 0 | U70: 0 | V70: 0 | W70: 0
E71: Coincident | Q71: 0 | R71: 0 | S71: 0 | T71: 0 | U71: 0 | V71: 0 | W71: 0
C72: WEATHER CORRECTED MD 10% POE | D72: MW | E72: Non-coincident | Q72: 32.40635088 | R72: 31.54168667 | S72: 31.21553046 | T72: 31.11806318 | U72: 31.51464276 | V72: 31.95694724 | W72: 32.48801638
E73: Coincident | Q73: 32.40635088 | R73: 31.54168667 | S73: 31.21553046 | T73: 31.11806318 | U73: 31.51464276 | V73: 31.95694724 | W73: 32.48801638
C74: WEATHER CORRECTED MD 10% POE | D74: MVA | E74: Non-coincident | Q74: 32.51541088 | R74: 31.64783674 | S74: 31.32058289 | T74: 31.22278759 | U74: 31.62070182 | V74: 32.06449482 | W74: 32.59735122
E75: Coincident | Q75: 32.57370084 | R75: 31.70457141 | S75: 31.3767309 | T75: 31.27876029 | U75: 31.67738785 | V75: 32.12197643 | W75: 32.65578807
C76: WEATHER CORRECTED MD 50% POE | D76: MW | E76: Non-coincident | Q76: 30.04674434 | R76: 29.5409897 | S76: 29.17974653 | T76: 29.00797363 | U76: 29.35322997 | V76: 29.74379372 | W76: 30.21708755
E77: Coincident | Q77: 29.05443183 | R77: 28.25287212 | S77: 27.98445493 | T77: 27.93516936 | U77: 28.27150344 | V77: 28.65134153 | W77: 29.11071001
C78: WEATHER CORRECTED MD 50% POE | D78: MVA | E78: Non-coincident | Q78: 30.14786335 | R78: 29.64040665 | S78: 29.27794775 | T78: 29.10559677 | U78: 29.45201503 | V78: 29.84389318 | W78: 30.31877983
E79: Coincident | Q79: 29.20447212 | R79: 28.39877306 | S79: 28.12896974 | T79: 28.07942965 | U79: 28.4175006 | V79: 28.79930021 | W79: 29.26104092
B80: Burnie 22kV | C80: CONNECTION POINT RATING | D80: MVA | E80: Non-coincident | Q80: 144 | R80: 144 | S80: 144 | T80: 144 | U80: 144 | V80: 144 | W80: 144
E81: Coincident | Q81: 144 | R81: 144 | S81: 144 | T81: 144 | U81: 144 | V81: 144 | W81: 144
C82: WINTER/SUMMER PEAKING | E82: Non-coincident | Q82: WINTER | R82: WINTER | S82: WINTER | T82: WINTER | U82: WINTER | V82: WINTER | W82: WINTER
E83: Coincident | Q83: WINTER | R83: WINTER | S83: WINTER | T83: WINTER | U83: WINTER | V83: WINTER | W83: WINTER
C84: ADJUSTMENTS - EMBEDDED GENERATION | D84: MW | E84: Non-coincident | Q84: 0 | R84: 0 | S84: 0 | T84: 0 | U84: 0 | V84: 0 | W84: 0
E85: Coincident | Q85: 0 | R85: 0 | S85: 0 | T85: 0 | U85: 0 | V85: 0 | W85: 0
C86: WEATHER CORRECTED MD 10% POE | D86: MW | E86: Non-coincident | Q86: 63.79070814 | R86: 61.37314349 | S86: 59.94901635 | T86: 58.89728353 | U86: 58.69952207 | V86: 58.49517527 | W86: 58.362908
E87: Coincident | Q87: 63.79070814 | R87: 61.37314349 | S87: 59.94901635 | T87: 58.89728353 | U87: 58.69952207 | V87: 58.49517527 | W87: 58.362908
C88: WEATHER CORRECTED MD 10% POE | D88: MVA | E88: Non-coincident | Q88: 64.20355811 | R88: 61.77034711 | S88: 60.3370031 | T88: 59.27846352 | U88: 59.07942216 | V88: 58.87375284 | W88: 58.74062954
E89: Coincident | Q89: 64.31168225 | R89: 61.87437352 | S89: 60.43861564 | T89: 59.3782934 | U89: 59.17891683 | V89: 58.97290115 | W89: 58.83955366
C90: WEATHER CORRECTED MD 50% POE | D90: MW | E90: Non-coincident | Q90: 57.42020761 | R90: 55.22830766 | S90: 54.02441938 | T90: 53.17692264 | U90: 52.98521815 | V90: 52.78879675 | W90: 52.65360708
E91: Coincident | Q91: 57.42020761 | R91: 55.22830766 | S91: 54.02441938 | T91: 53.17692264 | U91: 52.98521815 | V91: 52.78879675 | W91: 52.65360708
C92: WEATHER CORRECTED MD 50% POE | D92: MVA | E92: Non-coincident | Q92: 57.79182805 | R92: 55.58574224 | S92: 54.37406246 | T92: 53.52108077 | U92: 53.32813558 | V92: 53.13044295 | W92: 52.99437834
E93: Coincident | Q93: 57.8891543 | R93: 55.67935326 | S93: 54.46563292 | T93: 53.61121473 | U93: 53.4179446 | V93: 53.21991904 | W93: 53.08362529
B94: Chapel St 11 kV | C94: CONNECTION POINT RATING | D94: MVA | E94: Non-coincident | Q94: 144 | R94: 144 | S94: 144 | T94: 144 | U94: 144 | V94: 144 | W94: 144
E95: Coincident | Q95: 144 | R95: 144 | S95: 144 | T95: 144 | U95: 144 | V95: 144 | W95: 144
C96: WINTER/SUMMER PEAKING | E96: Non-coincident | Q96: WINTER | R96: WINTER | S96: WINTER | T96: WINTER | U96: WINTER | V96: WINTER | W96: WINTER
E97: Coincident | Q97: WINTER | R97: WINTER | S97: WINTER | T97: WINTER | U97: WINTER | V97: WINTER | W97: WINTER
C98: ADJUSTMENTS - EMBEDDED GENERATION | D98: MW | E98: Non-coincident | Q98: 0.832 | R98: 0.832 | S98: 0.832 | T98: 0.832 | U98: 0.832 | V98: 0.832 | W98: 0.832
E99: Coincident | Q99: 0.832 | R99: 0.832 | S99: 0.832 | T99: 0.832 | U99: 0.832 | V99: 0.832 | W99: 0.832
C100: WEATHER CORRECTED MD 10% POE | D100: MW | E100: Non-coincident | Q100: 40.10212696 | R100: 38.54455571 | S100: 37.63871277 | T100: 36.9915707 | U100: 36.90427318 | V100: 36.83569831 | W100: 36.83464439
E101: Coincident | Q101: 40.10212696 | R101: 38.54455571 | S101: 37.63871277 | T101: 36.9915707 | U101: 36.90427318 | V101: 36.83569831 | W101: 36.83464439
C102: WEATHER CORRECTED MD 10% POE | D102: MVA | E102: Non-coincident | Q102: 40.20111969 | R102: 38.63970355 | S102: 37.73162453 | T102: 37.08288498 | U102: 36.99537196 | V102: 36.92662781 | W102: 36.92557129
E103: Coincident | Q103: 40.23937341 | R103: 38.67647149 | S103: 37.76752837 | T103: 37.11817151 | U103: 37.03057522 | V103: 36.96176566 | W103: 36.96070813
C104: WEATHER CORRECTED MD 50% POE | D104: MW | E104: Non-coincident | Q104: 36.02704406 | R104: 34.95378952 | S104: 34.04621662 | T104: 33.35051287 | U104: 33.2299279 | V104: 33.13360103 | W104: 33.10248843
E105: Coincident | Q105: 35.6796315 | R105: 34.23801624 | S105: 33.44113118 | T105: 32.89373565 | U105: 32.77926191 | V105: 32.6884256 | W105: 32.66161097
C106: WEATHER CORRECTED MD 50% POE | D106: MVA | E106: Non-coincident | Q106: 36.11597739 | R106: 35.0400735 | S106: 34.13026024 | T106: 33.43283914 | U106: 33.3119565 | V106: 33.21539185 | W106: 33.18420245
E107: Coincident | Q107: 35.8017423 | R107: 34.35519322 | S107: 33.55558088 | T107: 33.00631193 | U107: 32.89144641 | V107: 32.80029922 | W107: 32.77339282
B108: Comalco 220 kV | C108: CONNECTION POINT RATING | D108: MVA | E108: Non-coincident | Q108: 943.2 | R108: 943.2 | S108: 943.2 | T108: 943.2 | U108: 943.2 | V108: 943.2 | W108: 943.2
E109: Coincident | Q109: 943.2 | R109: 943.2 | S109: 943.2 | T109: 943.2 | U109: 943.2 | V109: 943.2 | W109: 943.2
C110: WINTER/SUMMER PEAKING | E110: Non-coincident | Q110: WINTER | R110: WINTER | S110: WINTER | T110: WINTER | U110: WINTER | V110: WINTER | W110: WINTER
E111: Coincident | Q111: WINTER | R111: WINTER | S111: WINTER | T111: WINTER | U111: WINTER | V111: WINTER | W111: WINTER
C112: ADJUSTMENTS - EMBEDDED GENERATION | D112: MW | E112: Non-coincident | Q112: 0 | R112: 0 | S112: 0 | T112: 0 | U112: 0 | V112: 0 | W112: 0
E113: Coincident | Q113: 0 | R113: 0 | S113: 0 | T113: 0 | U113: 0 | V113: 0 | W113: 0
C114: WEATHER CORRECTED MD 10% POE | D114: MW | E114: Non-coincident | Q114: 354.9898987 | R114: 354.9898987 | S114: 354.9898987 | T114: 354.9898987 | U114: 356.993927 | V114: 356.993927 | W114: 356.993927
E115: Coincident | Q115: 354.5630573 | R115: 354.5630573 | S115: 354.5630573 | T115: 354.5630573 | U115: 356.564676 | V115: 356.564676 | W115: 356.564676
C116: WEATHER CORRECTED MD 10% POE | D116: MVA | E116: Non-coincident | Q116: 369.2598913 | R116: 369.2598913 | S116: 369.2598913 | T116: 369.2598913 | U116: 371.3444782 | V116: 371.3444782 | W116: 371.3444782
E117: Coincident | Q117: 367.2926572 | R117: 367.2926572 | S117: 367.2926572 | T117: 367.2926572 | U117: 369.3661384 | V117: 369.3661384 | W117: 369.3661384
C118: WEATHER CORRECTED MD 50% POE | D118: MW | E118: Non-coincident | Q118: 354.9898987 | R118: 354.9898987 | S118: 354.9898987 | T118: 354.9898987 | U118: 356.993927 | V118: 356.993927 | W118: 356.993927
E119: Coincident | Q119: 354.5630573 | R119: 354.5630573 | S119: 354.5630573 | T119: 354.5630573 | U119: 356.564676 | V119: 356.564676 | W119: 356.564676
C120: WEATHER CORRECTED MD 50% POE | D120: MVA | E120: Non-coincident | Q120: 369.2598913 | R120: 369.2598913 | S120: 369.2598913 | T120: 369.2598913 | U120: 371.3444782 | V120: 371.3444782 | W120: 371.3444782
E121: Coincident | Q121: 367.2926572 | R121: 367.2926572 | S121: 367.2926572 | T121: 367.2926572 | U121: 369.3661384 | V121: 369.3661384 | W121: 369.3661384
B122: Creek Rd 33 kV | C122: CONNECTION POINT RATING | D122: MVA | E122: Non-coincident | Q122: 216 | R122: 216 | S122: 216 | T122: 216 | U122: 216 | V122: 216 | W122: 216
E123: Coincident | Q123: 216 | R123: 216 | S123: 216 | T123: 216 | U123: 216 | V123: 216 | W123: 216
C124: WINTER/SUMMER PEAKING | E124: Non-coincident | Q124: WINTER | R124: WINTER | S124: WINTER | T124: WINTER | U124: WINTER | V124: WINTER | W124: WINTER
E125: Coincident | Q125: WINTER | R125: WINTER | S125: WINTER | T125: WINTER | U125: WINTER | V125: WINTER | W125: WINTER
C126: ADJUSTMENTS - EMBEDDED GENERATION | D126: MW | E126: Non-coincident | Q126: 0.82 | R126: 0.82 | S126: 0.82 | T126: 0.82 | U126: 0.82 | V126: 0.82 | W126: 0.82
E127: Coincident | Q127: 0.388 | R127: 0.388 | S127: 0.388 | T127: 0.388 | U127: 0.388 | V127: 0.388 | W127: 0.388
C128: WEATHER CORRECTED MD 10% POE | D128: MW | E128: Non-coincident | Q128: 93.96187338 | R128: 92.71849973 | S128: 90.33588893 | T128: 88.59033231 | U128: 88.19425596 | V128: 87.84642794 | W128: 87.66074502
E129: Coincident | Q129: 93.96187338 | R129: 92.71849973 | S129: 90.33588893 | T129: 88.59033231 | U129: 88.19425596 | V129: 87.84642794 | W129: 87.66074502
C130: WEATHER CORRECTED MD 10% POE | D130: MVA | E130: Non-coincident | Q130: 95.89824309 | R130: 94.62924596 | S130: 92.19753422 | T130: 90.41600511 | U130: 90.0117664 | V130: 89.65677033 | W130: 89.46726085
E131: Coincident | Q131: 95.92905209 | R131: 94.65964727 | S131: 92.22715431 | T131: 90.44505284 | U131: 90.04068427 | V131: 89.68557415 | W131: 89.49600378
C132: WEATHER CORRECTED MD 50% POE | D132: MW | E132: Non-coincident | Q132: 84.34701755 | R132: 83.27523285 | S132: 81.22939295 | T132: 79.79109108 | U132: 79.39873367 | V132: 79.05521641 | W132: 78.85550853
E133: Coincident | Q133: 84.34701755 | R133: 83.27523285 | S133: 81.22939295 | T133: 79.79109108 | U133: 79.39873367 | V133: 79.05521641 | W133: 78.85550853
C134: WEATHER CORRECTED MD 50% POE | D134: MVA | E134: Non-coincident | Q134: 86.08524396 | R134: 84.99137189 | S134: 82.90337124 | T134: 81.4354288 | U134: 81.03498567 | V134: 80.68438919 | W134: 80.48056573
E135: Coincident | Q135: 86.11290037 | R135: 85.01867686 | S135: 82.93000541 | T135: 81.46159136 | U135: 81.06101959 | V135: 80.71031048 | W135: 80.50642153
B136: Derby 22 kV | C136: CONNECTION POINT RATING | D136: MVA | E136: Non-coincident | Q136: 30 | R136: 30 | S136: 30 | T136: 30 | U136: 30 | V136: 30 | W136: 30
E137: Coincident | Q137: 30 | R137: 30 | S137: 30 | T137: 30 | U137: 30 | V137: 30 | W137: 30
C138: WINTER/SUMMER PEAKING | E138: Non-coincident | Q138: WINTER | R138: WINTER | S138: WINTER | T138: WINTER | U138: WINTER | V138: WINTER | W138: WINTER
E139: Coincident | Q139: WINTER | R139: WINTER | S139: WINTER | T139: WINTER | U139: WINTER | V139: WINTER | W139: WINTER
C140: ADJUSTMENTS - EMBEDDED GENERATION | D140: MW | E140: Non-coincident | Q140: 0 | R140: 0 | S140: 0 | T140: 0 | U140: 0 | V140: 0 | W140: 0
E141: Coincident | Q141: 0.461342 | R141: 0.461342 | S141: 0.461342 | T141: 0.461342 | U141: 0.461342 | V141: 0.461342 | W141: 0.461342
C142: WEATHER CORRECTED MD 10% POE | D142: MW | E142: Non-coincident | Q142: 3.141364059 | R142: 3.087103712 | S142: 3.039379699 | T142: 3.002550731 | U142: 3.01727949 | V142: 3.029420574 | W142: 3.042908029
E143: Coincident | Q143: 1.83074527 | R143: 1.779662335 | S143: 1.755434727 | T143: 1.740441925 | U143: 1.749243903 | V143: 1.75652799 | W143: 1.764580744
C144: WEATHER CORRECTED MD 10% POE | D144: MVA | E144: Non-coincident | Q144: 3.16723254 | R144: 3.112525371 | S144: 3.06440836 | T144: 3.027276113 | U144: 3.042126161 | V144: 3.054367224 | W144: 3.067965745
E145: Coincident | Q145: 1.844880396 | R145: 1.793403051 | S145: 1.768988383 | T145: 1.753879822 | U145: 1.762749759 | V145: 1.770090087 | W145: 1.778205016
C146: WEATHER CORRECTED MD 50% POE | D146: MW | E146: Non-coincident | Q146: 3.037430642 | R146: 2.99201534 | S146: 2.955260399 | T146: 2.931693302 | U146: 2.954213942 | V146: 2.974872343 | W146: 2.997281828
E147: Coincident | Q147: 1.653478685 | R147: 1.610937325 | S147: 1.595542427 | T147: 1.589387222 | U147: 1.601814484 | V147: 1.613222241 | W147: 1.625567625
C148: WEATHER CORRECTED MD 50% POE | D148: MVA | E148: Non-coincident | Q148: 3.062443253 | R148: 3.016653966 | S148: 2.979596355 | T148: 2.955835188 | U148: 2.978541281 | V148: 2.9993698 | W148: 3.021963822
E149: Coincident | Q149: 1.666245141 | R149: 1.623375321 | S149: 1.607861559 | T149: 1.60165883 | U149: 1.614182043 | V149: 1.625677879 | W149: 1.638118581
B150: Derwent Bridge 22 kV | C150: CONNECTION POINT RATING | D150: MVA | E150: Non-coincident | Q150: 7.2 | R150: 7.2 | S150: 7.2 | T150: 7.2 | U150: 7.2 | V150: 7.2 | W150: 7.2
E151: Coincident | Q151: 7.2 | R151: 7.2 | S151: 7.2 | T151: 7.2 | U151: 7.2 | V151: 7.2 | W151: 7.2
C152: WINTER/SUMMER PEAKING | E152: Non-coincident | Q152: SUMMER | R152: SUMMER | S152: SUMMER | T152: SUMMER | U152: SUMMER | V152: SUMMER | W152: SUMMER
E153: Coincident | Q153: WINTER | R153: WINTER | S153: WINTER | T153: WINTER | U153: WINTER | V153: WINTER | W153: WINTER
C154: ADJUSTMENTS - EMBEDDED GENERATION | D154: MW | E154: Non-coincident
E155: Coincident
C156: WEATHER CORRECTED MD 10% POE | D156: MW | E156: Non-coincident | Q156: 0.259542326 | R156: 0.25904975 | S156: 0.249020529 | T156: 0.250243259 | U156: 0.258022247 | V156: 0.258035322 | W156: 0.261847611
E157: Coincident | Q157: 0.22060562 | R157: 0.218381408 | S157: 0.219367117 | T157: 0.221501131 | U157: 0.226734984 | V157: 0.23189886 | W157: 0.237293326
C158: WEATHER CORRECTED MD 10% POE | D158: MVA | E158: Non-coincident | Q158: 0.259542326 | R158: 0.25904975 | S158: 0.249020529 | T158: 0.250243259 | U158: 0.258022247 | V158: 0.258035322 | W158: 0.261847611
E159: Coincident | Q159: 0.22060562 | R159: 0.218381408 | S159: 0.219367117 | T159: 0.221501131 | U159: 0.226734984 | V159: 0.23189886 | W159: 0.237293326
C160: WEATHER CORRECTED MD 50% POE | D160: MW | E160: Non-coincident | Q160: 0.243269046 | R160: 0.242753956 | S160: 0.230629083 | T160: 0.231464652 | U160: 0.236451015 | V160: 0.240616023 | W160: 0.242369417
E161: Coincident | Q161: 0.196653341 | R161: 0.194154086 | S161: 0.19487001 | T161: 0.196715797 | U161: 0.200908924 | V161: 0.205051924 | W161: 0.209393399
C162: WEATHER CORRECTED MD 50% POE | D162: MVA | E162: Non-coincident | Q162: 0.243269046 | R162: 0.242753956 | S162: 0.230629083 | T162: 0.231464652 | U162: 0.236451015 | V162: 0.240616023 | W162: 0.242369417
E163: Coincident | Q163: 0.196653341 | R163: 0.194154086 | S163: 0.19487001 | T163: 0.196715797 | U163: 0.200908924 | V163: 0.205051924 | W163: 0.209393399
B164: Devonport 22 kV | C164: CONNECTION POINT RATING | D164: MVA | E164: Non-coincident | Q164: 108 | R164: 108 | S164: 108 | T164: 108 | U164: 108 | V164: 108 | W164: 108
E165: Coincident | Q165: 108 | R165: 108 | S165: 108 | T165: 108 | U165: 108 | V165: 108 | W165: 108
C166: WINTER/SUMMER PEAKING | E166: Non-coincident | Q166: WINTER | R166: WINTER | S166: WINTER | T166: WINTER | U166: WINTER | V166: WINTER | W166: WINTER
E167: Coincident | Q167: WINTER | R167: WINTER | S167: WINTER | T167: WINTER | U167: WINTER | V167: WINTER | W167: WINTER
C168: ADJUSTMENTS - EMBEDDED GENERATION | D168: MW | E168: Non-coincident | Q168: 0 | R168: 0 | S168: 0 | T168: 0 | U168: 0 | V168: 0 | W168: 0
E169: Coincident | Q169: 0 | R169: 0 | S169: 0 | T169: 0 | U169: 0 | V169: 0 | W169: 0
C170: WEATHER CORRECTED MD 10% POE | D170: MW | E170: Non-coincident | Q170: 52.47009629 | R170: 51.81801377 | S170: 50.91803476 | T170: 50.28473885 | U170: 50.33369531 | V170: 50.33085884 | W170: 50.34149865
E171: Coincident | Q171: 52.47009629 | R171: 51.81801377 | S171: 50.91803476 | T171: 50.28473885 | U171: 50.33369531 | V171: 50.33085884 | W171: 50.34149865
C172: WEATHER CORRECTED MD 10% POE | D172: MVA | E172: Non-coincident | Q172: 53.03840863 | R172: 52.3792633 | S172: 51.46953646 | T172: 50.82938122 | U172: 50.87886793 | V172: 50.87600074 | W172: 50.88675579
E173: Coincident | Q173: 53.04016762 | R173: 52.38100042 | S173: 51.47124342 | T173: 50.83106695 | U173: 50.8805553 | V173: 50.87768802 | W173: 50.88844342
C174: WEATHER CORRECTED MD 50% POE | D174: MW | E174: Non-coincident | Q174: 48.46338216 | R174: 48.39073888 | S174: 47.45939838 | T174: 46.74058427 | U174: 46.750169 | V174: 46.71840316 | W174: 46.70174582
E175: Coincident | Q175: 46.63230173 | R175: 46.05300607 | S175: 45.29139877 | T175: 44.79053205 | U175: 44.8058128 | V175: 44.78110016 | W175: 44.77045195
C176: WEATHER CORRECTED MD 50% POE | D176: MVA | E176: Non-coincident | Q176: 48.98829711 | R176: 48.91486702 | S176: 47.97343902 | T176: 47.24683931 | U176: 47.25652786 | V176: 47.22441795 | W176: 47.2075802
E177: Coincident | Q177: 47.13894723 | R177: 46.5533577 | S177: 45.78347578 | T177: 45.27716729 | U177: 45.29261406 | V177: 45.26763293 | W177: 45.25686903
B178: Electrona 11 kV | C178: CONNECTION POINT RATING | D178: MVA | E178: Non-coincident | Q178: 60 | R178: 60 | S178: 60 | T178: 60 | U178: 60 | V178: 60 | W178: 60
E179: Coincident | Q179: 60 | R179: 60 | S179: 60 | T179: 60 | U179: 60 | V179: 60 | W179: 60
C180: WINTER/SUMMER PEAKING | E180: Non-coincident | Q180: WINTER | R180: WINTER | S180: WINTER | T180: WINTER | U180: WINTER | V180: WINTER | W180: WINTER
E181: Coincident | Q181: WINTER | R181: WINTER | S181: WINTER | T181: WINTER | U181: WINTER | V181: WINTER | W181: WINTER
C182: ADJUSTMENTS - EMBEDDED GENERATION | D182: MW | E182: Non-coincident | Q182: 0 | R182: 0 | S182: 0 | T182: 0 | U182: 0 | V182: 0 | W182: 0
E183: Coincident | Q183: 0 | R183: 0 | S183: 0 | T183: 0 | U183: 0 | V183: 0 | W183: 0
C184: WEATHER CORRECTED MD 10% POE | D184: MW | E184: Non-coincident | Q184: 14.26163566 | R184: 13.66480836 | S184: 13.30850144 | T184: 13.05511297 | U184: 13.01245145 | V184: 12.99118531 | W184: 13.01009098
E185: Coincident | Q185: 14.26163566 | R185: 13.66480836 | S185: 13.30850144 | T185: 13.05511297 | U185: 13.01245145 | V185: 12.99118531 | W185: 13.01009098
C186: WEATHER CORRECTED MD 10% POE | D186: MVA | E186: Non-coincident | Q186: 14.35514194 | R186: 13.75440155 | S186: 13.39575851 | T186: 13.1407087 | U186: 13.09776747 | V186: 13.0763619 | W186: 13.09539152
E187: Coincident | Q187: 14.32318612 | R187: 13.72378303 | S187: 13.36593836 | T187: 13.11145631 | U187: 13.06861067 | V187: 13.04725275 | W187: 13.06624001
C188: WEATHER CORRECTED MD 50% POE | D188: MW | E188: Non-coincident | Q188: 12.95467875 | R188: 12.56106908 | S188: 12.2309316 | T188: 11.98307285 | U188: 11.94978981 | V188: 11.93471264 | W188: 11.95380973
E189: Coincident | Q189: 12.87624922 | R189: 12.34843521 | S189: 12.05709368 | T189: 11.86178033 | U189: 11.83044373 | V189: 11.81702974 | W189: 11.83734471
C190: WEATHER CORRECTED MD 50% POE | D190: MVA | E190: Non-coincident | Q190: 13.03961598 | R190: 12.64342561 | S190: 12.31112359 | T190: 12.06163976 | U190: 12.0281385 | V190: 12.01296247 | W190: 12.03218477
E191: Coincident | Q191: 12.93182062 | R191: 12.40172867 | S191: 12.10912976 | T191: 11.91297348 | U191: 11.88150163 | V191: 11.86802975 | W191: 11.8884324
B192: Emu Bay 11 kV | C192: CONNECTION POINT RATING | D192: MVA | E192: Non-coincident | Q192: 96 | R192: 96 | S192: 96 | T192: 96 | U192: 96 | V192: 96 | W192: 96
E193: Coincident | Q193: 96 | R193: 96 | S193: 96 | T193: 96 | U193: 96 | V193: 96 | W193: 96
C194: WINTER/SUMMER PEAKING | E194: Non-coincident | Q194: WINTER | R194: WINTER | S194: WINTER | T194: WINTER | U194: WINTER | V194: WINTER | W194: WINTER
E195: Coincident | Q195: WINTER | R195: WINTER | S195: WINTER | T195: WINTER | U195: WINTER | V195: WINTER | W195: WINTER
C196: ADJUSTMENTS - EMBEDDED GENERATION | D196: MW | E196: Non-coincident | Q196: 0 | R196: 0 | S196: 0 | T196: 0 | U196: 0 | V196: 0 | W196: 0
E197: Coincident | Q197: 0 | R197: 0 | S197: 0 | T197: 0 | U197: 0 | V197: 0 | W197: 0
C198: WEATHER CORRECTED MD 10% POE | D198: MW | E198: Non-coincident | Q198: 8.992696509 | R198: 8.750244698 | S198: 8.527112978 | T198: 8.334912981 | U198: 8.28429887 | V198: 8.223482016 | W198: 8.163115454
E199: Coincident | Q199: 7.20623335 | R199: 6.93609961 | S199: 6.771899099 | T199: 6.643225379 | U199: 6.603882248 | V199: 6.556317628 | W199: 6.50904663
C200: WEATHER CORRECTED MD 10% POE | D200: MVA | E200: Non-coincident | Q200: 9.570346877 | R200: 9.312321053 | S200: 9.074856355 | T200: 8.870310295 | U200: 8.816444961 | V200: 8.751721506 | W200: 8.687477267
E201: Coincident | Q201: 7.63093213 | R201: 7.344878079 | S201: 7.171000425 | T201: 7.034743329 | U201: 6.993081514 | V201: 6.942713677 | W201: 6.892656767
C202: WEATHER CORRECTED MD 50% POE | D202: MW | E202: Non-coincident | Q202: 8.63288267 | R202: 8.385790362 | S202: 8.164284408 | T202: 7.979723609 | U202: 7.918655065 | V202: 7.848739852 | W202: 7.779464042
... 4679 more rows

Sheet 7.1 Policies and Procedures
B1: =(LOOKUP(dms_Model,dms_Model_List,dms_Worksheet_List)) -> REGULATORY REPORTING STATEMENT
B2: =INDEX(dms_TradingNameFull_List,MATCH(dms_TradingName,dms_TradingName_List)) -> TasNetworks (T)
B3: =IF(SUM(dms_SingleYear_Model)>0,CRY,CONCATENATE(FRCP_y1," to ",dms_MultiYear_FinalYear_Result)) -> 2019-20 to 2023-24
B4: 7.1 PLANS, POLICIES, PROCEDURES AND STRATEGIES
B7: Instructions
B8: =CONCATENATE(dms_TradingName, " must list and provide a brief description of key internal plans, "&"policies, procedures or strategies that are used by it to plan and conduct its day to day operations and that have been relied upon in the development of its regulatory proposal. "&dms_TradingName," must identify any internal plans, policies, procedures and strategies that have changed in the current regulatory control period "&"or that are expected to change before the next regulatory control period where the change has been identified as a step change.") -> TasNetworks (T) must list and provide a brief description of key internal plans, policies, procedures or strategies that are used by it to plan and conduct its day to day operations and that have been relied upon in the development of its regulatory proposal. TasNetworks (T) must identify any internal plans, policies, procedures and strategies that have changed in the current regulatory control period or that are expected to change before the next regulatory control period where the change has been identified as a step change.
B10: 7.1.1 - PLANS, POLICIES, PROCEDURES AND STRATEGIES
C11: Brief description | D11: Relevance to regulatory proposal | E11: Expenditure impact
C12: Description of the plan, policy, procedure or strategy. | D12: Identify the element of the proposal/supporting documents that the policy, plan, procedure or strategy is relevant to e.g. replacement capex, capacity utilisation thresholds, opex | E12: Is this policy, plan or procedure identified in the response to section 4 'Step Changes' of the notice (yes or no)?
B13: Corporate
B14: See attachments to the Regulatory Proposal
B17: Governance framework
B18: See attachments to the Regulatory Proposal
B35: Accounting policies, procedures and methodologies (including a capitalisation policy, depreciation policy and an approved expenditure allocation methodology)
B36: See attachments to the Regulatory Proposal
B39: Asset management plan or equivalent documentation
B40: Asset Management Policies
B41: See attachments to the Regulatory Proposal
B43: Asset Management Strategies
B44: See attachments to the Regulatory Proposal
B48: Asset Management Plans
B49: See attachments to the Regulatory Proposal
B72: Capital expenditure policies and procedures (including capex approval policies and procedures and replacement policy)
B73: See attachments to the Regulatory Proposal
B77: Internal standards for network planning, design, maintenance and operation
B78: See attachments to the Regulatory Proposal
B157: Procurement and contracting out policies
B158: See attachments to the Regulatory Proposal
B162: Information technology policies or strategies
B163: See attachments to the Regulatory Proposal
B199: Demand management policies or strategies
B200: See attachments to the Regulatory Proposal
B203: Self insurance guidelines or policy
B204: See attachments to the Regulatory Proposal
B208: Land and easement acquisition polices
B209: See attachments to the Regulatory Proposal
B213: Asset security plans and policies
B214: See attachments to the Regulatory Proposal
B224: Disaster recovery policy
B225: See attachments to the Regulatory Proposal

Sheet 7.2 Contingent projects
B1: =(LOOKUP(dms_Model,dms_Model_List,dms_Worksheet_List)) -> REGULATORY REPORTING STATEMENT
B2: =INDEX(dms_TradingNameFull_List,MATCH(dms_TradingName,dms_TradingName_List)) -> TasNetworks (T)
B3: =IF(SUM(dms_SingleYear_Model)>0,CRY,CONCATENATE(FRCP_y1," to ",dms_MultiYear_FinalYear_Result)) -> 2019-20 to 2023-24
B4: 7.2 CONTINGENT PROJECTS
B7: Instructions
B8: =CONCATENATE(dms_TradingName," is required to populate all input cells (yellow) in table 7.2.1 presented below. Additional rows may be added by ",dms_TradingName," if required." ) -> TasNetworks (T) is required to populate all input cells (yellow) in table 7.2.1 presented below. Additional rows may be added by TasNetworks (T) if required.
B10: 7.2.1 - PROPOSED CONTINGENT PROJECTS FOR THE FORTHCOMING REGULATORY CONTROL PERIOD
B11: Proposed contingent project name | C11: Proposed contingent capital expenditure ($0's, nominal) | D11: Proposed trigger events | E11: =CONCATENATE("Proposed MAR for ", FRCP_y1," ($0's, nominal)") -> Proposed MAR for 2019-20 ($0's, nominal) | F11: =CONCATENATE("5 per cent of the ", FRCP_y1," ($0's, nominal) MAR") -> 5 per cent of the 2019-20 ($0's, nominal) MAR
B12: Second Bass Strait Interconnector | C12: 550000000 | D12: 1. Approval of a business case for construction of a second Bass Strait interconnector; and 2. Successful completion of the Regulatory Investment Test for Transmission (RIT-T); and 3. Determination by the AER that the proposed investment satisfies the RIT-T or alternative applicable decision-making framework; and 4. TasNetworks Board approval to proceed with the project, subject to the AER amending the revenue determination pursuant to the Rules | E12: 168410000 | F12: =+E12*0.05 -> 8420500
B13: Sheffield to Palmerston 220 kV Augmentation | C13: 120000000 | D13: 1. The connection of an additional 340 MW of generation in the North West and West Coast networks connecting into Sheffield or an application to connect a second Bass Strait interconnector, with an expected connection to the Tasmanian transmission system at Sheffield; and 2. Successful completion of the RIT-T; and 3. Determination by the AER that the proposed investment satisfies the RIT-T. 3. TasNetworks Board approval to proceed with the project subject to the AER amending the revenue determination pursuant to the Rules. | E13: =+$E$12 -> 168410000 | F13: =+E13*0.05 -> 8420500
B14: Rationalisation of Upper Derwent 110 kV Network | C14: 118000000 | D14: 1. Hydro Tasmania confirms its connection requirements for the replacement and relocation of the Tarraleah power station, thereby clarifying the required rationalisation and augmentation of the Upper Derwent 110 kV network; 2. Successful completion of the RIT-T; and 3. Determination by the AER that the proposed investment satisfies the RIT-T. 4. TasNetworks Board approval to proceed with the project subject to the AER amending the revenue determination pursuant to the Rules. | E14: =+$E$12 -> 168410000 | F14: 8420500
B15: North West 110 kV Network Redevelopment | C15: 70000000 | D15: 1. When the flows through the 110 kV transmission corridor between Burnie and Smithton exceed the firm capacity of the corridor by at least 150 MW; and 2. Successful completion of the RIT-T; and 3. Determination by the AER that the proposed investment satisfies the RIT-T or alternative applicable decision-making framework. 4. TasNetworks Board approval to proceed with the project subject to the AER amending the revenue determination pursuant to the Rules. | E15: 168410000 | F15: 8420500
B16: North West 220 kV Network Redevelopment | C16: 80000000 | D16: 1. When the amount of new generation, capable of exporting into the transmission network exceeds 200 MW, connects or applies to connect, to the transmission network in North West Tasmania; and 2. Successful completion of the RIT-T; and 3. Determination by the AER that the proposed investment satisfies the RIT-T or alternative applicable decision-making framework; and 4. TasNetworks Board approval to proceed with the project subject to the AER amending the revenue determination pursuant to the Rules. | E16: 168410000 | F16: 8420500
E17: 168410000 | F17: 8420500
E18: 168410000 | F18: 8420500
E19: 168410000 | F19: 8420500
E20: 168410000 | F20: 8420500
E21: 168410000 | F21: 8420500
E22: 168410000 | F22: 8420500
E23: 168410000 | F23: 8420500
E24: 168410000 | F24: 8420500
E25: 168410000 | F25: 8420500
E26: 168410000 | F26: 8420500
E27: 168410000 | F27: 8420500
E28: 168410000 | F28: 8420500
E29: 168410000 | F29: 8420500
E30: 168410000 | F30: 8420500
E31: 168410000 | F31: 8420500

Sheet 7.3 Obligations
B1: =(LOOKUP(dms_Model,dms_Model_List,dms_Worksheet_List)) -> REGULATORY REPORTING STATEMENT
B2: =INDEX(dms_TradingNameFull_List,MATCH(dms_TradingName,dms_TradingName_List)) -> TasNetworks (T)
B3: =IF(SUM(dms_SingleYear_Model)>0,CRY,CONCATENATE(FRCP_y1," to ",dms_MultiYear_FinalYear_Result)) -> 2019-20 to 2023-24
B4: 7.3 OBLIGATIONS, REQUIREMENTS & STANDARDS
B6: There is ONE table on this worksheet. It has been sub-grouped for ease of navigation. See the Instructions sheet on how to group or ungroup data.
B8: Instructions
B9: =CONCATENATE("Outline those obligations and requirements that ",dms_TradingName, " identifies as having a material impact on expenditure requirements.") -> Outline those obligations and requirements that TasNetworks (T) identifies as having a material impact on expenditure requirements.
B12: 7.3.1 - OBLIGATIONS OR REQUIREMENTS
C13: Brief description | D13: Relevance to regulatory proposal | E13: Expenditure impact
C14: Description of relevant obligations or requirements within the instrument (e.g. safety obligations, reliability targets) | D14: Identify what element of the proposal/supporting documents the obligation or requirement is relevant to e.g. replacement capex, capacity utilisation thresholds, opex | E14: Is the obligation or requirement identified in the response to section 4 'Step Changes' of the notice (yes or no)?
B15: Legislation
B16: See Asset Management Plans
B227: Licences
B228: See Asset Management Plans
B232: Rules
B233: See Asset Management Plans
B237: Orders
B238: See Asset Management Plans
B241: Codes
B242: See Asset Management Plans
B257: Guidelines
B258: See Asset Management Plans
B296: Default agreements
B301: Other
B302: See Asset Management Plans

Sheet 7.4 Shared Assets
B1: =(LOOKUP(dms_Model,dms_Model_List,dms_Worksheet_List)) -> REGULATORY REPORTING STATEMENT
B2: =INDEX(dms_TradingNameFull_List,MATCH(dms_TradingName,dms_TradingName_List)) -> TasNetworks (T)
B3: =IF(SUM(dms_SingleYear_Model)>0,CRY,CONCATENATE(FRCP_y1," to ",dms_MultiYear_FinalYear_Result)) -> 2019-20 to 2023-24
B4: 7.4 SHARED ASSETS
B6: 7.4.1 - TOTAL UNREGULATED REVENUE EARNED WITH SHARED ASSETS
B7: Name of shared asset unregulated service | C7: Description of shared assets used to provide the service | D7: Shared asset unregulated revenue ($0's, nominal) | L7: =CONCATENATE("Shared asset unregulated revenue ($0's, real ", dms_DollarReal,")") -> Shared asset unregulated revenue ($0's, real June 2019)
D8: =PRCP_y1 -> 2009-10 | E8: =PRCP_y2 -> 2010-11 | F8: =PRCP_y3 -> 2011-12 | G8: =PRCP_y4 -> 2012-13 | H8: =PRCP_y5 -> 2013-14 | I8: =CRCP_y1 -> 2014-15 | J8: =CRCP_y2 -> 2015-16 | K8: =CRCP_y3 -> 2016-17 | L8: =CRCP_y4 -> 2017-18 | M8: =CRCP_y5 -> 2018-19 | N8: =FRCP_y1 -> 2019-20 | O8: =FRCP_y2 -> 2020-21 | P8: =FRCP_y3 -> 2021-22 | Q8: =FRCP_y4 -> 2022-23 | R8: =FRCP_y5 -> 2023-24 | S8: =CONCATENATE("Total ",FRCP_y1, " to ", dms_MultiYear_FinalYear_Result) -> Total 2019-20 to 2023-24
B9: OPGW dark fibre lease | C9: OPGW | D9: 0 | E9: 27750 | F9: 115000 | G9: 115819 | H9: 118277.048 | S9: =SUM(N9:R9) -> 0
S10: =SUM(N10:R10) -> 0
S11: 0
S12: 0
S13: 0
S14: 0
S15: 0
S16: 0
S17: 0
S18: 0
S19: 0
S20: =SUM(N20:R20) -> 0
S21: =SUM(N21:R21) -> 0
S22: =SUM(N22:R22) -> 0
S23: =SUM(N23:R23) -> 0
B25: 7.4.2 - SHARED ASSET UNREGULATED SERVICES - APPORTIONMENT METHODOLOGY
B26: Name of shared asset unregulated service for which revenues were apportioned | C26: Apportionment methodology

Sheet 7.6 Indicative bill impact
B1: =(LOOKUP(dms_Model,dms_Model_List,dms_Worksheet_List)) -> REGULATORY REPORTING STATEMENT
B2: =INDEX(dms_TradingNameFull_List,MATCH(dms_TradingName,dms_TradingName_List)) -> TasNetworks (T)
B3: =IF(SUM(dms_SingleYear_Model)>0,CRY,CONCATENATE(FRCP_y1," to ",dms_MultiYear_FinalYear_Result)) -> 2019-20 to 2023-24
B4: 7.6 INDICATIVE IMPACT ON TRANSMISSION CHARGES AND ELECTRICITY BILLS
B6: Instructions
B7: =CONCATENATE(dms_TradingName," is required to populate all input cells (yellow) in table 7.6.1 presented below. Transmission pricing impact should refer to ",dms_TradingName,"'s related transmission costs only.") -> TasNetworks (T) is required to populate all input cells (yellow) in table 7.6.1 presented below. Transmission pricing impact should refer to TasNetworks (T)'s related transmission costs only.
B9: 7.6.1 - Indicative impact of the revenue proposal on the average residential electricity bills
B11: Transmission costs as a proportion of a typical residential customer's electricity bill (per cent) | C11: 0.1125474212
B12: Transmission costs as a proportion of a typical business customer's electricity bill (per cent) | C12: 0.1101242556
B13: Source data: | C13: Aurora Energy, Typical electricity cost breakdown July 2017
B15: Typical electricity bill - Residential customer
B16: Tariff type | C16: Description of tariff type | D16: =CONCATENATE("Annual bill amount ($", dms_CRCP_FinalYear_Result,")") -> Annual bill amount ($2018-19)
B17: TAS31/TAS41 | C17: Medium consumption | D17: 1923.2828
B20: <NSP to insert any additional items>
B21: <NSP to insert any additional items>
B22: Source data: | C22: Office of the Tasmanian Economic Regulator, Typical Electricity Customers 2017 / Aurora Energy Standing Offer Tariffs 2017-18
B24: Typical electricity bill - Business customer
B25: Tariff type | C25: Description of tariff type | D25: =CONCATENATE("Annual bill amount ($", dms_CRCP_FinalYear_Result,")") -> Annual bill amount ($2018-19)
B26: TAS22 | C26: High consumption | D26: 6511.085427
B28: <NSP to insert any additional items>
B29: <NSP to insert any additional items>
B30: Source data: | C30: Office of the Tasmanian Economic Regulator, Typical Electricity Customers 2017 / Aurora Energy Standing Offer Tariffs 2017-18
B32: Indicative annual average transmission price impact as shown in the proposed PTRM (per cent)
C33: =CRCP_y5 -> 2018-19 | D33: =FRCP_y1 -> 2019-20 | E33: =FRCP_y2 -> 2020-21 | F33: =FRCP_y3 -> 2021-22 | G33: =FRCP_y4 -> 2022-23 | H33: =FRCP_y5 -> 2023-24 | I33: Average
B34: Annual price path (per cent, nominal) | D34: 0.01013442925 | E34: -0.02380347467 | F34: -0.0243939153 | G34: -0.02442209023 | H34: -0.02458082212 | I34: =+AVERAGE(D34:H34) -> -0.01741317462
B35: =CONCATENATE("Annual price path (per cent, $",dms_DollarReal) -> Annual price path (per cent, $June 2019 | D35: -0.01402203099 | E35: -0.04714834033 | F35: -0.04772466111 | G35: -0.04775216225 | H35: -0.04790709822 | I35: =+AVERAGE(D35:H35) -> -0.04091085858
B38: Transmission bill component - Residential customer | C38: =CONCATENATE("Real ", dms_DollarReal) -> Real June 2019
B39: Tariff type | C39: =CRCP_y5 -> 2018-19 | D39: =FRCP_y1 -> 2019-20 | E39: =FRCP_y2 -> 2020-21 | F39: =FRCP_y3 -> 2021-22 | G39: =FRCP_y4 -> 2022-23 | H39: =FRCP_y5 -> 2023-24 | I39: =CONCATENATE("Total ",FRCP_y1," to ", IF(SUM(dms_SingleYear_Model)>0,"",dms_MultiYear_FinalYear_Result)) -> Total 2019-20 to 2023-24 | J39: Annual average | K39: Annual impact on customer bill (%)
B41: =+B17 -> TAS31/TAS41 | C41: =+D17*$C$11 -> 216.4605194 | D41: =+C41*(1+IF($C$38="Nominal",D$34,D$35)) -> 213.4253033 | E41: =+D41*(1+IF($C$38="Nominal",E$34,E$35)) -> 203.3626544 | F41: =+E41*(1+IF($C$38="Nominal",F$34,F$35)) -> 193.6572407 | G41: =+F41*(1+IF($C$38="Nominal",G$34,G$35)) -> 184.4096887 | H41: =+G41*(1+IF($C$38="Nominal",H$34,H$35)) -> 175.5751556 | I41: =+SUM(D41:H41) -> 970.4300427 | J41: =+AVERAGE(D41:H41) -> 194.0860085
B42: Annual change | D42: =+D41-C41 -> -3.035216112 | E42: =+E41-D41 -> -10.06264883 | F42: =+F41-E41 -> -9.705413765 | G42: =+G41-F41 -> -9.247551978 | H42: =+H41-G41 -> -8.834533068 | I42: =+SUM(D42:H42) -> -40.88536376 | J42: =+AVERAGE(D42:H42) -> -8.177072751 | K42: =+J42/D17 -> -0.004251622669
B44: =+B18 -> 0 | C44: =+D18*$C$11 -> 0 | D44: =+C44*(1+IF($C$38="Nominal",D$34,D$35)) -> 0 | E44: =+D44*(1+IF($C$38="Nominal",E$34,E$35)) -> 0 | F44: =+E44*(1+IF($C$38="Nominal",F$34,F$35)) -> 0 | G44: =+F44*(1+IF($C$38="Nominal",G$34,G$35)) -> 0 | H44: =+G44*(1+IF($C$38="Nominal",H$34,H$35)) -> 0 | I44: 0 | J44: =+AVERAGE(D44:H44) -> 0
B45: Annual change | D45: =+D44-C44 -> 0 | E45: =+E44-D44 -> 0 | F45: =+F44-E44 -> 0 | G45: =+G44-F44 -> 0 | H45: =+H44-G44 -> 0 | I45: 0 | J45: 0 | K45: =+J45/D18 -> 
B47: =+B19 -> 0 | C47: =+D19*$C$11 -> 0 | D47: =+C47*(1+IF($C$38="Nominal",D$34,D$35)) -> 0 | E47: =+D47*(1+IF($C$38="Nominal",E$34,E$35)) -> 0 | F47: =+E47*(1+IF($C$38="Nominal",F$34,F$35)) -> 0 | G47: =+F47*(1+IF($C$38="Nominal",G$34,G$35)) -> 0 | H47: =+G47*(1+IF($C$38="Nominal",H$34,H$35)) -> 0 | I47: 0 | J47: 0
B48: Annual change | D48: =+D47-C47 -> 0 | E48: =+E47-D47 -> 0 | F48: =+F47-E47 -> 0 | G48: =+G47-F47 -> 0 | H48: =+H47-G47 -> 0 | I48: 0 | J48: 0 | K48: =+J48/D19 -> 
B50: =+B20 -> <NSP to insert any additional items> | C50: =+D20*$C$11 -> 0 | D50: =+C50*(1+IF($C$38="Nominal",D$34,D$35)) -> 0 | E50: =+D50*(1+IF($C$38="Nominal",E$34,E$35)) -> 0 | F50: =+E50*(1+IF($C$38="Nominal",F$34,F$35)) -> 0 | G50: =+F50*(1+IF($C$38="Nominal",G$34,G$35)) -> 0 | H50: =+G50*(1+IF($C$38="Nominal",H$34,H$35)) -> 0 | I50: 0 | J50: 0
B51: Annual change | D51: =+D50-C50 -> 0 | E51: =+E50-D50 -> 0 | F51: =+F50-E50 -> 0 | G51: =+G50-F50 -> 0 | H51: =+H50-G50 -> 0 | I51: 0 | J51: 0 | K51: =+J51/D20 -> 
B53: =+B21 -> <NSP to insert any additional items> | C53: =+D21*$C$11 -> 0 | D53: =+C53*(1+IF($C$38="Nominal",D$34,D$35)) -> 0 | E53: =+D53*(1+IF($C$38="Nominal",E$34,E$35)) -> 0 | F53: =+E53*(1+IF($C$38="Nominal",F$34,F$35)) -> 0 | G53: =+F53*(1+IF($C$38="Nominal",G$34,G$35)) -> 0 | H53: =+G53*(1+IF($C$38="Nominal",H$34,H$35)) -> 0 | I53: =+SUM(D53:H53) -> 0 | J53: =+AVERAGE(D53:H53) -> 0
B54: Annual change | D54: =+D53-C53 -> 0 | E54: =+E53-D53 -> 0 | F54: =+F53-E53 -> 0 | G54: =+G53-F53 -> 0 | H54: =+H53-G53 -> 0 | I54: =+SUM(D54:H54) -> 0 | J54: =+AVERAGE(D54:H54) -> 0 | K54: =+J54/D21 -> 
B57: Transmission bill component - Business customer | C57: =CONCATENATE("Real ", dms_DollarReal) -> Real June 2019
B58: Tariff type | C58: =CRCP_y5 -> 2018-19 | D58: =FRCP_y1 -> 2019-20 | E58: =FRCP_y2 -> 2020-21 | F58: =FRCP_y3 -> 2021-22 | G58: =FRCP_y4 -> 2022-23 | H58: =FRCP_y5 -> 2023-24 | I58: =CONCATENATE("Total ",FRCP_y1," to ", IF(SUM(dms_SingleYear_Model)>0,"",dms_MultiYear_FinalYear_Result)) -> Total 2019-20 to 2023-24 | J58: Annual average | K58: Annual impact on customer bill (%)
B60: =+B26 -> TAS22 | C60: =+D26*$C$12 -> 717.0284361 | D60: =+C60*(1+IF($C$57="Nominal",D$34,D$35)) -> 706.9742411 | E60: =+D60*(1+IF(D57="Nominal",E$34,E$35)) -> 673.641579 | F60: =+E60*(1+IF(E57="Nominal",F$34,F$35)) -> 641.4922629 | G60: =+F60*(1+IF(F57="Nominal",G$34,G$35)) -> 610.8596203 | H60: =+G60*(1+IF(G57="Nominal",H$34,H$35)) -> 581.5951085 | I60: =+SUM(D60:H60) -> 3214.562812 | J60: =+AVERAGE(D60:H60) -> 642.9125623
B61: Annual change | D61: =+D60-C60 -> -10.05419495 | E61: =+E60-D60 -> -33.33266213 | F61: =+F60-E60 -> -32.14931606 | G61: =+G60-F60 -> -30.63264262 | H61: =+H60-G60 -> -29.26451183 | I61: =+SUM(D61:H61) -> -135.4333276 | J61: =+AVERAGE(D61:H61) -> -27.08666552 | K61: =+J61/D26 -> -0.004160084493
B63: =+B27 -> 0 | C63: =+D27*$C$12 -> 0 | D63: =+C63*(1+IF(C60="Nominal",D$34,D$35)) -> 0 | E63: =+D63*(1+IF(D60="Nominal",E$34,E$35)) -> 0 | F63: =+E63*(1+IF(E60="Nominal",F$34,F$35)) -> 0 | G63: =+F63*(1+IF(F60="Nominal",G$34,G$35)) -> 0 | H63: =+G63*(1+IF(G60="Nominal",H$34,H$35)) -> 0 | I63: 0 | J63: 0
B64: Annual change | D64: =+D63-C63 -> 0 | E64: =+E63-D63 -> 0 | F64: =+F63-E63 -> 0 | G64: =+G63-F63 -> 0 | H64: =+H63-G63 -> 0 | I64: 0 | J64: 0 | K64: =+J64/D27 -> 
B66: =+B28 -> <NSP to insert any additional items> | C66: =+D28*$C$12 -> 0 | D66: =+C66*(1+IF(C63="Nominal",D$34,D$35)) -> 0 | E66: =+D66*(1+IF(D63="Nominal",E$34,E$35)) -> 0 | F66: =+E66*(1+IF(E63="Nominal",F$34,F$35)) -> 0 | G66: =+F66*(1+IF(F63="Nominal",G$34,G$35)) -> 0 | H66: =+G66*(1+IF(G63="Nominal",H$34,H$35)) -> 0 | I66: 0 | J66: 0
B67: Annual change | D67: =+D66-C66 -> 0 | E67: =+E66-D66 -> 0 | F67: =+F66-E66 -> 0 | G67: =+G66-F66 -> 0 | H67: =+H66-G66 -> 0 | I67: 0 | J67: 0 | K67: =+J67/D28 -> 
B69: =+B29 -> <NSP to insert any additional items> | C69: =+D29*$C$12 -> 0 | D69: =+C69*(1+IF(C66="Nominal",D$34,D$35)) -> 0 | E69: =+D69*(1+IF(D66="Nominal",E$34,E$35)) -> 0 | F69: =+E69*(1+IF(E66="Nominal",F$34,F$35)) -> 0 | G69: =+F69*(1+IF(F66="Nominal",G$34,G$35)) -> 0 | H69: =+G69*(1+IF(G66="Nominal",H$34,H$35)) -> 0 | I69: =+SUM(D69:H69) -> 0 | J69: =+AVERAGE(D69:H69) -> 0
B70: Annual change | D70: =+D69-C69 -> 0 | E70: =+E69-D69 -> 0 | F70: =+F69-E69 -> 0 | G70: =+G69-F69 -> 0 | H70: =+H69-G69 -> 0 | I70: =+SUM(D70:H70) -> 0 | J70: =+AVERAGE(D70:H70) -> 0 | K70: =+J70/D29 -> 

Sheet 7.9 STPIS
B1: =(LOOKUP(dms_Model,dms_Model_List,dms_Worksheet_List)) -> REGULATORY REPORTING STATEMENT
B2: =INDEX(dms_TradingNameFull_List,MATCH(dms_TradingName,dms_TradingName_List)) -> TasNetworks (T)
B3: =IF(SUM(dms_SingleYear_Model)>0,CRY,CONCATENATE(FRCP_y1," to ",dms_MultiYear_FinalYear_Result)) -> 2019-20 to 2023-24
B4: 7.9 SERVICE TARGET PERFORMANCE INCENTIVE SCHEME (STPIS)
B6: There are FOUR tables on this worksheet. Each table has been grouped (and sub-grouped) for ease of navigation. See the Instructions sheet on how to group or ungroup tables.
B8: Instructions
B9: =dms_TradingName&" is required to provide the performance actuals for the most recent five years, and the proposed floor, target and cap for the next regulatory control period for the parameters under the service component of the STPIS in table 7.9.1 below." -> TasNetworks (T) is required to provide the performance actuals for the most recent five years, and the proposed floor, target and cap for the next regulatory control period for the parameters under the service component of the STPIS in table 7.9.1 below.
B11: 7.9.1 - Historical performance and proposed floor, caps and targets for the service component of the STPIS
B12: Parameter | C12: Performance actuals | H12: Average of actual performance | I12: Floor | J12: Target | K12: Cap | L12: Weighting (% of MAR)
C13: 2012-13 | D13: 2013-14 | E13: 2014-15 | F13: 2015-16 | G13: 2016-17
B14: Unplanned outage circuit event rate:
B15: Transmission line outage - fault | C15: 0.45 | D15: 0.17 | E15: 0.17 | F15: 0.2 | G15: 0.17 | H15: =+AVERAGE(C15:G15) -> 0.232 | I15: 35 | J15: 23 | K15: 11 | L15: 0.002
B16: Transformer outage – fault | C16: 0.16 | D16: 0.1 | E16: 0.09 | F16: 0.07 | G16: 0.08 | H16: =+AVERAGE(C16:G16) -> 0.1 | I16: 14 | J16: 10 | K16: 6 | L16: 0.002
B17: Reactive plant – fault | C17: 0.17 | D17: 0.08 | E17: 0.25 | F17: 0 | G17: 0.17 | H17: 0.134 | I17: 23 | J17: 13 | K17: 3 | L17: 0.001
B18: Transmission line outage – forced outage | C18: 0.06 | D18: 0.07 | E18: 0.08 | F18: 0.15 | G18: 0.07 | H18: 0.086 | I18: 13 | J18: 9 | K18: 5 | L18: 0.001
B19: Transformer outage – forced outage | C19: 0.02 | D19: 0.13 | E19: 0.11 | F19: 0.12 | G19: 0.12 | H19: 0.1 | I19: 15 | J19: 10 | K19: 5 | L19: 0.001
B20: Reactive plant – forced outage | C20: 0.33 | D20: 0.5 | E20: 1 | F20: 0 | G20: 0.08 | H20: 0.382 | I20: 76 | J20: 38 | K20: 0 | L20: 0.0005
B21: Loss of supply event frequency (number of events):
B22: > (x) system minutes | C22: 17 | D22: 8 | E22: 7 | F22: 0 | G22: 3 | H22: 7 | I22: 14 | J22: 7 | K22: 0 | L22: 0.0015
B23: > (y) system minutes | C23: 4 | D23: 4 | E23: 2 | F23: 0 | G23: 2 | H23: 2.4 | I23: 4 | J23: 2 | K23: 0 | L23: 0.0015
B24: Average outage duration (minutes): | C24: 191 | D24: 56 | E24: 228 | F24: 60 | G24: 65 | H24: 120 | I24: 200 | J24: 153 | K24: 100 | L24: 0.002
B25: Proper operation of equipment (number of events):
B26: Failure of protection system | C26: 13 | D26: 0 | E26: 4 | F26: 1 | G26: 3 | H26: 4.2 | I26: 8 | J26: 4 | K26: 0 | L26: 0
B27: Material failure of SCADA | C27: 2 | D27: 2 | E27: 2 | F27: 4 | G27: 4 | H27: 2.8 | I27: 4 | J27: 3 | K27: 2 | L27: 0
B28: Incorrect operational isolation of primary or secondary equipment | C28: 2 | D28: 4 | E28: 6 | F28: 6 | G28: 3 | H28: 4.2 | I28: 6 | J28: 4 | K28: 2 | L28: 0
B32: 7.9.2 - Proposed priority projects for the network capability incentive parameter
B33: Project ranking | C33: Transmission Circuit / Injection Point | D33: Scope of works | E33: =CONCATENATE(("If applicable, the present value of quantified benefits associated with the project ($0's, "),CRCP_y5,")") -> If applicable, the present value of quantified benefits associated with the project ($0's, 2018-19) | F33: =CONCATENATE(("Project cost ($0's, "),CRCP_y5,")") -> Project cost ($0's, 2018-19)
F34: =FRCP_y1 -> 2019-20 | G34: =FRCP_y2 -> 2020-21 | H34: =FRCP_y3 -> 2021-22 | I34: =FRCP_y4 -> 2022-23 | J34: =FRCP_y5 -> 2023-24 | K34: Opex | L34: Capex
B35: 1 | C35: Farrell-Que-Savage River-Hampshire-Burnie 110 kV transmission circuit | D35: (1) Replace manually operated disconnectors A129, B129 and C129 at Waratah Tee Switching Station with remotely-operated, motorised disconnectors. (2) Provision of AC/DC supplies and telecommunications to Waratah Tee Switching Station. | E35: Following an outage of the Farrell-Que-Waratah Tee 110 kV circuit immediate supply restoration to Savage River and Que substations. | G35: 200000 | H35: 410000
B36: 2 | C36: Burnie-Smithton 110 kV transmission line | D36: Install a new weather station near Smithton to enable dynamic rating of Burnie Smithton 110 kV transmission line | E36: Prevents loss of supply to west coast load, loss of generation and potential full or partial system black following failure to open a single bus-couple circuit breaker at Farrell 220 kV substation. Supply restoration time of 0 minutes. | G36: 365000
B37: 3 | C37: Norwood-Scottsdale-Derby 110 kV transmission circuit | D37: Improve footing earthing at selected towers on the Norwood Scottsdale Derby transmission circuits. | E37: Transmission line lightning performance able to withstand 98% of lightning strikes, and the removal of Norwood-Scottsdale 110 kV double transmission circuits from the re-classification list. | G37: 300000 | H37: 500000
B38: 4 | C38: Farrell Substation | D38: Install a second 220 kV bus coupler in series with the existing bus coupler A752B and modify protection and control schemes as required at Farrell 220 kV Substation. | E38: Prevents loss of supply to west coast load, loss of generation and potential full or partial system black following failure to open a single bus-couple circuit breaker at Farrell 220 kV substation. Supply restoration time of 0 minutes. | G38: 240000 | H38: 1000000
B39: 5 | C39: Sheffield–Fisher 220 kV transmission line Farrell–Mackintosh 220 kV transmission line Sheffield–Devils Gate transmission line Tungatinah–Butlers Gorge 110 kV transmission lines Burnie–Smithton 110kV transmission line Farrell–Que–Waratah Tee 110 kV transmission line Sheffield–Railton 110 kV transmission line New Norfolk–Creek Rd 110 kV transmission line George Town–Starwood 110 kV transmission line | D39: Improve ground clearances at identified sites on the 110 kV and 220 kV transmission lines by ground profiling, conductor tensioning, waist extension and raising tower heights. Transmission lines are listed in the 'Transmission circuit/Injection point' column. | E39: Improved ground clearances to re-establish transmission circuit operation to its design temperature; thereby increasing transmission capacity, decreasing safety and environmental risks and meeting transmission circuit clearance compliance. | F39: 5000 | G39: 1000000 | H39: 1000000 | I39: 500000
B40: 6
B41: 7
B42: 8
B43: 9
B44: 10
B45: 11
B46: 12
B47: 13
B48: 14
B49: 15
B50: 16
B55: 7.9.3 – Network limit information
B56: Limit identification | C56: Define limit | D56: Reason for the limit | E56: Is limit addressed by priority project | F56: Supporting information reference
B57: Following an outage of the Farrell-Que-Waratah Tee 110 kV circuit, approximately 228 minutes to restore supply to Savage River and Que substations. | C57: Circuit restoration time is approximately 228 minutes due to current limit presented by existing manual disconnectors. | D57: Manual disconnectors preventing real time switching | E57: Yes
B58: Thermal ratings of Burnie-Smithton and Burnie-Port Latta-Smithton 110 kV circuits are static rating for a given discreate ambient temperature. | C58: Currently static thermal rating is applied to Burnie-Smiththon 110 kV transmission circuits in absence of a weather station | D58: Absence of real time weather station data prevents this transmisison circuits to be dynamically rated. | E58: Yes
B59: Sub-optimal transmission line lightning performance, with an average of 4.5 outages per year due to lightning strikes, and an average re-classification twice a month for an average of two hours. | C59: High footing resistance of transmission towers do not allow a discharge path for lightning strikes to dissipate to ground and results a back flashover converting a single phase fault into multiphase fault incident. TasNetworks has policy not to auto-reclose circuit breakers during a multi-phase faults.Reducing footing resistance of exposed towers will improve service reliability and minimise extended outage duration allowing low cost wind generation to be dispatched into the NEM. | D59: High footing impedance of few exposed transmission towers | E59: Yes
B60: A failure to open the circuit breaker of Farrell Substation 220 kV bus coupler (circuit breaker stuck condition) will disconnect all the 220 kV circuits connected at Farrell Substation. This will result in (1) loss of supply to Roseberry, Newton, Queenstown, Que and Savage River substation,. (2) loss of generation from John Butters, Reece, Tribute, Bastyan and Mackintosh, and (3) potential full or partial system black. Expected outage time is 240 minutes. | C60: Prevent widespread disturbance durign a circuit fail incident | D60: A single bus coupler circuit breaekr at Farrell Substation | E60: Yes
B61: Sub-optimal ground clearance, resulting in transmission line capacities less than their design temperatures. This results in constrained flows, increased safety and environmental risks, and unmet transmission circuit clearance compliance along these lines. | C61: Sub-optimal ground clearance results into potential de-rating to transmission circuits that connects various Hydro generator resulting into constrained flow preventing low cost generation to be fed into NEM | D61: Sub-standard ground clearance identified during LiDAR survey | E61: Yes
B69: 7.9.4 - Market impact component
B71: Instructions
B72: =dms_TradingName&" is required to provide performance data in accordance with Appendix C of the STPIS for the preceding six calendar years in table 7.9.4 below. "&dms_TradingName&" is also required to provide relevant information in the MIC workbook attached to Appendix A of the Notice." -> TasNetworks (T) is required to provide performance data in accordance with Appendix C of the STPIS for the preceding six calendar years in table 7.9.4 below. TasNetworks (T) is also required to provide relevant information in the MIC workbook attached to Appendix A of the Notice.
D75: Market impact parameter
D76: Planned outage count(DI) | F76: Unplanned outage count (DI)
B77: Year | C77: Month | D77: without exclusions | E77: with exclusions | F77: without exclusions | G77: with exclusions | H77: Market impact parameters
B78: =LEFT(PRCP_y3,4) -> 2011 | C78: January | F78: 8 | G78: 8 | H78: =+E78/12 -> 0
B79: 2011 | C79: February | D79: 14 | E79: 3 | H79: 0.25
B80: 2011 | C80: March | D80: 9 | E80: 9 | H80: 0.75
B81: 2011 | C81: April | D81: 3 | E81: 3 | H81: 0.25
B82: 2011 | C82: May | D82: 49 | E82: 49 | H82: 4.083333333
B83: 2011 | C83: June | D83: 4 | E83: 0 | H83: 0
B84: 2011 | C84: July | F84: 54 | G84: 54 | H84: 0
B85: 2011 | C85: August | D85: 171 | E85: 0 | H85: 0
B86: 2011 | C86: September | D86: 63 | E86: 63 | H86: 5.25
B87: 2011 | C87: October | D87: 69 | E87: 69 | H87: 5.75
B88: 2011 | C88: November | D88: 107 | E88: 107 | H88: 8.916666667
B89: 2011 | C89: December | D89: 364 | E89: 364 | H89: 30.33333333
B90: =CONCATENATE("Total ",LEFT(PRCP_y3,4)) -> Total 2011 | D90: =+SUM(D78:D89) -> 853 | E90: =+SUM(E78:E89) -> 667 | F90: =+SUM(F78:F89) -> 62 | G90: =+SUM(G78:G89) -> 62 | H90: =+SUM(H78:H89) -> 55.58333333
B91: =LEFT(PRCP_y4,4) -> 2012 | C91: January | D91: 130 | E91: 130 | F91: 31 | G91: 31 | H91: =+E91/12 -> 10.83333333
B92: 2012 | C92: February | D92: 20 | E92: 20 | F92: 3 | G92: 3 | H92: 1.666666667
B93: 2012 | C93: March | H93: 0
B94: 2012 | C94: April | D94: 173 | E94: 173 | F94: 3 | G94: 3 | H94: 14.41666667
B95: 2012 | C95: May | D95: 198 | E95: 198 | H95: 16.5
B96: 2012 | C96: June | H96: 0
B97: 2012 | C97: July | D97: 292 | E97: 292 | F97: 2 | G97: 0 | H97: 24.33333333
B98: 2012 | C98: August | D98: 422 | E98: 422 | H98: 35.16666667
B99: 2012 | C99: September | D99: 26 | E99: 26 | H99: 2.166666667
B100: 2012 | C100: October | D100: 80 | E100: 80 | F100: 4 | G100: 4 | H100: 6.666666667
B101: 2012 | C101: November | D101: 47 | E101: 47 | F101: 1 | G101: 1 | H101: 3.916666667
B102: 2012 | C102: December | H102: 0
B103: =CONCATENATE("Total ", LEFT(PRCP_y4,4)) -> Total 2012 | D103: =+SUM(D91:D102) -> 1388 | E103: =+SUM(E91:E102) -> 1388 | F103: =+SUM(F91:F102) -> 44 | G103: =+SUM(G91:G102) -> 42 | H103: =+SUM(H91:H102) -> 115.6666667
B104: =LEFT(PRCP_y5,4) -> 2013 | C104: January | D104: 229 | E104: 229 | H104: =+E104/12 -> 19.08333333
B105: 2013 | C105: February | D105: 70 | E105: 70 | F105: 21 | H105: 5.833333333
B106: 2013 | C106: March | D106: 33 | E106: 33 | F106: 56 | G106: 56 | H106: 2.75
B107: 2013 | C107: April | D107: 28 | E107: 28 | H107: 2.333333333
B108: 2013 | C108: May | D108: 306 | E108: 306 | H108: 25.5
B109: 2013 | C109: June | D109: 105 | E109: 35 | H109: 2.916666667
B110: 2013 | C110: July | D110: 3 | E110: 3 | F110: 8 | G110: 8 | H110: 0.25
B111: 2013 | C111: August | H111: 0
B112: 2013 | C112: September | D112: 32 | E112: 32 | H112: 2.666666667
B113: 2013 | C113: October | D113: 287 | E113: 287 | H113: 23.91666667
B114: 2013 | C114: November | D114: 502 | E114: 502 | H114: 41.83333333
B115: 2013 | C115: December | D115: 171 | E115: 171 | H115: 14.25
B116: =CONCATENATE("Total ", LEFT(PRCP_y5,4)) -> Total 2013 | D116: =+SUM(D104:D115) -> 1766 | E116: =+SUM(E104:E115) -> 1696 | F116: =+SUM(F104:F115) -> 85 | G116: =+SUM(G104:G115) -> 64 | H116: =+SUM(H104:H115) -> 141.3333333
B117: =LEFT(CRCP_y1,4) -> 2014 | C117: January | D117: 110 | E117: 109 | H117: =+E117/12 -> 9.083333333
B118: 2014 | C118: February | D118: 87 | E118: 87 | F118: 18 | G118: 18 | H118: 7.25
B119: 2014 | C119: March | D119: 412 | E119: 392 | H119: 32.66666667
B120: 2014 | C120: April | D120: 11 | E120: 11 | H120: 0.9166666667
B121: 2014 | C121: May | H121: 0
B122: 2014 | C122: June | D122: 3 | E122: 3 | F122: 3 | G122: 3 | H122: 0.25
B123: 2014 | C123: July | D123: 123 | E123: 72 | F123: 28 | G123: 28 | H123: 6
B124: 2014 | C124: August | D124: 37 | E124: 35 | H124: 2.916666667
B125: 2014 | C125: September | D125: 35 | E125: 35 | F125: 5 | G125: 5 | H125: 2.916666667
B126: 2014 | C126: October | D126: 1 | H126: 0
B127: 2014 | C127: November | D127: 27 | E127: 21 | H127: 1.75
B128: 2014 | C128: December | D128: 376 | E128: 357 | F128: 54 | G128: 54 | H128: 29.75
B129: =CONCATENATE("Total ", LEFT(CRCP_y1,4)) -> Total 2014 | D129: =+SUM(D117:D128) -> 1222 | E129: =+SUM(E117:E128) -> 1122 | F129: =+SUM(F117:F128) -> 108 | G129: =+SUM(G117:G128) -> 108 | H129: =+SUM(H117:H128) -> 93.5
B130: =LEFT(CRCP_y2,4) -> 2015 | C130: January | H130: =+E130/12 -> 0
B131: 2015 | C131: February | D131: 61 | E131: 61 | F131: 24 | G131: 24 | H131: 5.083333333
B132: 2015 | C132: March | D132: 3 | E132: 3 | H132: 0.25
B133: 2015 | C133: April | D133: 88 | E133: 88 | H133: 7.333333333
B134: 2015 | C134: May | F134: 32 | G134: 32 | H134: 0
B135: 2015 | C135: June | F135: 16 | G135: 16 | H135: 0
B136: 2015 | C136: July | H136: 0
B137: 2015 | C137: August | H137: 0
B138: 2015 | C138: September | F138: 15 | G138: 15 | H138: 0
B139: 2015 | C139: October | D139: 8 | E139: 8 | H139: 0.6666666667
B140: 2015 | C140: November | H140: 0
B141: 2015 | C141: December | H141: 0
B142: =CONCATENATE("Total ", LEFT(CRCP_y2,4)) -> Total 2015 | D142: =+SUM(D130:D141) -> 160 | E142: =+SUM(E130:E141) -> 160 | F142: =+SUM(F130:F141) -> 87 | G142: =+SUM(G130:G141) -> 87 | H142: =+SUM(H130:H141) -> 13.33333333
B143: =LEFT(CRCP_y3,4) -> 2016 | C143: January | D143: 73 | H143: =+E143/12 -> 0
B144: 2016 | C144: February | D144: 34 | E144: 34 | F144: 4 | G144: 4 | H144: 2.833333333
B145: 2016 | C145: March | H145: 0
B146: 2016 | C146: April | H146: 0
B147: 2016 | C147: May | D147: 4 | E147: 4 | F147: 23 | G147: 23 | H147: 0.3333333333
B148: 2016 | C148: June | H148: 0
B149: 2016 | C149: July | D149: 10 | F149: 525 | G149: 525 | H149: 0
B150: 2016 | C150: August | D150: 39 | E150: 39 | H150: 3.25
B151: 2016 | C151: September | D151: 52 | E151: 46 | F151: 31 | G151: 31 | H151: 3.833333333
B152: 2016 | C152: October | D152: 547 | E152: 469 | H152: 39.08333333
B153: 2016 | C153: November | D153: 993 | E153: 993 | H153: 82.75
B154: 2016 | C154: December | D154: 795 | E154: 795 | F154: 14 | G154: 14 | H154: 66.25
B155: =CONCATENATE("Total ", LEFT(CRCP_y3,4)) -> Total 2016 | D155: =+SUM(D143:D154) -> 2547 | E155: =+SUM(E143:E154) -> 2380 | F155: =+SUM(F143:F154) -> 597 | G155: =+SUM(G143:G154) -> 597 | H155: =+SUM(H143:H154) -> 198.3333333
B156: =LEFT(CRCP_y4,4) -> 2017 | C156: January | H156: =+E156/12 -> 0
B157: 2017 | C157: February | D157: 836 | E157: 836 | H157: 69.66666667
B158: 2017 | C158: March | D158: 14 | E158: 14 | H158: 1.166666667
B159: 2017 | C159: April | D159: 1043 | E159: 1043 | F159: 39 | G159: 39 | H159: 86.91666667
B160: 2017 | C160: May | D160: 62 | E160: 60 | F160: 87 | G160: 87 | H160: 5
B161: 2017 | C161: June | D161: 235 | E161: 235 | H161: 19.58333333
B162: 2017 | C162: July | D162: 98 | E162: 98 | H162: 8.166666667
B163: 2017 | C163: August | H163: 0
B164: 2017 | C164: September | F164: 144 | G164: 144 | H164: 0
B165: 2017 | C165: October | D165: 45 | E165: 45 | H165: 3.75
B166: 2017 | C166: November | D166: 100 | E166: 100 | F166: 1 | G166: 1 | H166: 8.333333333
B167: 2017 | C167: December | D167: 0 | E167: 0 | F167: 0 | G167: 0 | H167: 0
B168: =CONCATENATE("Total ", LEFT(CRCP_y4,4)) -> Total 2017 | D168: =+SUM(D156:D167) -> 2433 | E168: =+SUM(E156:E167) -> 2431 | F168: =+SUM(F156:F167) -> 271 | G168: =+SUM(G156:G167) -> 271 | H168: =+SUM(H156:H167) -> 202.5833333
B169: =LEFT(CRCP_y5,4) -> 2018 | C169: January | H169: =+E169/12 -> 0
B170: 2018 | C170: February | H170: 0
B171: 2018 | C171: March | H171: 0
B172: 2018 | C172: April | H172: 0
B173: 2018 | C173: May | H173: 0
B174: 2018 | C174: June | H174: 0
B175: 2018 | C175: July | H175: 0
B176: 2018 | C176: August | H176: 0
B177: 2018 | C177: September | H177: 0
B178: 2018 | C178: October | H178: 0
B179: 2018 | C179: November | H179: 0
B180: 2018 | C180: December | H180: 0
B181: =CONCATENATE("Total ", LEFT(CRCP_y5,4)) -> Total 2018 | D181: =+SUM(D169:D180) -> 0 | E181: =+SUM(E169:E180) -> 0 | F181: =+SUM(F169:F180) -> 0 | G181: =+SUM(G169:G180) -> 0 | H181: =+SUM(H169:H180) -> 0
B182: =LEFT(FRCP_y1,4) -> 2019 | C182: January | H182: =+E182/12 -> 0
B183: 2019 | C183: February | H183: 0
B184: 2019 | C184: March | H184: 0
B185: 2019 | C185: April | H185: 0
B186: 2019 | C186: May | H186: 0
B187: 2019 | C187: June | H187: 0
